Workbook

Sheet About
A3: Environmental, Social and Governance (ESG) Performance Trend Data
A5: Date Updated: | B5: 2025-04-24
A6: Freeport-McMoRan Inc. (FCX or Freeport) is committed to regular and transparent reporting on our ESG performance. The data provided herein reflect our historical performance for the past five years on key ESG topics. These data are intended to be a companion to the 2024 Annual Report on Sustainability. Unless noted otherwise, environmental data cover our operating sites: Atlantic Copper, Bagdad, Cerro Verde, Chino/Cobre, Climax, El Abra, El Paso, Fort Madison, Henderson, Miami, Morenci, Grasberg, Rotterdam, Safford/Lone Star, Sierrita, Stowmarket and Tyrone; and workforce, health and safety, communities and governance information cover operating and non-operating sites, exploration activities, projects and divested or closed assets until the year of divestiture or closure. Most of FCX’s ESG performance data are recorded in online data entry systems, maintained in a centralized database, and undergo annual internal data validation and external assurance. As a result of methodology changes, corrections, or ongoing improvements to our data collection processes and quality, reported data may be adjusted in future years. Data have been assured by Ernst & Young LLP. Refer to their assurance statements in the 2024 Annual Report on Sustainability for standards used. GHG emissions data have been calculated using the operational control approach established by the World Resources Institute (WRI) / World Business Council for Sustainable Development’s (WBCSD) Greenhouse Gas Protocol (GHG Protocol) and are reported on a 100% basis regardless of FCX's ownership or other agreements. Historical results are not indicative of future performance. Financial figures are reported in U.S. dollars, unless otherwise noted. Due to rounding, some figures and percentages may not add up to the total figure or 100%. Unless otherwise stated, data presented cover our performance for the years ending on December 31, which corresponds to FCX’s fiscal year. Additional information about FCX is available at fcx.com. For details on our financial performance and governance structure, please refer to our annual financial reports for the year-ended December 31, 2024, available on our website at fcx.com.
A24: CAUTIONARY STATEMENT: This file contains forward-looking statements. Forward-looking statements are all statements other than statements of historical facts, such as plans, projections, expectations, targets, objectives, strategies, commitments or goals relating to business, environmental, social, safety and governance performance, and the underlying assumptions and estimated impacts on our business and stakeholders related thereto; achievement of our 2030 climate targets and our 2050 net zero aspiration; our operational resiliency; our expectations regarding risks; future risk mitigation; regulatory developments; our sustainability-related commitments; and our overarching commitment to deliver responsibly produced copper and molybdenum, including plans to implement, validate and maintain validation of our operating sites under specific frameworks. The words “anticipates,” “may,” “can,” “commitments,” “plans,” “pursues,” “believes,” “efforts,” “estimates,” “expects,” “endeavors,” “seeks,” “goals,” “predicts,” “strategy,” “objectives,” “projects,” “targets,” “intends,” “aspires,” “likely,” “will,” “should,” “could,” “to be,” “potential,” “opportunities,” “assumptions,” “guidance,” “forecasts,” “future,” “initiatives” and any similar expressions are intended to identify those assertions as forward-looking statements. Goals and targets and expected timing to achieve goals and targets are subject to change without notice due to a number of factors. We caution readers that forward-looking statements are not guarantees of future performance and actual results may differ materially from those anticipated, expected, projected or assumed in the forward-looking statements. Important factors that can cause our actual results to differ materially from those anticipated in the forward-looking statements include, but are not limited to, the factors described under the heading “Risk Factors” in our Annual Report on Form 10-K for the year ended December 31, 2024, filed with the U.S. Securities and Exchange Commission (SEC), as updated by our subsequent filings with the SEC, and available on our website at fcx.com. Many of the assumptions upon which our forward-looking statements are based are likely to change after the forward-looking statements are made. Further, we may make changes to our business plans that could affect our results. We undertake no obligation to update any forward-looking statements, which speak only as of the date made, notwithstanding any changes in our assumptions, changes in business plans, actual experience or other changes. This file contains statements based on hypothetical scenarios and assumptions, and these statements should not be viewed as representative of current risks or forecasts of expected risks. Third-party scenarios discussed in this file reflect the modeling assumptions and outputs of their respective authors, and their use or inclusion herein is not an endorsement of their underlying assumptions, likelihood or probability. We also include references to third-party websites throughout this file, which are provided for convenience only and are not incorporated into this file. We expressly disclaim any responsibility for, or liability in respect of, the content on such referenced websites, including information connected thereto. While certain matters discussed in this file may be significant and relevant to our investors, any significance should not be read as rising to the level of materiality for purposes of complying with U.S. federal securities laws and regulations or the disclosure requirements of the SEC. The targets, goals, strategies and projects described in this file are aspirational; as such, no guarantees or promises are made that these targets, goals, strategies and projects will be met or successfully executed. Further, some of the data, statistics and metrics included in this file are estimates, are not prepared in accordance with U.S. GAAP, continue to evolve and may be based on assumptions believed to be reasonable at the time of preparation, but should not be considered guarantees and are subject to future revision.

Sheet Index
A1: =REPLACE(INDEX(SheetNames, ROW(A1)), 1, FIND("]", INDEX(SheetNames, ROW(A1))), "") | B1: INDEX
A2: =REPLACE(INDEX(SheetNames, ROW(A1)), 1, FIND("]", INDEX(SheetNames, ROW(A1))), "") -> About | C2: =HYPERLINK("#'" & A2 & "'!A1", A2) -> About
A3: =REPLACE(INDEX(SheetNames, ROW(A2)), 1, FIND("]", INDEX(SheetNames, ROW(A2))), "") -> Index | C3: Index
A4: =REPLACE(INDEX(SheetNames, ROW(A3)), 1, FIND("]", INDEX(SheetNames, ROW(A3))), "") -> References | C4: References
A5: =REPLACE(INDEX(SheetNames, ROW(A4)), 1, FIND("]", INDEX(SheetNames, ROW(A4))), "") -> Health and Safety | B5: People | C5: Health and Safety
A6: =REPLACE(INDEX(SheetNames, ROW(A5)), 1, FIND("]", INDEX(SheetNames, ROW(A5))), "") -> Workforce | C6: Workforce
A7: =REPLACE(INDEX(SheetNames, ROW(A6)), 1, FIND("]", INDEX(SheetNames, ROW(A6))), "") -> U.S. Employee Data EEO-1 | C7: U.S. Employee Data EEO-1
A8: =REPLACE(INDEX(SheetNames, ROW(A7)), 1, FIND("]", INDEX(SheetNames, ROW(A7))), "") -> Benefits Offered | C8: =HYPERLINK("#'" & A8 & "'!A1", A8) -> Benefits Offered
A9: =REPLACE(INDEX(SheetNames, ROW(A8)), 1, FIND("]", INDEX(SheetNames, ROW(A8))), "") -> Remuneration | C9: Remuneration
A10: =REPLACE(INDEX(SheetNames, ROW(A9)), 1, FIND("]", INDEX(SheetNames, ROW(A9))), "") -> Community Grievances | C10: Community Grievances
A11: =REPLACE(INDEX(SheetNames, ROW(A10)), 1, FIND("]", INDEX(SheetNames, ROW(A10))), "") -> Community Investments | C11: Community Investments
A12: =REPLACE(INDEX(SheetNames, ROW(A11)), 1, FIND("]", INDEX(SheetNames, ROW(A11))), "") -> Economic Value Contributed | C12: Economic Value Contributed
A13: =REPLACE(INDEX(SheetNames, ROW(A12)), 1, FIND("]", INDEX(SheetNames, ROW(A12))), "") -> Key Economic Contributions | C13: Key Economic Contributions
A14: =REPLACE(INDEX(SheetNames, ROW(A13)), 1, FIND("]", INDEX(SheetNames, ROW(A13))), "") -> Cash Payments to Governments | C14: Cash Payments to Governments
A15: =REPLACE(INDEX(SheetNames, ROW(A14)), 1, FIND("]", INDEX(SheetNames, ROW(A14))), "") -> Human Rights | B15: Governance | C15: Human Rights
A16: =REPLACE(INDEX(SheetNames, ROW(A15)), 1, FIND("]", INDEX(SheetNames, ROW(A15))), "") -> Business Ethics | C16: Business Ethics
A17: =REPLACE(INDEX(SheetNames, ROW(A16)), 1, FIND("]", INDEX(SheetNames, ROW(A16))), "") -> Procurement Spend Distribution | C17: Procurement Spend Distribution
A18: =REPLACE(INDEX(SheetNames, ROW(A17)), 1, FIND("]", INDEX(SheetNames, ROW(A17))), "") -> Procurement - by site | C18: Procurement - by site
A19: =REPLACE(INDEX(SheetNames, ROW(A18)), 1, FIND("]", INDEX(SheetNames, ROW(A18))), "") -> Supply Chain | C19: Supply Chain
A20: =REPLACE(INDEX(SheetNames, ROW(A19)), 1, FIND("]", INDEX(SheetNames, ROW(A19))), "") -> GHG Emissions | B20: Environment | C20: GHG Emissions
A21: =REPLACE(INDEX(SheetNames, ROW(A20)), 1, FIND("]", INDEX(SheetNames, ROW(A20))), "") -> GHG Emissions - 2030 Targets | C21: GHG Emissions - 2030 Targets
A22: =REPLACE(INDEX(SheetNames, ROW(A21)), 1, FIND("]", INDEX(SheetNames, ROW(A21))), "") -> Dual Reporting | C22: Dual Reporting
A23: =REPLACE(INDEX(SheetNames, ROW(A22)), 1, FIND("]", INDEX(SheetNames, ROW(A22))), "") -> Scope 3 GHG Emissions (by site) | C23: Scope 3 GHG Emissions (by site)
A24: =REPLACE(INDEX(SheetNames, ROW(A23)), 1, FIND("]", INDEX(SheetNames, ROW(A23))), "") -> Energy Consumption | C24: Energy Consumption
A25: =REPLACE(INDEX(SheetNames, ROW(A24)), 1, FIND("]", INDEX(SheetNames, ROW(A24))), "") -> Energy Consumption (by type) | C25: Energy Consumption (by type)
A26: =REPLACE(INDEX(SheetNames, ROW(A25)), 1, FIND("]", INDEX(SheetNames, ROW(A25))), "") -> Indirect Energy (by source) | C26: Indirect Energy (by source)
A27: =REPLACE(INDEX(SheetNames, ROW(A26)), 1, FIND("]", INDEX(SheetNames, ROW(A26))), "") -> Direct Energy (by source) | C27: Direct Energy (by source)
A28: =REPLACE(INDEX(SheetNames, ROW(A27)), 1, FIND("]", INDEX(SheetNames, ROW(A27))), "") -> Air Emissions | C28: Air Emissions
A29: =REPLACE(INDEX(SheetNames, ROW(A28)), 1, FIND("]", INDEX(SheetNames, ROW(A28))), "") -> Water (FCX Global) | C29: Water (FCX Global)
A30: =REPLACE(INDEX(SheetNames, ROW(A29)), 1, FIND("]", INDEX(SheetNames, ROW(A29))), "") -> Water (stressed areas) | C30: Water (stressed areas)
A31: =REPLACE(INDEX(SheetNames, ROW(A30)), 1, FIND("]", INDEX(SheetNames, ROW(A30))), "") -> ICMM Water Quality | C31: ICMM Water Quality
A32: =REPLACE(INDEX(SheetNames, ROW(A31)), 1, FIND("]", INDEX(SheetNames, ROW(A31))), "") -> Water Supply Risks | C32: Water Supply Risks
A33: =REPLACE(INDEX(SheetNames, ROW(A32)), 1, FIND("]", INDEX(SheetNames, ROW(A32))), "") -> Water (by region) | C33: Water (by region)
A34: =REPLACE(INDEX(SheetNames, ROW(A33)), 1, FIND("]", INDEX(SheetNames, ROW(A33))), "") -> Mining.Mineral Processing Waste | C34: Mining.Mineral Processing Waste
A35: =REPLACE(INDEX(SheetNames, ROW(A34)), 1, FIND("]", INDEX(SheetNames, ROW(A34))), "") -> Tailings Impoundments | C35: Tailings Impoundments
A36: =REPLACE(INDEX(SheetNames, ROW(A35)), 1, FIND("]", INDEX(SheetNames, ROW(A35))), "") -> Non-Mineral Waste.Recycled | C36: Non-Mineral Waste.Recycled
A37: =REPLACE(INDEX(SheetNames, ROW(A36)), 1, FIND("]", INDEX(SheetNames, ROW(A36))), "") -> Land Disturbed | C37: Land Disturbed
A38: =REPLACE(INDEX(SheetNames, ROW(A37)), 1, FIND("]", INDEX(SheetNames, ROW(A37))), "") -> Environmental Compliance | C38: Environmental Compliance
A39: =REPLACE(INDEX(SheetNames, ROW(A38)), 1, FIND("]", INDEX(SheetNames, ROW(A38))), "") -> GRI Index; SDGs | B39: Reporting Frameworks | C39: GRI Index; SDGs
A40: =REPLACE(INDEX(SheetNames, ROW(A39)), 1, FIND("]", INDEX(SheetNames, ROW(A39))), "") -> ICMM PEs | C40: ICMM PEs
A41: =REPLACE(INDEX(SheetNames, ROW(A40)), 1, FIND("]", INDEX(SheetNames, ROW(A40))), "") -> ICMM S&E | C41: ICMM S&E
A42: =REPLACE(INDEX(SheetNames, ROW(A41)), 1, FIND("]", INDEX(SheetNames, ROW(A41))), "") -> SASB Standards | C42: =HYPERLINK("#'" & A42 & "'!A1", A42) -> SASB Standards
A43: =REPLACE(INDEX(SheetNames, ROW(A42)), 1, FIND("]", INDEX(SheetNames, ROW(A42))), "") -> TCFD Index | C43: TCFD Index
A44: =REPLACE(INDEX(SheetNames, ROW(A43)), 1, FIND("]", INDEX(SheetNames, ROW(A43))), "") -> TNFD Index | C44: TNFD Index

Sheet References
A1: REFERENCES
A4: Below is a list of documents and webpages mentioned in this databook.
A5: DOCUMENT NAME | B5: LINK TO FCX DOCUMENT
A6: Annual Report on Sustainability | B6: 2024 Annual Report on Sustainability
A7: Sustainability Reports and Documents | B7: Sustainability Reports and Documents
A8: Audits, Assessments, Assurance | B8: Audits, Assessments, Assurance
A9: Governance: Form 10-K | B9: 2024 Form 10-K
A10: Governance: Proxy Statement | B10: 2025 Proxy Statement
A11: Governance: Corporate Governance Guidelines | B11: Corporate Governance Guidelines
A12: Governance: Corporate Responsibility Committee Charter | B12: Corporate Responsibility Committee Charter
A13: Governance: Political Activity and Spending Practices | B13: Political Activity and Spending Practices
A14: Governance: Principles of Business Conduct (PBC) | B14: Principles of Business Conduct
A15: Governance: Anti-Corruption Policy | B15: Anti-Corruption Policy
A16: Supply Chain: Business Partner Code of Conduct (BPCC) | B16: Business Partner Code of Conduct
A17: Supply Chain: Global Supply Chain | B17: Global Suppy Chain
A18: Supply Chain: Commodity Management | B18: Commodity Management
A19: Supply Chain: Responsible Sourcing of Minerals Policy | B19: Responsible Sourcing of Minerals Policy
A20: Human Rights: Embedding Respect > HRIA Methodology | B20: HRIA Methodology
A21: Human Rights: Embedding Respect | B21: Embedding Respect
A22: Human Rights: Security | B22: Security & Human Rights
A23: Human Rights: UK Modern Slavery Act Statement | B23: 2024 UK Modern Slavery Act Statement
A24: Human Rights: Voluntary Principles Report | B24: Voluntary Principles on Security and Human Rights: 2023 Report
A25: Human Rights: Human Rights Policy | B25: Human Rights Policy
A26: Workforce: Careers | B26: FM Jobs
A27: Workforce: North America Employee Benefits Overview | B27: 2025 North America Benefits Overview
A28: Workforce Health & Safety: Working Hours Policy | B28: Working Hours Policy
A29: Communities and Indigenous Peoples: Grievance Mechanism | B29: Community Grievance Mechanism
A30: Communities and Indigenous Peoples: Land Use and Customary Rights | B30: Land Use and Customary Rights
A31: Communities and Indigenous Peoples: Freeport in my Community | B31: Freeport in my Community
A32: Communities and Indigenous Peoples: Economic Impact | B32: Economic Impact Reports
A33: Communities and Indigenous Peoples: Social Performance Policy | B33: Social Performance Policy
A34: Environment: Climate Update | B34: 2023 Climate Update
A35: Environment: Biodiversity Management at FCX | B35: Biodiversity Management at FCX
A36: Environment: Tailings — Americas operations | B36: Tailings - Americas operations
A37: Environment: Site-Specific Tailings Management and Information | B37: Site-Specific Tailings Management and Information
A38: Environment: Tailings — Indonesia operations | B38: Tailings - Indonesia operations
A39: Environment: Tailings — Indonesia operations | B39: Sustainability at PT Freeport Indonesia
A40: Environment: PTFI External Audits at Grasberg | B40: PTFI External Audits at Grasberg
A41: Environment: Tailings Management Policy | B41: Tailings Management Policy
A42: Environment: Environmental Policy | B42: Environmental Policy

Sheet Health and Safety
A1: FCX—ESG PERFORMANCE DATA
A2: HEALTH AND SAFETY1
A3: Years Ended December 31 | B3: 2020 | C3: 2021 | D3: 2022 | E3: 2023 | F3: 2024
A4: Total Number of Recordable Events | B4: 419 | C4: 457 | D4: 590 | E4: 605 | F4: 516
A5: % High Risk2 | B5: 0.067 | C5: 0.07 | D5: 0.07 | E5: 0.09 | F5: 0.09
A7: Number of Workforce Fatalities
A8: Employees | B8: 1 | C8: 0 | D8: 0 | E8: 0 | F8: 0
A9: Contract Personnel | B9: 4 | C9: 2 | D9: 1 | E9: 1 | F9: 2
A10: Total Workforce Fatalities | B10: 5 | C10: 2 | D10: 1 3 | E10: 1 | F10: 2
A12: Total Recordable Incident Rate (TRIR)4
A13: Employees | B13: 0.77 | C13: 0.75 | D13: 0.93 | E13: 1.03 | F13: 0.78
A14: Contract Personnel | B14: 0.57 | C14: 0.62 | D14: 0.6 | E14: 0.35 | F14: 0.36
A15: Total Workforce - TRIR | B15: 0.69 | C15: 0.7 | D15: 0.77 | E15: 0.6 | F15: 0.52
A17: Fatality Rate5
A18: Employees | B18: 0.003 | C18: 0 | D18: 0 | E18: 0 | F18: 0
A19: Contract Personnel | B19: 0.018 | C19: 0.007 | D19: 0.003 | E19: 0.002 | F19: 0.003
A20: Total Workforce - Fatality Rate | B20: 0.008 | C20: 0.003 | D20: 0.001 | E20: 0.001 | F20: 0.002
A22: Near Miss Frequency Rate (NMFR)6
A23: Employees | B23: 1.27 | C23: 1.15 | D23: 1.03 | E23: 0.79 | F23: 0.95
A24: Contract Personnel | B24: 0.93 | C24: 0.88 | D24: 0.64 | E24: 0.15 | F24: 0.18
A25: Total Workforce - NMFR | B25: 1.61 | C25: 1.78 | D25: 1.17 | E25: 0.93 | F25: 1.25
A27: Lost Time Injury Frequency Rate (LTIR)7
A28: Employees | B28: 0.33 | C28: 0.31 | D28: 0.43 | E28: 0.43 | F28: 0.35
A29: Contract Personnel | B29: 0.24 | C29: 0.32 | D29: 0.31 | E29: 0.13 | F29: 0.11
A30: Total Workforce - LTIR | B30: 0.3 | C30: 0.31 | D30: 0.37 | E30: 0.24 | F30: 0.21
A31: 1. Reported health and safety performance is based on U.S. Mine Safety and Health Administration (MSHA) reporting criteria. Data include employees (full-time and part-time employees on a full-time equivalent basis) and contractors. This table reflects incidents incurred at operating and non-operating sites, exploration activities, projects and divested or closed assets until the year of divestiture or closure. Rates are calculated per 200,000 hours worked, except where indicated. Metrics within this table are calculated based on employee and contractor reporting of injuries, illness and near misses.
A36: 2. % High Risk = (High-Risk Incidents / Total Recordable Events). Our risk matrix defines "high-risk" events as incidents that have the potential to result in permanent disabilities or fatalities.
A38: 3. In FCX's 2022 Form 10-K filed on February 15, 2023, FCX reported 3 on-site fatalities in 2022, which at the time of filing had not yet been classified by MSHA as independent medical episodes or work-related. All 3 fatalities have since been classified by MSHA as independent medical episodes and were not work-related. FCX generally does not update prior year data when incident classifications change.
A41: 4. TRIR = ((Fatalities + Lost-time Incidents + Restricted-duty Incidents + Medical Treatment) x 200,000) / Total Hours Worked. TRIR is equivalent to MSHA All-Incidence Rate (AIR).
A43: 5. Fatality Rate = (Number of Fatalities x 200,000) / Total Hours Worked.
A44: 6. NMFR = (Number of Near Miss Events x 200,000) / Total Hours Worked. Anonymously reported near miss events are accounted for in the total rate only.
A46: 7. LTIR = (Number of Lost Time Injuries x 200,000) / Total Hours Worked.

Sheet Workforce
A1: FCX—ESG PERFORMANCE DATA
A2: WORKFORCE
A3: Years Ended December 31 | B3: 2020 | C3: 2021 | D3: 2022 | E3: 2023 | F3: 2024
A4: Number of Employees
A5: North America | B5: 11178 | C5: 11581 | D5: 12354 | E5: 12943 | F5: 13873
A6: Indonesia | B6: 6578 | C6: 6130 | D6: 5897 | E6: 6444 | F6: 6606
A7: South America | B7: 5734 | C7: 6024 | D7: 6327 | E7: 6718 | F7: 6946
A8: Europe/Other | B8: 1159 | C8: 968 | D8: 1000 | E8: 1057 | F8: 1073
A9: Total Number of Employees | B9: 24649 | C9: 24703 | D9: 25578 | E9: 27162 | F9: 28498
A10: Number of Contract Personnel1
A11: North America | B11: 8830 | C11: 13540 | D11: 16597 | E11: 20088 | F11: 25483
A12: Indonesia2 | B12: 20777 | C12: 22113 | D12: 23467 | E12: 55967 | F12: 32242
A13: South America | B13: 3428 | C13: 6125 | D13: 6447 | E13: 6756 | F13: 6241
A14: Europe/Other | B14: 2235 | C14: 2141 | D14: 2355 | E14: 2512 | F14: 1729
A15: Total Number of Contract Personnel | B15: 35270 | C15: 43919 | D15: 48866 | E15: 85323 | F15: 65695
A16: Employees Covered Under Collective Labor Agreements (CLA)3
A17: North America | B17: 0 | C17: 0 | D17: 0 | E17: 0 | F17: 0
A18: Indonesia | B18: 0.508 | C18: 0.487 | D18: 0.468 | E18: 0.467 | F18: 0.43
A19: South America | B19: 0.661 | C19: 0.659 | D19: 0.665 | E19: 0.65 | F19: 0.64
A20: Europe/Other | B20: 0.667 | C20: 0.632 | D20: 0.603 | E20: 0.581 | F20: 0.53
A21: Global Employees Under CLA | B21: 0.321 | C21: 0.306 | D21: 0.296 | E21: 0.294 | F21: 0.28
A22: Employee Demographics
A23: Employees by Employee Status
A24: Full Time Employees | B24: 24563 | C24: 24622 | D24: 25463 | E24: 27043 | F24: 28396
A25: Part Time Employees | B25: 86 | C25: 81 | D25: 115 | E25: 119 | F25: 102
A26: Employees by Job Category
A27: Executive Management | B27: 31 | C27: 33 | D27: 36 | E27: 37 | F27: 37
A28: Management | B28: 2403 | C28: 2449 | D28: 2598 | E28: 2726 | F28: 2789
A29: Non-Management | B29: 22215 | C29: 22221 | D29: 22944 | E29: 24399 | F29: 25672
A30: Employees by Age Group
A31: <30 Years | B31: 0.1179358189 | C31: 0.1197830223 | D31: 0.1254593792 | E31: 0.15 | F31: 0.16
A32: 30-50 Years | B32: 0.664448862 | C32: 0.6539286726 | D32: 0.6431699116 | E32: 0.62 | F32: 0.62
A33: >50 Years | B33: 0.2176153191 | C33: 0.2262883051 | D33: 0.2313707092 | E33: 0.23 | F33: 0.23
A34: Employees by Nationality
A35: Local Country Nationals | B35: 0.9901821575 | C35: 0.9909322754 | D35: 0.9905387442 | E35: 0.989 | F35: 0.99
A36: Expatriates/Third-Country Nationals | B36: 0.009817842509 | C36: 0.009067724568 | D36: 0.009461255767 | E36: 0.011 | F36: 0.01
A37: North America Consolidated Demographic Information4
A38: White | B38: 0.534 | C38: 0.524 | D38: 0.512 | E38: 0.498 | F38: 0.48
A39: Hispanic/Latino | B39: 0.395 | C39: 0.4 | D39: 0.407 | E39: 0.415 | F39: 0.42
A40: American Indian/Alaskan Native | B40: 0.038 | C40: 0.04 | D40: 0.042 | E40: 0.042 | F40: 0.05
A41: Asian | B41: 0.014 | C41: 0.014 | D41: 0.013 | E41: 0.014 | F41: 0.02
A42: Black or African American | B42: 0.014 | C42: 0.014 | D42: 0.015 | E42: 0.017 | F42: 0.02
A43: Native Hawaiian or Other Pacific Islander | B43: 0.003 | C43: 0.002 | D43: 0.002 | E43: 0.003 | F43: 0
A44: Two or more races | B44: 0.003 | C44: 0.005 | D44: 0.008 | E44: 0.009 | F44: 0.01
A45: Undisclosed | B45: 0 | C45: 0 | D45: 0 | E45: 0.001 | F45: 0
A46: Demographic Information in Indonesia
A47: Indonesian Representation | B47: 0.974 | C47: 0.973 | D47: 0.971 | E47: 0.968 | F47: 0.97
A48: Indigenous Papuan Representation (Grasberg)5 | B48: 0.42 | C48: 0.43 | D48: 0.43 | E48: 0.43 | F48: 0.42
A49: Women Employed by Location
A50: United States | B50: 0.1828591877 | C50: 0.1917796391 | D50: 0.2019588797 | E50: 0.206 | F50: 0.208
A51: Indonesia | B51: 0.07251444208 | C51: 0.07536704731 | D51: 0.0791928099 | E51: 0.089 | F51: 0.095
A52: Peru | B52: 0.05833333333 | C52: 0.05981308411 | D52: 0.05938580435 | E52: 0.064 | F52: 0.069
A53: Chile | B53: 0.1092077088 | C53: 0.1406120761 | D53: 0.1361702128 | E53: 0.169 | F53: 0.157
A54: Europe/Other | B54: 0.1855047455 | C54: 0.1704545455 | D54: 0.174 | E54: 0.184 | F54: 0.189
A55: Women Employed by Job Category
A56: Board of Directors6 | B56: 0.3333333333 | C56: 0.3636363636 | D56: 0.364 | E56: 0.417 | F56: 0.417
A57: Executive Management | B57: 0.1935483871 | C57: 0.2121212121 | D57: 0.2222222222 | E57: 0.189 | F57: 0.243
A58: Management | B58: 0.1244277986 | C58: 0.1212739894 | D58: 0.1216320246 | E58: 0.123 | F58: 0.128
A59: Non-Management | B59: 0.1265794325 | C59: 0.1356641469 | D59: 0.1436541144 | E59: 0.15 | F59: 0.154
A60: Total Women Employed | B60: 0.1264960039 | C60: 0.1338298992 | D60: 0.1415278755 | E60: 0.148 | F60: 0.152
A61: Talent Attraction and Retention
A62: New Employee Hires by Location
A63: United States | B63: 849 | C63: 1934 | D63: 2338 | E63: 2251 | F63: 2650
A64: Indonesia | B64: 23 | C64: 21 | D64: 35 | E64: 867 | F64: 584
A65: Peru | B65: 194 | C65: 135 | D65: 267 | E65: 440 | F65: 302
A66: Chile | B66: 18 | C66: 53 | D66: 207 | E66: 26 | F66: 33
A67: Europe/Other | B67: 20 | C67: 33 | D67: 51 | E67: 51 | F67: 57
A68: New Employee Hires by Age Group
A69: <30 Years | B69: 539 | C69: 1016 | D69: 1180 | E69: 1642 | F69: 1588
A70: 30-50 Years | B70: 455 | C70: 942 | D70: 1420 | E70: 1738 | F70: 1715
A71: >50 Years | B71: 110 | C71: 218 | D71: 298 | E71: 255 | F71: 323
A72: Total New Employee Hires | B72: 1104 | C72: 2176 | D72: 2898 | E72: 3635 | F72: 3626
A73: New Employee Hires by Gender
A74: Men | B74: 860 | C74: 1697 | D74: 2238 | E74: 2923 | F74: 2888
A75: Women | B75: 244 | C75: 479 | D75: 660 | E75: 710 | F75: 737
A76: Employee Turnover Rate7 by Location
A77: United States | B77: 0.2 | C77: 0.14 | D77: 0.14 | E77: 0.14 | F77: 0.136
A78: Indonesia | B78: 0.05 | C78: 0.07 | D78: 0.07 | E78: 0.07 | F78: 0.065
A79: Peru | B79: 0.13 | C79: 0.03 | D79: 0.02 | E79: 0.03 | F79: 0.033
A80: Chile | B80: 0.24 | C80: 0.06 | D80: 0.08 | E80: 0.12 | F80: 0.055
A81: Europe/Other | B81: 0.13 | C81: 0.07 | D81: 0.03 | E81: 0.04 | F81: 0.035
A82: Employee Turnover Rate7 by Age Group
A83: <30 Years | B83: 0.22 | C83: 0.2 | D83: 0.2 | E83: 0.21 | F83: 0.175
A84: 30-50 Years | B84: 0.09 | C84: 0.07 | D84: 0.06 | E84: 0.06 | F84: 0.062
A85: >50 Years | B85: 0.26 | C85: 0.12 | D85: 0.13 | E85: 0.13 | F85: 0.125
A86: Employee Turnover Rate7 - Men
A87: Company-initiated Rate | B87: 0.05 | C87: 0.04 | D87: 0.02 | E87: 0.03 | F87: 0.028
A88: Employee-initiated (Voluntary) Rate | B88: 0.08 | C88: 0.05 | D88: 0.07 | E88: 0.06 | F88: 0.059
A89: Employee Turnover Rate - Men | B89: 0.13 | C89: 0.09 | D89: 0.09 | E89: 0.09 | F89: 0.087
A90: Employee Turnover Rate7 - Women
A91: Company-initiated Rate | B91: 0.08 | C91: 0.03 | D91: 0.03 | E91: 0.04 | F91: 0.035
A92: Employee-initiated (Voluntary) Rate | B92: 0.14 | C92: 0.08 | D92: 0.09 | E92: 0.09 | F92: 0.083
A93: Employee Turnover Rate - Women | B93: 0.22 | C93: 0.11 | D93: 0.12 | E93: 0.13 | F93: 0.118
A94: Total Employee Turnover Rate | B94: 0.15 | C94: 0.09 | D94: 0.09 | E94: 0.1 | F94: 0.092
A95: Voluntary Turnover Rate | B95: 0.09 | C95: 0.06 | D95: 0.07 | E95: 0.07 | F95: 0.063
A96: 1. Reflects contracted personnel who are employed at various times throughout the year. Certain contractors work on projects that are temporary in nature and fluctuate from year to year.
A98: 2. Includes contracted personnel at PTFI's new downstream processing facilities starting in 2023.
A99: 3. Data include only employees covered under CLA. In North America, our hourly employees continue to elect to work directly with company management rather than through union representation using our Guiding Principles, which outline how we work together to achieve our collective goals within the values of the company.
A101: 4. Reported consolidated North America diversity metrics relate to employees only and are in line with the categories set forth by U.S. Equal Employment Opportunity Commission. These metrics are based on employee data as of year end; however, employee data reported on the 2024 U.S. Employee Data EEO-1 tab of this performance data booklet are from dates of payroll during the month of December 2024.
A104: 5. Reflects percentage of Indonesia employee base located in Central Papua and Jayapura who are Indigenous Papuan.
A105: 6. Figures are as of year end and therefore may differ from those reported in our annual proxy statements which reflect director nominees as of the record date for our annual meeting of stockholders for each respective year.
A107: 7. Turnover rates represent turnover throughout the year and exclude seasonal, temporary hires and interns.
A108: Note: Employee demographics are self-reported.

Sheet U.S. Employee Data EEO-1
A1: FCX—ESG PERFORMANCE DATA
A2: U.S. EQUAL EMPLOYMENT OPPORTUNITY (EEO-1) DISCLOSURE
A3: Year Ended December 31, 2024
A4: EEO-1 data presented here is limited to representational reporting in U.S. federally mandated job categories that differ across our global operations. The data in the table does not include our approximately 14,600 employees who reside outside of the U.S., nor does this data include the approximately 65,700 contract personnel who comprise an integral part of our global workforce.
A6: JOB CATEGORIES | B6: Race/Ethnicity | P6: Overall Total
B7: Hispanic or Latino | D7: Not Hispanic or Latino
D8: Male | J8: Female
B9: Male | C9: Female | D9: White | E9: Black or African American | F9: Native Hawaiian or Other Pacific Islander | G9: Asian | H9: American Indian or Alaskan Native | I9: Two or More races | J9: White | K9: Black or African American | L9: Native Hawaiian or Other Pacific Islander | M9: Asian | N9: American Indian or Alaskan Native | O9: Two or more races
A10: Executive/Senior Level Officials and Managers | B10: 4 | C10: 0 | D10: 23 | E10: 0 | F10: 0 | G10: 1 | H10: 0 | I10: 0 | J10: 5 | K10: 0 | L10: 0 | M10: 0 | N10: 0 | O10: 0 | P10: 33
A11: First/Mid-Level Officials and Managers | B11: 489 | C11: 75 | D11: 872 | E11: 12 | F11: 4 | G11: 22 | H11: 14 | I11: 4 | J11: 163 | K11: 3 | L11: 0 | M11: 3 | N11: 3 | O11: 0 | P11: 1664
A12: Professionals | B12: 474 | C12: 251 | D12: 1061 | E12: 108 | F12: 6 | G12: 109 | H12: 12 | I12: 27 | J12: 477 | K12: 28 | L12: 1 | M12: 40 | N12: 11 | O12: 5 | P12: 2610
A13: Technicians | B13: 214 | C13: 78 | D13: 203 | E13: 5 | F13: 2 | G13: 1 | H13: 9 | I13: 5 | J13: 90 | K13: 2 | L13: 0 | M13: 3 | N13: 9 | O13: 1 | P13: 622
A14: Sales Workers | B14: 0 | C14: 0 | D14: 1 | E14: 0 | F14: 0 | G14: 1 | H14: 0 | I14: 0 | J14: 1 | K14: 0 | L14: 0 | M14: 0 | N14: 0 | O14: 0 | P14: 3
A15: Administrative Support Workers | B15: 26 | C15: 132 | D15: 41 | E15: 3 | F15: 1 | G15: 5 | H15: 1 | I15: 1 | J15: 145 | K15: 11 | L15: 0 | M15: 9 | N15: 6 | O15: 6 | P15: 387
A16: Craft Workers | B16: 1236 | C16: 38 | D16: 1252 | E16: 26 | F16: 5 | G16: 6 | H16: 111 | I16: 19 | J16: 30 | K16: 0 | L16: 0 | M16: 0 | N16: 16 | O16: 3 | P16: 2742
A17: Operatives | B17: 2259 | C17: 437 | D17: 1818 | E17: 75 | F17: 21 | G17: 12 | H17: 278 | I17: 59 | J17: 462 | K17: 7 | L17: 7 | M17: 4 | N17: 148 | O17: 21 | P17: 5608
A18: Laborers and Helpers | B18: 74 | C18: 18 | D18: 35 | E18: 1 | F18: 0 | G18: 0 | H18: 8 | I18: 1 | J18: 11 | K18: 0 | L18: 0 | M18: 0 | N18: 10 | O18: 0 | P18: 158
A19: Service Workers | B19: 36 | C19: 88 | D19: 27 | E19: 1 | F19: 0 | G19: 0 | H19: 0 | I19: 1 | J19: 57 | K19: 2 | L19: 0 | M19: 0 | N19: 5 | O19: 1 | P19: 218
A20: 2024 REPORT TOTAL | B20: 4812 | C20: 1117 | D20: 5333 | E20: 231 | F20: 39 | G20: 157 | H20: 433 | I20: 117 | J20: 1441 | K20: 53 | L20: 8 | M20: 59 | N20: 208 | O20: 37 | P20: 14045
A21: 2023 Report Total | B21: 4386 | C21: 987 | D21: 5066 | E21: 180 | F21: 31 | G21: 140 | H21: 366 | I21: 91 | J21: 1369 | K21: 43 | L21: 5 | M21: 50 | N21: 183 | O21: 28 | P21: 12925
A22: Note: This data includes employees with active employment in North America during the month of December 2024.

Sheet Benefits Offered
A1: FCX—ESG PERFORMANCE DATA
A2: BENEFITS OFFERED TO FULL TIME EMPLOYEES
A3: Year Ended December 31, 2024 | C3: Life Insurance | D3: Health Care | E3: Disability Coverage | F3: Parental Leave | G3: Retirement Provision | H3: Stock Ownership
A4: Copper Mining | B4: North America
B5: Bagdad | C5: yes | D5: yes | E5: yes | F5: yes | G5: yes | H5: no
B6: Chino/Cobre | C6: yes | D6: yes | E6: yes | F6: yes | G6: yes | H6: no
B7: Morenci | C7: yes | D7: yes | E7: yes | F7: yes | G7: yes | H7: no
B8: Safford/Lone Star | C8: yes | D8: yes | E8: yes | F8: yes | G8: yes | H8: no
B9: Sierrita | C9: yes | D9: yes | E9: yes | F9: yes | G9: yes | H9: no
B10: Tyrone | C10: yes | D10: yes | E10: yes | F10: yes | G10: yes | H10: no
B11: South America
B12: Cerro Verde | C12: yes | D12: yes | E12: yes | F12: yes | G12: yes | H12: no
B13: El Abra | C13: yes | D13: yes | E13: yes | F13: yes | G13: yes | H13: no
B14: Indonesia
B15: Grasberg | C15: yes | D15: yes | E15: yes | F15: yes | G15: yes | H15: no
A16: Molybdenum Mining | B16: North America
B17: Climax | C17: yes | D17: yes | E17: yes | F17: yes | G17: yes | H17: no
B18: Henderson | C18: yes | D18: yes | E18: yes | F18: yes | G18: yes | H18: no
A19: Smelting & Refining | B19: North America
B20: El Paso Refinery & Rod | C20: yes | D20: yes | E20: yes | F20: yes | G20: yes | H20: no
B21: Miami Smelter & Rod | C21: yes | D21: yes | E21: yes | F21: yes | G21: yes | H21: no
B22: Europe
B23: Atlantic Copper Smelter & Refinery | C23: yes | D23: yes | E23: yes | F23: yes | G23: yes | H23: no
A24: Other | B24: Other
B25: Fort Madison Moly Special Products | C25: yes | D25: yes | E25: yes | F25: yes | G25: yes | H25: no
B26: Rotterdam | C26: no | D26: yes | E26: yes | F26: yes | G26: yes | H26: no
B27: Stowmarket | C27: yes | D27: yes | E27: yes | F27: yes | G27: yes | H27: no
B28: Corporate, Support & Administrative (U.S) | C28: yes | D28: yes | E28: yes | F28: yes | G28: yes | H28: no
A29: Note: Table reflects the minimum benefits offered to full-time employees. Certain employees may be offered other benefits, such as access to an employee assistance program, not listed in this table.

Sheet Remuneration
A1: FCX—ESG PERFORMANCE DATA
A2: EMPLOYEE PAY EQUITY ANALYSIS1
A3: Year Ended December 31, 2024 | C3: Female to Male Employee Ratio | E3: Non-White to White U.S. Employee Ratio
C4: Basic Salary | D4: Total Compensation | E4: Basic Salary | F4: Total Compensation
A5: FCX Global | C5: >0.995 | D5: >0.995 | E5: >0.995 | F5: >0.995
A6: 1. A third-party compensation consultant confirmed compensation of the analyzed employee groups was near parity (a gap of less than 0.005 cents per U.S. dollar). More information on FCX's fair and equal remuneration practices can be found in FCX's 2024 Sustainability Report on fcx.com.
A9: Note: We are committed to providing equal pay for equal work regardless of gender, race, ethnicity or any other characteristic protected by applicable law. We periodically conduct internal compensation reviews to identify possible pay gaps, which cannot be explained through performance, distribution of jobs, experience, time in role and other legitimate business-related factors.

Sheet Community Grievances
A1: FCX—ESG PERFORMANCE DATA
A2: SOCIAL PERFORMANCE: COMMUNITIES
A3: Years Ended December 31 | B3: 2020 | C3: 2021 | D3: 2022 | E3: 2023 | F3: 2024
A4: Community Grievances1 (count)
A5: Community Grievances by Geography
A6: United States | B6: 59 | C6: 94 | D6: 81 | E6: 93 | F6: 72
A7: Indonesia | B7: 53 | C7: 60 | D7: 59 | E7: 49 | F7: 55
A8: Peru | B8: 10 | C8: 4 | D8: 6 | E8: 28 | F8: 35
A9: Chile | B9: 17 | C9: 10 | D9: 15 | E9: 7 | F9: 8
A10: Europe | B10: 1 | C10: 1 | D10: 0 | E10: 1 | F10: 1
A11: Total Community Grievances | B11: 140 | C11: 169 | D11: 161 | E11: 178 | F11: 171
A13: Community Grievances by Type (%)
A14: Community Engagement | B14: 0.11 | C14: 0.01 | D14: 0.01 | E14: 0.02259887006 | F14: 0.02
A15: Community Investments | B15: 0.15 | C15: 0.12 | D15: 0.12 | E15: 0.1016949153 | F15: 0.13
A16: Cultural Heritage | B16: 0.01 | C16: 0.02 | D16: 0.03 | E16: 0.01129943503 | F16: 0.04
A17: Employment | B17: 0.04 | C17: 0.03 | D17: 0.08 | E17: 0.06 | F17: 0.16
A18: Environment | B18: 0.16 | C18: 0.15 | D18: 0.15 | E18: 0.2033898305 | F18: 0.22
A19: Health and Safety | B19: 0.15 | C19: 0.14 | D19: 0.19 | E19: 0.2372881356 | F19: 0.14
A20: Land Access | B20: 0 | C20: 0.01 | D20: 0 | E20: 0.01694915254 | F20: 0.01
A21: Land Rights | B21: 0.1 | C21: 0.05 | D21: 0.03 | E21: 0.01694915254 | F21: 0.02
A22: Livelihoods | B22: 0.01 | C22: 0.01 | D22: 0.02 | E22: 0.01694915254 | F22: 0.02
A23: Local Sourcing | B23: 0.08 | C23: 0.08 | D23: 0.12 | E23: 0.06779661017 | F23: 0.03
A24: Odor, Noise, Vibration | B24: 0.03 | C24: 0.08 | D24: 0.08 | E24: 0.09039548023 | F24: 0.06
A25: Other2 | B25: 0.11 | C25: 0.13 | D25: 0.1 | E25: 0.09 | F25: 0.06
A26: Property Damage | B26: 0.04 | C26: 0.16 | D26: 0.06 | E26: 0.03389830508 | F26: 0.05
A27: Resettlement | B27: 0.01 | C27: 0 | D27: 0 | E27: 0 | F27: 0
A28: Security | B28: 0 | C28: 0.01 | D28: 0 | E28: 0.005649717514 | F28: 0.01
A29: Workforce Behavior | B29: 0 | C29: 0 | D29: 0.01 | E29: 0.02259887006 | F29: 0.04
A30: 1. A community grievance is any self-reported issue/concern (perceived or actual) that an affected member or group of the communities within our area of direct or indirect operational impact and other stakeholders wants FCX or its business partners to address and resolve. Community grievances reported here are managed via our community grievance mechanism, tracked within our incident management system and were received either anonymously or with attribution by community engagement team members through in-person engagements, in writing or via local telephone hotlines. Grievances can relate to FCX's active mining operations, exploration projects, and reclaimed or remediated sites.
A36: 2. Other includes obstruction of view, light disturbance, blight, housing and other grievances not listed above.

Sheet Community Investments
A1: FCX—ESG PERFORMANCE DATA
A2: SOCIAL INVESTMENTS: FOCUS AREAS
A3: Year Ended December 31, 2024 | B3: Community Investments ($ in millions) | C3: Programs and Projects (count)
A4: Education and Skill-Building
A5: Community Education and Support | B5: 2.1
A6: Early Education | B6: 2.7
A7: Grades Kindergarten – 12 | B7: 6.8
A8: Higher Education | B8: 5.4
A9: Scholarships | B9: 3.4
A10: STEM | B10: 0.5
A11: Workforce Development | B11: 4.1
A12: Education and Skill-Building | B12: 25 | C12: 142
A13: Economic Opportunity
A14: Access to Food | B14: 1
A15: Community Infrastructure | B15: 8.8
A16: Cultural Heritage and Arts | B16: 2.9
A17: Economic Development | B17: 8.6
A18: Environmental | B18: 1.3
A19: Health | B19: 3.7
A20: Health Care Facility | B20: 11.3
A21: Housing | B21: 0.1
A22: Livelihoods | B22: 3.7
A23: Recreation | B23: 3.1
A24: Safety | B24: 5.1
A25: Small Business Support | B25: 4.3
A26: Economic Opportunity | B26: 53.9 | C26: 308
A27: Community-Level Leadership and Capacity Building
A28: Citizen Engagement and Participation | B28: 0.9
A29: Community and Emergency Planning | B29: 1.4
A30: Leadership Training and Skill-Building | B30: 1.4
A31: Organization Governance and Effectiveness | B31: 0.2
A32: Community-Level Leadership and Capacity Building | B32: 3.9 | C32: 24
A33: Community Trust Funds1,3 | B33: 103.2
A34: Other2 | B34: 25.2
A35: Total Social Investments3 | B35: 211.2 | C35: 474
A36: 1. Reflects investments in YPMAK programs and their endowment fund, national youth and sports development programs, health programs and land rights trust funds.
A38: 2. Includes investments in employee giving programs such as FCX's matching gifts program, United Way campaign, stakeholder engagement and administrative services.
A40: 3. Includes $49 million in amounts accrued and reserved for future projects and programs in Central Papua, Indonesia.

Sheet Economic Value Contributed
A1: FCX—ESG PERFORMANCE DATA
A2: ECONOMIC VALUE CONTRIBUTED ($ millions)
A3: Years Ended December 31 | B3: 2020 | C3: 2021 | D3: 2022 | E3: 2023 | F3: 2024
A4: Direct Economic Contributions1,2 | B4: 11512 | C4: 15840 | D4: 19622 | E4: 18934 | F4: 23047
A5: Cash Payments to Governments1,3,4 | B5: 1108 | C5: 3150 | D5: 5551 | E5: 4003 | F5: 6217
A6: Community Investments4 | B6: 108 | C6: 164 | D6: 177 | E6: 187 | F6: 211
A7: 1. For further information, please see our 2024 Annual Report on Sustainability and FCX’s 2024 Form 10-K.
A8: 2. Amounts include export duties and net profit taxes in Indonesia.
A9: 3. Amounts presented reflect credits from prior years as applicable and do not reflect payments on assessments under dispute.
A10: 4. Cash payments to governments and community investments are subsets of direct economic contributions.

Sheet Key Economic Contributions
A1: FCX—ESG PERFORMANCE DATA
A2: KEY ECONOMIC CONTRIBUTIONS ($ millions)
A3: Year Ended December 31, 2024 | B3: United States1 | C3: Indonesia | D3: Peru | E3: Chile | F3: Europe/Other2 | G3: Total
A4: Payments to Suppliers | B4: 5608 | C4: 2357 | D4: 1431 | E4: 574 | F4: 2918 | G4: 12888
A5: Employee Wages and Benefits | B5: 1987 | C5: 385 | D5: 456 | E5: 120 | F5: 105 | G5: 3053
A6: Payments to Providers of Capital: | G6: 0
A7: Dividends and Distributions | B7: 865 | C7: 1444 | D7: 389 | E7: 0 | F7: 0 | G7: 2698
A8: Interest | B8: 314 | C8: 221 | D8: 18 | E8: 0 | F8: 44 | G8: 597
A9: Payments to Governments3 | B9: 27 | C9: 2938 | D9: 586 | E9: 41 | F9: 8 | G9: 3600
A10: Community Investments4 | B10: 54 | C10: 141 | D10: 9 | E10: 6 | F10: 1 | G10: 211
A11: Total Direct Economic Contributions | B11: 8855 | C11: 7486 | D11: 2889 | E11: 741 | F11: 3076 | G11: 23047
A12: Total Capital Expenditures5 | B12: 1369 | C12: 2908 | D12: 293 | E12: 82 | F12: 156 | G12: 4808
A13: 1. Includes parent company results.
A14: 2. Represents costs by FCX's other business groups that are located outside of the countries where FCX conducts its primary operations.
A15: 3. Excludes employee payroll taxes, property taxes, dividends, and other taxes and fees, which are included in payments to suppliers and dividends. A reconciliation to the 2024 Cash Payments to Governments table can be found on the Cash Payments to Governments tab in this performance data booklet.
A17: 4. Indonesia includes community investments at Grasberg and PTFI's new downstream processing facilities.
A18: 5. Includes costs for capital projects, which include additional payments to suppliers, employee wages and benefits, payments to providers of capital and payments to governments, not included in the rest of the table.
A20: Note: These amounts were derived primarily from FCX’s publicly reported segment data. For disclosure of FCX’s segment data in accordance with U.S. GAAP, see FCX’s 2024 Form 10-K pages 168-173.

Sheet Cash Payments to Governments
A1: FCX—ESG PERFORMANCE DATA
A2: CASH PAYMENTS TO GOVERNMENTS1 ($ millions)
A3: Year Ended December 31, 2024 | B3: United States | C3: Indonesia2 | D3: Peru | E3: Chile | F3: Europe/Other3 | G3: Total
A4: Corporate Income Taxes, Net of Refunds | B4: 1 | C4: 1456 | D4: 510 | E4: 29 | F4: 8 | G4: 2004
A5: Withholding Taxes on Foreign Dividends | B5: 0 | C5: 151 | D5: 28 | E5: 0 | F5: 0 | G5: 179
A6: Employee Payroll Taxes4 | B6: 490 | C6: 96 | D6: 102 | E6: 13 | F6: 38 | G6: 739
A7: Dividends | B7: 0 | C7: 1444 | D7: 0 | E7: 0 | F7: 0 | G7: 1444
A8: Royalties and Net Severance Taxes | B8: 26 | C8: 445 | D8: 48 | E8: 12 | F8: 0 | G8: 531
A9: Property Taxes | B9: 80 | C9: 69 | D9: 0 | E9: 1 | F9: 2 | G9: 152
A10: Other Taxes and Fees5 | B10: 49 | C10: 1054 | D10: 50 | E10: 18 | F10: -3 | G10: 1168
A11: Total Cash Payments to Governments | B11: 646 | C11: 4715 | D11: 738 | E11: 73 | F11: 45 | G11: 6217
A12: 1. This schedule reflects a voluntary effort by FCX to capture its cash payments to governments (net of refunds). Amounts presented do not reflect payments on assessment under dispute. Amounts presented reflect credits from prior years, as applicable. Jurisdictions listed primarily represent taxes and payments to governments at a project-level, except for the U.S. where country tax payments are levied at the entity level.
A15: 2. Excludes interest and certain administrative payments associated with tax assessments, which are included in the direct benefit amounts reported on the Financial Contributions fact sheet on ptfi.co.id.
A17: 3. Represents cash payments to governments by FCX's other business groups that are located outside of the countries where FCX conducts its primary operations.
A18: 4. Includes payroll taxes collected on behalf of employees and paid to governments.
A19: 5. Includes customs and export duties, as well as withholding tax on foreign services.
A22: RECONCILIATION OF CASH PAYMENTS TO GOVERNMENTS ($ millions)
A23: Year Ended December 31, 2024 | B23: United States | C23: Indonesia1 | D23: Peru | E23: Chile | F23: Europe/Other | G23: Total
A24: Cash Payments to Governments | B24: 646 | C24: 4715 | D24: 738 | E24: 73 | F24: 45 | G24: 6217
A25: Less:
A26: Employee Payroll Taxes | B26: 490 | C26: 96 | D26: 102 | E26: 13 | F26: 38 | G26: 739
A27: Property Taxes | B27: 80 | C27: 69 | D27: 0 | E27: 1 | F27: 2 | G27: 152
A28: Dividends | B28: 0 | C28: 1444 | D28: 0 | E28: 0 | F28: 0 | G28: 1444
A29: Other Taxes and Fees2 | B29: 49 | C29: 167.8364624 | D29: 50 | E29: 18 | F29: -3 | G29: 281.8364624
A30: Total Payments to Governments3 | B30: 27 | C30: 2938.163538 | D30: 586 | E30: 41 | F30: 8 | G30: 3600.163538
A31: 1. Excludes interest and certain administrative payments associated with tax assessments, which are included in the direct benefit amounts reported on on the Financial Contributions fact sheet on ptfi.co.id.
A32: 2. Excludes $886 million at Indonesia for export duties and net profit taxes.
A33: 3. Employee payroll taxes, dividends, property taxes and certain other taxes are included in payments to suppliers, and dividends and distributions in the summary of key economic contributions by operating region table as that data is derived primarily from FCX’s publicly reported segment data. Therefore, these taxes are excluded from cash payments to governments for purposes of reporting direct economic contributions on the Key Economic Contributions tab of this data booklet.

Sheet Human Rights
A1: FCX—ESG PERFORMANCE DATA
A2: HUMAN RIGHTS
A3: Years Ended December 31 | B3: 2020 | C3: 2021 | D3: 2022 | E3: 2023 | F3: 2024
A4: Gross Human Rights Violations1 | B4: 0 | C4: 0 | D4: 2 2 | E4: 0 | F4: 0
A5: 1. There is no uniform definition under international law; however, FCX’s ongoing data collection and review processes are guided by the United Nations Office of the High Commissioner report, “The Corporate Responsibility to Respect Human Rights – An Interpretive Guide,” to identify such types of violations. In addition, FCX uses specific interpretation guidance for certain types of violations from various international organizations such as the International Labour Organization.
A9: 2. Information on the incidents at PTFI's new downstream processing facilities in Eastern Java, Indonesia that were determined by FCX to be gross human rights violations during the construction phase of the facilities can be found on page 36 of FCX's 2023 Annual Report on Sustainability.

Sheet Business Ethics
A1: FCX—ESG PERFORMANCE DATA
A2: BUSINESS ETHICS
A3: Years Ended December 31 | B3: 2020 | C3: 2021 | D3: 2022 | E3: 2023 | F3: 2024
A4: FCX's Principles of Business Conduct (PBC)1,2
A5: Training Completion Rate - FCX Non-Manager course | B5: 0.58 | C5: 1 | D5: 1 | E5: 0.99 | F5: 0.99
A6: Training Completion Rate - FCX Manager course | B6: 0.82 | C6: 1 | D6: 1 | E6: 1 | F6: 0.99
A7: Anti-Corruption Policy and Procedures2
A8: Board of Directors Certification Rate | B8: 1 | C8: 1 | D8: 1 | E8: 1 | F8: 1
A9: Training Completion Rate3 | B9: 0.82 | C9: 1 | D9: 1 | E9: 0.99 | F9: 0.99
A10: Number of Employees Trained3 | B10: 3013 | C10: 3576 | D10: 3574 | E10: 3726 | F10: 4016
A11: Complaints Received
A12: Number of FCX Compliance Line Reports | B12: 270 | C12: 205 | D12: 372 | E12: 457 | F12: 377
A13: 1. PBC training is assigned to active and applicable employees and covers, among other things, health and safety concepts, addressing harassment and discrimination, dealing with inappropriate behavior, preventing conflicts of interest and retaliation from co-workers, and reminds employees how to raise concerns via the Compliance Line.
A16: 2. Because of operational challenges as a result of the COVID-19 pandemic, our 2020 business ethics and anti-corruption trainings were voluntary for employees.
A18: 3. Select employees receive anti-corruption training based on their job category.

Sheet Procurement Spend Distribution
A1: FCX—ESG PERFORMANCE DATA
A2: PROCUREMENT SPEND ($ millions)
A3: Years Ended December 31 | B3: 2020 | C3: 2021 | D3: 2022 | E3: 2023 | F3: 2024
A4: Local Suppliers | B4: 2980 | C4: 3350 | D4: 4077 | E4: 4432 | F4: 4580
A5: National Suppliers | B5: 4804 | C5: 5489 | D5: 8218 | E5: 9404 | F5: 9911
A6: Suppliers Located Outside of the Home Country | B6: 2570 | C6: 2969 | D6: 2988 | E6: 3577 | F6: 3730
A7: Total Procurement Spend Distribution | B7: =B4+B5+B6 -> 10354 | C7: 11808 | D7: 15284 | E7: 17412 | F7: 18221
A8: % Spent with Local Suppliers | B8: =B4/B7 -> 0.2878114738 | C8: 0.2837059621 | D8: 0.27 | E8: 0.2545 | F8: 0.25
A9: % Spent with National Suppliers | B9: =B5/B7 -> 0.4639752753 | C9: 0.464854336 | D9: 0.54 | E9: 0.5401 | F9: 0.54
A10: % Spent with Suppliers Located Outside of the Home Country | B10: =B6/B7 -> 0.2482132509 | C10: 0.2514397019 | D10: 0.19 | E10: 0.2054 | F10: 0.21
A11: Number of Local Suppliers | B11: 3631 | C11: 3145 | D11: 3376 | E11: 3659 | F11: 3693
A12: Note: For our operations in North America, the Netherlands and Chile, local suppliers are identified as those located in the state/region where we have operations. For our operations in Spain and Peru, local suppliers are identified as those located in the city in which we operate. For our operations in the United Kingdom and Indonesia, local suppliers are identified as those in the counties/provinces surrounding our operations. National suppliers are those located in the same country as the operation. Outside home country suppliers are located in countries other than the operation.

Sheet Procurement - by site
A1: FCX—ESG PERFORMANCE DATA
A2: PROCUREMENT SPEND ($ millions)
A3: Year Ended December 31, 2024 | C3: Spend on Goods | F3: Spend on Services1
C4: Local | D4: % of Total | E4: Total | F4: Local | G4: % of Total | H4: Total | I4: Total Procurement Spend
A5: Copper Mining | B5: North America
B6: Bagdad | C6: 167 | D6: 0.52 | E6: 324 | F6: 204 | G6: 0.58 | H6: 353 | I6: 677
B7: Chino/Cobre | C7: 118 | D7: 0.52 | E7: 225 | F7: 132 | G7: 0.76 | H7: 173 | I7: 398
B8: Morenci | C8: 527 | D8: 0.48 | E8: 1097 | F8: 482 | G8: 0.65 | H8: 741 | I8: 1838
B9: Safford/Lone Star | C9: 264 | D9: 0.52 | E9: 509 | F9: 105 | G9: 0.33 | H9: 315 | I9: 824
B10: Sierrita | C10: 175 | D10: 0.48 | E10: 364 | F10: 168 | G10: 0.81 | H10: 208 | I10: 572
B11: Tyrone | C11: 35 | D11: 0.46 | E11: 76 | F11: 20 | G11: 0.68 | H11: 29 | I11: 104
B12: South America
B13: Cerro Verde | C13: 181 | D13: 0.13 | E13: 1410 | F13: 265 | G13: 0.3 | H13: 897 | I13: 2307
B14: El Abra | C14: 41 | D14: 0.11 | E14: 364 | F14: 72 | G14: 0.19 | H14: 381 | I14: 745
B15: Indonesia
B16: Grasberg | C16: 205 | D16: 0.1 | E16: 2014 | F16: 257 | G16: 0.12 | H16: 2071 | I16: 4085
B17: Total Copper Mining | C17: 1714 | D17: 0.27 | E17: 6381 | F17: 1706 | G17: 0.33 | H17: 5168 | I17: 11549
A18: Molybdenum Mining | B18: North America
B19: Climax | C19: 97 | D19: 0.68 | E19: 142 | F19: 113 | G19: 0.5 | H19: 226 | I19: 367
B20: Henderson | C20: 27 | D20: 0.56 | E20: 49 | F20: 43 | G20: 0.51 | H20: 85 | I20: 134
B21: Total Molybdenum Mining | C21: 124 | D21: 0.65 | E21: 191 | F21: 156 | G21: 0.5 | H21: 310 | I21: 501
A22: Smelting & Refining | B22: North America
B23: El Paso Refinery & Rod | C23: 20 | D23: 0.23 | E23: 89 | F23: 58 | G23: 0.5 | H23: 116 | I23: 205
B24: Miami Smelter & Rod | C24: 58 | D24: 0.42 | E24: 140 | F24: 196 | G24: 0.67 | H24: 292 | I24: 432
B25: Europe
B26: Atlantic Copper Smelter & Refinery | C26: 12 | D26: 0.01 | E26: 1872 | F26: 49 | G26: 0.15 | H26: 329 | I26: 2201
B27: Total Smelting & Refining | C27: 91 | D27: 0.04 | E27: 2100 | F27: 303 | G27: 0.41 | H27: 738 | I27: 2838
A28: Other | B28: Other
B29: Fort Madison Moly Special Products | C29: 11 | D29: 0.44 | E29: 25 | F29: 25 | G29: 0.75 | H29: 34 | I29: 59
B30: Rotterdam | C30: 3 | D30: 0.3 | E30: 10 | F30: 16 | G30: 0.51 | H30: 31 | I30: 41
B31: Stowmarket | C31: 1 | D31: 0.08 | E31: 13 | F31: 8 | G31: 0.76 | H31: 10 | I31: 23
B32: Corporate, Support & Administrative2 | C32: 14 | D32: 0.01 | E32: 968 | F32: 410 | G32: 0.18 | H32: 2241 | I32: 3209
B33: Total Other | C33: 29 | D33: 0.03 | E33: 1016 | F33: 458 | G33: 0.2 | H33: 2315 | I33: 3331
A34: FCX Global | C34: 1957 | D34: 0.2 | E34: 9690 | F34: 2623 | G34: 0.31 | H34: 8531 | I34: 18221
A36: Amount Spent Locally Across Groups - FCX Global
A37: Small Businesses | C37: 395 | D37: 0.61 | E37: 653 | F37: 527 | G37: 0.63 | H37: 833 | I37: 1486
A38: Women and Minority Owned Businesses3 | C38: 133 | D38: 0.82 | E38: 163 | F38: 259 | G38: 0.65 | H38: 396 | I38: 559
A39: 1. Amounts include items such as software and IT services, construction and engineering services, consulting services, recruiting, utilities and unapplied credits.
A40: 2. Includes $1.3 billion of spend on PTFI's new downstream processing facilities.
A41: 3. Demographics are self-reported.
A42: Note: For our operations in North America, the Netherlands and Chile, local suppliers are identified as those located in the state/region where we have operations. For our operations in Spain and Peru, local suppliers are identified as those located in the city in which we operate. For our operations in the United Kingdom and Indonesia, local suppliers are identified as those in the counties/provinces surrounding our operations.

Sheet Supply Chain
A1: FCX—ESG PERFORMANCE DATA
A2: RESPONSIBLE SOURCING OF MINERALS AND METALS: SOURCE REVIEW OUTCOMES
A3: Year Ended December 31, 2024 | B3: Internal Sources | D3: External Sources
B4: Copper Concentrates | C4: Copper Cathode | D4: Copper Concentrates1 | E4: Copper Cathode2 | F4: Recycled Copper3 | G4: Molybdenum Concentrates4 | H4: Roasted Molybdenum Concentrates4 | I4: Others in Scope | J4: Total
A5: Risk Screening Results
A6: Red Flag | B6: 1 | C6: 0 | D6: 9 | E6: 2 | F6: 0 | G6: 2 | H6: 3 | I6: 0 | J6: 17
A7: Orange Flag | B7: 1 | C7: 1 | D7: 11 | E7: 0 | F7: 1 | G7: 6 | H7: 0 | I7: 1 | J7: 21
A8: Committee Review Results
A9: Acceptable Risk | B9: 2 | C9: 1 | D9: 11 | E9: 2 | F9: 0 | G9: 1 | H9: 3 | I9: 0 | J9: 20
A10: Moderate Risk | B10: 0 | C10: 0 | D10: 7 | E10: 0 | F10: 1 | G10: 7 | H10: 0 | I10: 1 | J10: 16
A11: Unacceptable Risk | B11: 0 | C11: 0 | D11: 0 | E11: 0 | F11: 0 | G11: 0 | H11: 0 | I11: 0 | J11: 0
A12: Pending | B12: 0 | C12: 0 | D12: 2 | E12: 0 | F12: 0 | G12: 0 | H12: 0 | I12: 0 | J12: 2
A13: 1. External copper concentrate was purchased only by our Atlantic Copper smelter in 2024.
A14: 2. External copper cathode was purchased primarily by our El Paso rod mill in 2024; a smaller amount was purchased by our Miami rod mill.
A15: 3. External recycled copper was purchased primarily by our Atlantic Copper smelter in 2024; a smaller amount was purchased by our Miami smelter. The origin of recycled copper was determined based on the Joint Due Diligence Standard for Copper, Lead, Molybdenum, Nickel and Zinc definition, which is as follows: The point in the supply chain where the recycled material is returned to the immediate supplier of the recycler.
A17: 4. Tolled unroasted molybdenum concentrates were processed at our Bagdad, Fort Madison, Rotterdam and Sierrita roasting facilities; tolled roasted molybdenum concentrates were processed at our Stowmarket ferromolybdenum plant. Tolling is an arrangement where materials are processed by a company on behalf of a client who retains ownership of the agreed to metals and/or volume of those materials.
A47: Note: Country groupings are based on the geographic regions defined under the Standard Country or Area Codes for Statistical Use (known as M49) of the United Nations Statistics Division, where Mexico is classified as Central America.

Sheet GHG Emissions
A1: FCX—ESG PERFORMANCE DATA
A2: GHG EMISSIONS (CO2e thousand metric tons)
A3: Years Ended December 31 | C3: 2020 | D3: 2021 | E3: 2022 | F3: 2023 | G3: 2024
A4: Scope 1 GHG Emissions
A5: Copper Mining | B5: North America
B6: Bagdad | C6: 162.715 | D6: 163.182 | E6: 179.776 | F6: 185.092 | G6: 210
B7: Chino/Cobre | C7: 53.111 | D7: 100.331 | E7: 87.19 | F7: 132.467 | G7: 146
B8: Morenci | C8: 627.797 | D8: 620.636 | E8: 656.64 | F8: 641.444 | G8: 638
B9: Safford/Lone Star | C9: 225.197 | D9: 185.084 | E9: 202.373 | F9: 244.308 | G9: 266
B10: Sierrita | C10: 119.19 | D10: 154.978 | E10: 145.309 | F10: 151.587 | G10: 149
B11: Tyrone | C11: 41.91 | D11: 40.622 | E11: 46.535 | F11: 51.257 | G11: 21
B12: South America
B13: Cerro Verde | C13: 564.127 | D13: 644.126 | E13: 664.044 | F13: 731.321 | G13: 804
B14: El Abra | C14: 80.54 | D14: 61.937 | E14: 84.379 | F14: 91.456 | G14: 97
B15: Indonesia
B16: Grasberg | C16: 2034.939 | D16: 2284.467 | E16: 2504.66 | F16: 2546.198 | G16: 2696
B17: Total Copper Mining | C17: 3909.526 | D17: 4255.365 | E17: 4570.905 | F17: 4775.13 | G17: 5028
A18: Molybdenum Mining | B18: North America
B19: Climax | C19: 34.558 | D19: 29.591 | E19: 57.48 | F19: 70.726 | G19: 82
B20: Henderson | C20: 17.232 | D20: 17.817 | E20: 17.159 | F20: 17.425 | G20: 19
B21: Total Molybdenum Mining | C21: 51.79 | D21: 47.408 | E21: 74.639 | F21: 88.151 | G21: 101
A22: Smelting & Refining | B22: North America
B23: El Paso Refinery & Rod | C23: 85.613 | D23: 100.043 | E23: 110.204 | F23: 88.34 | G23: 86
B24: Miami Smelter & Rod | C24: 98.602 | D24: 93.234 | E24: 97.114 | F24: 100.582 | G24: 102
B25: Europe
B26: Atlantic Copper Smelter & Refinery | C26: 60.149 | D26: 53.427 | E26: 47.266 | F26: 57.988 | G26: 63
B27: Kokkola Cobalt Refinery1 | C27: 3.184 | D27: - | E27: - | F27: - | G27: -
B28: Total Smelting & Refining | C28: 247.549 | D28: 246.704 | E28: 254.584 | F28: 246.91 | G28: 251
A29: Other | B29: Other
B30: Fort Madison Moly Special Products | C30: 17.107 | D30: 16.61 | E30: 19.856 | F30: 21.413 | G30: 20
B31: Rotterdam | C31: 8.238 | D31: 9.365 | E31: 7.752 | F31: 7.802 | G31: 8
B32: Stowmarket | C32: 0.088 | D32: 0.107 | E32: 0.086 | F32: 0.116 | G32: 0.1
B33: Total Other | C33: 25.433 | D33: 26.082 | E33: 27.694 | F33: 29.331 | G33: 28
A34: Total Scope 1 - FCX Global | C34: 4234.298 | D34: 4575.559 | E34: 4927.823 | F34: 5139.523 | G34: 5408
A35: Scope 22 GHG Emissions
A36: Copper Mining | B36: North America
B37: Bagdad3 | C37: 239.608 | D37: 160.233 | E37: 159.923 | F37: 172.192 | G37: 189
B38: Chino/Cobre | C38: 100.72 | D38: 130.793 | E38: 145.538 | F38: 133.472 | G38: 128
B39: Morenci | C39: 949.081 | D39: 763.267 | E39: 815.734 | F39: 819.272 | G39: 811
B40: Safford/Lone Star | C40: 138.629 | D40: 156.798 | E40: 156.53 | F40: 134.364 | G40: 154
B41: Sierrita | C41: 408.617 | D41: 356.594 | E41: 331.758 | F41: 324.665 | G41: 308
B42: Tyrone | C42: 80.071 | D42: 91.194 | E42: 91.193 | F42: 86.821 | G42: 76
B43: South America
B44: Cerro Verde3 | C44: 231.339 | D44: 315.557 | E44: 405.71 | F44: 493.411 | G44: 385
B45: El Abra3 | C45: 224.033 | D45: 222.73 | E45: 189.561 | F45: 0 | G45: 0
B46: Indonesia
B47: Grasberg2 | C47: 0 | D47: 0 | E47: 0 | F47: 0 | G47: 0
B48: Total Copper Mining | C48: 2372.098 | D48: 2197.166 | E48: 2295.947 | F48: 2164.198 | G48: 2051
A49: Molybdenum Mining | B49: North America
B50: Climax | C50: 66.231 | D50: 62.348 | E50: 74.891 | F50: 79.503 | G50: 80
B51: Henderson | C51: 103.584 | D51: 87.557 | E51: 86.794 | F51: 87.917 | G51: 81
B52: Total Molybdenum Mining | C52: 169.815 | D52: 149.905 | E52: 161.685 | F52: 167.419 | G52: 161
A53: Smelting & Refining | B53: North America
B54: El Paso Refinery & Rod | C54: 18.293 | D54: 15.493 | E54: 18.67 | F54: 14.022 | G54: 16
B55: Miami Smelter & Rod3 | C55: 207.312 | D55: 183.425 | E55: 227.545 | F55: 221.668 | G55: 199
B56: Europe
B57: Atlantic Copper Smelter & Refinery3 | C57: 65.954 | D57: 59.244 | E57: 42.169 | F57: 44.765 | G57: 41
B58: Kokkola Cobalt Refinery1 | C58: 6.675 | D58: - | E58: - | F58: - | G58: -
B59: Total Smelting & Refining | C59: 298.233 | D59: 258.162 | E59: 288.384 | F59: 280.454 | G59: 256
A60: Other | B60: Other
B61: Fort Madison Moly Special Products3 | C61: 15.698 | D61: 8.606 | E61: 11.146 | F61: 12.251 | G61: 16
B62: Rotterdam3 | C62: 0 | D62: 0 | E62: 0 | F62: 0 | G62: 0
B63: Stowmarket3 | C63: 0.286 | D63: 0.315 | E63: 0.3 | F63: 0.329 | G63: 0
B64: Total Other | C64: 15.984 | D64: 8.921 | E64: 11.446 | F64: 12.58 | G64: 16
A65: Total Scope 2 - FCX Global | C65: 2856.131 | D65: 2614.155 | E65: 2757.463 | F65: 2624.651 | G65: 2484
A66: Scope 1 + 22 GHG Emissions
A67: Copper Mining | C67: 6281.624 | D67: 6452.531 | E67: 6866.853 | F67: 6939.328 | G67: 7079
A68: Molybdenum Mining | C68: 221.605 | D68: 197.314 | E68: 236.324 | F68: 255.57 | G68: 261
A69: Smelting & Refining | C69: 545.782 | D69: 504.866 | E69: 542.969 | F69: 527.365 | G69: 507
A70: Other | C70: 41.417 | D70: 35.003 | E70: 39.14 | F70: 41.911 | G70: 44
A71: Total Scope 1 and 2 - FCX Global | C71: 7090.429 | D71: 7189.714 | E71: 7685.286 | F71: 7764.174 | G71: 7892
A73: Total Scope 3 - FCX Global | C73: 1729.251 | D73: 5179.522 | E73: 5892.373 | F73: 6428.197 | G73: 6564
A74: 1. In September 2021, FCX completed the sale of its remaining cobalt business based in Kokkola, Finland.
A75: 2. Scope 2 emissions have been calculated using a market-based method, where available. The market-based calculation of Scope 2 emissions utilizes emission factors that are available at the time of inventory close. Therefore, certain emission factors used in market-based calculations may be up to one year in arrears due to lag time. As required by the GHG Protocol, FCX’s location-based Scope 2 emissions are reported on the "Dual Reporting” tab. PTFI generates its own electricity, and as a result, there are no Scope 2 emissions associated with PTFI's Grasberg operations.
A79: 3. Denotes sites for which we have actively engaged in securing renewable electricity through a variety of instruments including renewable energy certificates, PPAs and renewable energy programs.
A81: Note: GHG emissions reported are from operating sites deemed under FCX's operational control per the GHG Protocol. FCX's GHG emissions assurance statement is in the 2024 Annual Report on Sustainability available at fcx.com/sustainability.

Sheet GHG Emissions - 2030 Targets
A1: FCX—ESG PERFORMANCE DATA
A2: GHG EMISSIONS: 2030 REDUCTION TARGET PERFORMANCE | C2: Years Ended December 31
B3: Baseline Year 2018 | C3: 2020 | D3: 2021 | E3: 2022 | F3: 2023 | G3: 2024 | H3: Target Year 2030
A4: Intensity Reduction Targets¹ (CO2e metric tons/metric ton copper)
A5: Americas Copper2 - 15% intensity reduction | B5: 3.72 | C5: 3.81 | D5: 3.59 | E5: 3.63 | F5: 3.776406478 | G5: 3.99 | H5: 3.17
A6: PTFI Grasberg3 - 30% intensity reduction | B6: 4.76 | C6: 5.4 | D6: 3.71 | E6: 3.52 | F6: 3.38 | G6: 3.3 | H6: 3.34
A7: Absolute Reduction Targets4 (CO2e thousand metric tons)
A8: Atlantic Copper Smelter & Refinery - 50% absolute reduction | B8: 176.865 | C8: 126.103 | D8: 112.671 | E8: 89.435 | F8: 102.753 | G8: 104 | H8: 88.432
A9: Primary Molybdenum Sites5 - 35% absolute reduction | B9: 308.136 | C9: 263.023 | D9: 232.317 | E9: 275.464 | F9: 297.481 | G9: 305 | H9: 200.288
A10: 1. Intensity reduction targets (CO2e metric tons / metric ton copper) include total (Scope 1 and 2) emissions and do not include by-products in the denominator.
A11: 2. Americas Copper (for target) includes Bagdad, Cerro Verde, Chino (including Cobre), El Abra, Morenci, Safford (including Lone Star), Sierrita and Tyrone mines as well as the Miami smelter and El Paso refinery. This target includes all payable copper, including payable copper in concentrate and cathode, but excludes rod and wire; GHG emissions associated with the production of by-product molybdenum are also included.
A14: 3. PTFI Grasberg's intensity reduction target is based on payable copper produced in concentrate. In 2024, PTFI concentrate was smelted and refined by PT Smelting (PTS) and third-party smelters/refineries whose emissions are currently accounted for as our Scope 3 emissions and therefore not included in this target. Following completion of the PTS expansion in 2023 and construction and ramp-up of PTFI's new downstream processing facilities in 2025, we plan to review the GHG emissions categorizations for these operations. Certain of these emissions may be reclassified from Scope 3 to Scopes 1 or 2. Following this review, we may adjust our PTFI target and baseline in line with the GHG Protocol.
A18: 4. Absolute targets include total (Scope 1 and 2) emissions.
A19: 5. Primary molybdenum sites target includes Climax and Henderson mines located in the U.S., and downstream molybdenum processing facilities located in the U.S., U.K. and the Netherlands (Fort Madison, Stowmarket and Rotterdam, respectively).
A21: Note: Where available and applicable, market-based emission factors were used to calculate Scope 2 emissions reflected in this table.

Sheet Dual Reporting
A1: FCX—ESG PERFORMANCE DATA
A2: SCOPE 2 GHG EMISSIONS: DUAL REPORTING (CO2e thousand metric tons)
A3: Year Ended December 31, 2024 | C3: Location-Based1 | D3: Market-Based2
A4: Copper Mining | B4: North America
B5: Bagdad3 | C5: 200 | D5: 189
B6: Chino/Cobre | C6: 121 | D6: 128
B7: Morenci | C7: 773 | D7: 811
B8: Safford/Lone Star | C8: 147 | D8: 154
B9: Sierrita | C9: 229 | D9: 308
B10: Tyrone | C10: 72 | D10: 76
B11: South America
B12: Cerro Verde3 | C12: 630 | D12: 385
B13: El Abra3 | C13: 139 | D13: 0
B14: Indonesia
B15: Grasberg4 | C15: 0 | D15: 0
B16: Total Copper Mining | C16: 2311 | D16: 2051
A17: Molybdenum Mining | B17: North America
B18: Climax | C18: 92 | D18: 80
B19: Henderson | C19: 94 | D19: 81
B20: Total Molybdenum Mining | C20: 187 | D20: 161
A21: Smelting & Refining | B21: North America
B22: El Paso Refinery & Rod | C22: 26 | D22: 16
B23: Miami Smelter & Rod3 | C23: 180 | D23: 199
B24: Europe
B25: Atlantic Copper Smelter & Refinery3 | C25: 32 | D25: 41
B26: Total Smelting & Refining | C26: 237 | D26: 256
A27: Other | B27: Other
B28: Fort Madison Moly Special Products3 | C28: 13 | D28: 16
B29: Rotterdam3 | C29: 5 | D29: 0
B30: Stowmarket3 | C30: 0.3 | D30: 0
B31: Total Other | C31: 18 | D31: 16
A32: Total Scope 2 - FCX Global | C32: 2752 | D32: 2484
A33: 1. Location-based emission factors were based on regional or national grid-average emission factors in regions where FCX operates.
A35: 2. Market-based emission factors were not applicable or available for certain markets were we operate, and therefore, location-based emission factors have been used in accordance with GHG Protocol - Scope 2 Guidance. The market-based calculation of Scope 2 emissions utilizes emission factors that are available at the time of inventory close. Therefore, certain emission factors used in market-based calculations may be up to one year in arrears due to lag time.
A40: 3. Denotes sites for which we have actively engaged in securing renewable electricity through a variety of instruments including renewable energy certificates, PPAs and renewable energy programs.
A43: 4. PTFI generates its own electricity in the Grasberg minerals district; as a result, there are no Scope 2 emissions associated with Grasberg operations.
A45: Note: GHG emissions reported are from operating sites deemed under FCX's operational control per the GHG Protocol. FCX's GHG emissions assurance statement is in the 2024 Annual Report on Sustainability available at fcx.com/sustainability.

Sheet Scope 3 GHG Emissions (by site)
A1: FCX—ESG PERFORMANCE DATA
A2: SCOPE 3 EMISSIONS (CO2e thousand metric tons)
A3: Year Ended December 31, 2024
A4: Scope 3 Emissions Categories | B4: COPPER MINING | L4: MOLYBDENUM MINING | O4: SMELTING & REFINING | T4: OTHER | X4: FCX TOTAL
B5: NORTH AMERICA | H5: SOUTH AMERICA | J5: INDONESIA | K5: TOTAL COPPER MINING | L5: NORTH AMERICA | N5: TOTAL MOLYBDENUM MINING | O5: NORTH AMERICA | Q5: EUROPE | R5: INDONESIA | S5: TOTAL SMELTING & REFINING | T5: OTHER | W5: TOTAL OTHER
B6: Bagdad | C6: Chino/Cobre | D6: Morenci | E6: Safford/Lone Star | F6: Sierrita | G6: Tyrone | H6: Cerro Verde | I6: El Abra | J6: Grasberg | L6: Climax | M6: Henderson | O6: El Paso Refinery & Rod | P6: Miami Smelter & Rod | Q6: Atlantic Copper Smelter & Refinery | R6: Downstream Construction Projects1 | T6: Fort Madison Moly Special Products | U6: Rotterdam | V6: Stowmarket
A7: Upstream
A8: Category 1: Purchased goods and services | B8: 106 | C8: 78 | D8: 429 | E8: 153 | F8: 126 | G8: 33 | H8: 394 | I8: 159 | J8: 1021 | K8: 2498 | L8: 75 | M8: 27 | N8: 102 | O8: 13 | P8: 55 | Q8: 339 | R8: 177 | S8: 584 | T8: 14 | U8: 5 | V8: 2 | W8: 22 | X8: 3206
A9: Category 2: Capital goods | B9: Included above | C9: Included above | D9: Included above | E9: Included above | F9: Included above | G9: Included above | H9: Included above | I9: Included above | J9: Included above | K9: Included above | L9: Included above | M9: Included above | N9: Included above | O9: Included above | P9: Included above | Q9: Included above | R9: Included above | S9: Included above | T9: Included above | U9: Included above | V9: Included above | W9: Included above | X9: Included above
A10: Category 3: Fuel and energy-related activities2 | B10: 93 | C10: 57 | D10: 319 | E10: 90 | F10: 86 | G10: 21 | H10: 412 | I10: 77 | J10: 293 | K10: 1449 | L10: 32 | M10: 19 | N10: 52 | O10: 21 | P10: 60 | Q10: 23 | R10: 0 | S10: 104 | T10: 7 | U10: 2 | V10: 0 | W10: 9 | X10: 1615
A11: Category 4: Upstream transportation and distribution | B11: 14 | C11: 18 | D11: 55 | E11: 14 | F11: 13 | G11: 5 | H11: 112 | I11: 18 | J11: 68 | K11: 317 | L11: 0 | M11: 0 | N11: 0 | O11: 43 | P11: 70 | Q11: 30 | R11: 0 | S11: 142 | T11: 0 | U11: 3 | V11: 0 | W11: 3 | X11: 463
A12: Category 5: Waste generated in operations | B12: Not relevant | C12: Not relevant | D12: Not relevant | E12: Not relevant | F12: Not relevant | G12: Not relevant | H12: Not relevant | I12: Not relevant | J12: Not relevant | K12: Not relevant | L12: Not relevant | M12: Not relevant | N12: Not relevant | O12: Not relevant | P12: Not relevant | Q12: Not relevant | R12: Not relevant | S12: Not relevant | T12: Not relevant | U12: Not relevant | V12: Not relevant | W12: Not relevant | X12: Not relevant
A13: Category 6: Business travel | B13: Not relevant | C13: Not relevant | D13: Not relevant | E13: Not relevant | F13: Not relevant | G13: Not relevant | H13: Not relevant | I13: Not relevant | J13: Not relevant | K13: Not relevant | L13: Not relevant | M13: Not relevant | N13: Not relevant | O13: Not relevant | P13: Not relevant | Q13: Not relevant | R13: Not relevant | S13: Not relevant | T13: Not relevant | U13: Not relevant | V13: Not relevant | W13: Not relevant | X13: Not relevant
A14: Category 7: Employee commuting | B14: Not relevant | C14: Not relevant | D14: Not relevant | E14: Not relevant | F14: Not relevant | G14: Not relevant | H14: Not relevant | I14: Not relevant | J14: Not relevant | K14: Not relevant | L14: Not relevant | M14: Not relevant | N14: Not relevant | O14: Not relevant | P14: Not relevant | Q14: Not relevant | R14: Not relevant | S14: Not relevant | T14: Not relevant | U14: Not relevant | V14: Not relevant | W14: Not relevant | X14: Not relevant
A15: Category 8: Upstream leased assets | B15: Not relevant | C15: Not relevant | D15: Not relevant | E15: Not relevant | F15: Not relevant | G15: Not relevant | H15: Not relevant | I15: Not relevant | J15: Not relevant | K15: Not relevant | L15: Not relevant | M15: Not relevant | N15: Not relevant | O15: Not relevant | P15: Not relevant | Q15: Not relevant | R15: Not relevant | S15: Not relevant | T15: Not relevant | U15: Not relevant | V15: Not relevant | W15: Not relevant | X15: Not relevant
A17: Downstream
A18: Category 9: Downstream transportation and distribution2 | B18: 0 | C18: 0 | D18: 0 | E18: 0 | F18: 0 | G18: 0 | H18: 0 | I18: 0 | J18: 0 | K18: 0 | L18: 0 | M18: 0 | N18: 0 | O18: 6 | P18: 0 | Q18: 0 | R18: 0 | S18: 6 | T18: 0 | U18: 0 | V18: 0 | W18: 0 | X18: 6
A19: Category 10: Processing of sold products2 | B19: 0 | C19: 4 | D19: 16 | E19: 1 | F19: 0 | G19: 1 | H19: 436 | I19: 11 | J19: 772 | K19: 1241 | L19: 0 | M19: 0 | N19: 0 | O19: 3 | P19: 0 | Q19: 30 | R19: 0 | S19: 33 | T19: 0 | U19: 0 | V19: 0 | W19: 0 | X19: 1275
A20: Category 11: Use of sold products | B20: Not relevant | C20: Not relevant | D20: Not relevant | E20: Not relevant | F20: Not relevant | G20: Not relevant | H20: Not relevant | I20: Not relevant | J20: Not relevant | K20: Not relevant | L20: Not relevant | M20: Not relevant | N20: Not relevant | O20: Not relevant | P20: Not relevant | Q20: Not relevant | R20: Not relevant | S20: Not relevant | T20: Not relevant | U20: Not relevant | V20: Not relevant | W20: Not relevant | X20: Not relevant
A21: Category 12: End-of-life treatment of sold products | B21: Not relevant | C21: Not relevant | D21: Not relevant | E21: Not relevant | F21: Not relevant | G21: Not relevant | H21: Not relevant | I21: Not relevant | J21: Not relevant | K21: Not relevant | L21: Not relevant | M21: Not relevant | N21: Not relevant | O21: Not relevant | P21: Not relevant | Q21: Not relevant | R21: Not relevant | S21: Not relevant | T21: Not relevant | U21: Not relevant | V21: Not relevant | W21: Not relevant | X21: Not relevant
A22: Category 13: Downstream leased assets | B22: Not relevant | C22: Not relevant | D22: Not relevant | E22: Not relevant | F22: Not relevant | G22: Not relevant | H22: Not relevant | I22: Not relevant | J22: Not relevant | K22: Not relevant | L22: Not relevant | M22: Not relevant | N22: Not relevant | O22: Not relevant | P22: Not relevant | Q22: Not relevant | R22: Not relevant | S22: Not relevant | T22: Not relevant | U22: Not relevant | V22: Not relevant | W22: Not relevant | X22: Not relevant
A23: Category 14: Franchises | B23: Not relevant | C23: Not relevant | D23: Not relevant | E23: Not relevant | F23: Not relevant | G23: Not relevant | H23: Not relevant | I23: Not relevant | J23: Not relevant | K23: Not relevant | L23: Not relevant | M23: Not relevant | N23: Not relevant | O23: Not relevant | P23: Not relevant | Q23: Not relevant | R23: Not relevant | S23: Not relevant | T23: Not relevant | U23: Not relevant | V23: Not relevant | W23: Not relevant | X23: Not relevant
A24: Category 15: Investments | B24: Not relevant | C24: Not relevant | D24: Not relevant | E24: Not relevant | F24: Not relevant | G24: Not relevant | H24: Not relevant | I24: Not relevant | J24: Not relevant | K24: Not relevant | L24: Not relevant | M24: Not relevant | N24: Not relevant | O24: Not relevant | P24: Not relevant | Q24: Not relevant | R24: Not relevant | S24: Not relevant | T24: Not relevant | U24: Not relevant | V24: Not relevant | W24: Not relevant | X24: Not relevant
A25: Total Scope 3 Emissions | B25: 213 | C25: 158 | D25: 820 | E25: 257 | F25: 226 | G25: 60 | H25: 1354 | I25: 265 | J25: 2154 | K25: 5506 | L25: 107 | M25: 47 | N25: 154 | O25: 86 | P25: 184 | Q25: 422 | R25: 177 | S25: 870 | T25: 21 | U25: 11 | V25: 2 | W25: 34 | X25: 6564
A26: 1. Reflects emissions associated with the construction of PTFI's new smelter and precious metals refinery.
A27: 2. Reflects calculations based on activity data rather than on spend data.
A28: Note: Categories determined “not relevant” have been assessed based on the relevance test in accordance with the GHG Protocol. For boundaries, methodologies, and emission factors used, please see EY's Limited Assurance Report Management Schedule in the 2024 Annual Report on Sustainability available at fcx.com/sustainability.

Sheet Energy Consumption
A1: FCX—ESG PERFORMANCE DATA
A2: ENERGY CONSUMPTION BY SITE (terajoules)
A3: Years Ended December 31 | C3: 2020 | D3: 2021 | E3: 2022 | F3: 2023 | G3: 2024
C4: Direct Energy
A5: Copper Mining | B5: North America
B6: Bagdad | C6: 2077 | D6: 2024.4 | E6: 2235 | F6: 2294 | G6: 2597
B7: Chino/Cobre | C7: 706 | D7: 1473.7 | E7: 1108 | F7: 1951 | G7: 2126
B8: Morenci | C8: 8088 | D8: 7975.25 | E8: 8295 | F8: 8163 | G8: 8045
B9: Safford/Lone Star | C9: 2008 | D9: 2244.03 | E9: 2491 | F9: 2945 | G9: 3206
B10: Sierrita | C10: 1513 | D10: 1954.88 | E10: 1850 | F10: 1927 | G10: 1883
B11: Tyrone | C11: 515 | D11: 501.65 | E11: 571 | F11: 634 | G11: 261
B12: South America
B13: Cerro Verde | C13: 7093 | D13: 7980.66 | E13: 8339 | F13: 9168 | G13: 10046
B14: El Abra | C14: 1031 | D14: 756.89 | E14: 1031 | F14: 1121 | G14: 1181
B15: Indonesia
B16: Grasberg | C16: 24217 | D16: 26422.23 | E16: 28854.1 | F16: 30239 | G16: 32276
B17: Total Copper Mining | C17: =SUM(C6:C16) -> 47248 | D17: 51333.69 | E17: =SUM(E6:E16) -> 54774.1 | F17: =SUM(F6:F16) -> 58442 | G17: 61620
A18: Molybdenum Mining | B18: North America
B19: Climax | C19: 497 | D19: 424.49 | E19: 779 | F19: 944 | G19: 1075
B20: Henderson | C20: 325 | D20: 332.88 | E20: 319 | F20: 322 | G20: 353
B21: Total Molybdenum Mining | C21: =SUM(C19:C20) -> 822 | D21: 757.37 | E21: =SUM(E19:E20) -> 1098 | F21: =SUM(F19:F20) -> 1266 | G21: =SUM(G19:G20) -> 1428
A22: Smelting & Refining | B22: North America
B23: El Paso Refinery & Rod | C23: 1694 | D23: 1981.39 | E23: 2184 | F23: 1749 | G23: 1704
B24: Miami Smelter & Rod | C24: 1910 | D24: 1790.38 | E24: 1869 | F24: 1876 | G24: 1901
B25: Europe
B26: Atlantic Copper Smelter & Refinery | C26: 895 | D26: 800.19 | E26: 725 | F26: 866 | G26: 932
B27: Kokkola Cobalt Refinery1 | C27: 53 | D27: - | E27: - | F27: - | G27: -
B28: Total Smelting & Refining | C28: =SUM(C23:C27) -> 4552 | D28: =SUM(D23:D27) -> 4571.96 | E28: =SUM(E23:E27) -> 4778 | F28: =SUM(F23:F27) -> 4491 | G28: =SUM(G23:G27) -> 4537
A29: Other | B29: Other
B30: Fort Madison Moly Special Products | C30: 339 | D30: 327.47 | E30: 393 | F30: 414 | G30: 377
B31: Rotterdam | C31: 163 | D31: 184.73 | E31: 153 | F31: 155 | G31: 162
B32: Stowmarket | C32: 1 | D32: 1.56 | E32: 1 | F32: 1 | G32: 1
B33: Total Other | C33: =SUM(C30:C32) -> 503 | D33: 513.76 | E33: =SUM(E30:E32) -> 547 | F33: =SUM(F30:F32) -> 570 | G33: 541
A34: Total Direct Energy Consumption - FCX Global | C34: 53127 | D34: 57177 | E34: =E33+E28+E21+E17 -> 61197.1 | F34: =F33+F28+F21+F17 -> 64769 | G34: 68127
C35: Indirect Energy
A36: Copper Mining | B36: North America
B37: Bagdad | C37: 2088 | D37: 1852.77 | E37: 1871 | F37: 2044 | G37: 2115
B38: Chino/Cobre | C38: 886 | D38: 1067.86 | E38: 1225 | F38: 1172 | G38: 1240
B39: Morenci | C39: 8251 | D39: 7844.26 | E39: 8393 | F39: 8492 | G39: 8178
B40: Safford/Lone Star | C40: 1203 | D40: 1610.82 | E40: 1611 | F40: 1392 | G40: 1551
B41: Sierrita | C41: 2315 | D41: 2178.98 | E41: 2297 | F41: 2413 | G41: 2424
B42: Tyrone | C42: 715 | D42: 749.5 | E42: 767 | F42: 764 | G42: 735
B43: South America
B44: Cerro Verde | C44: 11005 | D44: 12457.78 | E44: 13111 | F44: 13390 | G44: 13108
B45: El Abra | C45: 1988 | D45: 2052.29 | E45: 2270 | F45: 2398 | G45: 2477
B46: Indonesia
B47: Grasberg2 | C47: 0 | D47: 0 | E47: 0 | F47: 0 | G47: 0
B48: Total Copper Mining | C48: =SUM(C37:C47) -> 28451 | D48: 29814.26 | E48: =SUM(E37:E47) -> 31545 | F48: =SUM(F37:F47) -> 32065 | G48: =SUM(G37:G47) -> 31828
A49: Molybdenum Mining | B49: North America
B50: Climax | C50: 464 | D50: 472.53 | E50: 572 | F50: 636 | G50: 671
B51: Henderson | C51: 726 | D51: 663.59 | E51: 663 | F51: 703 | G51: 684
B52: Total Molybdenum Mining | C52: =SUM(C50:C51) -> 1190 | D52: 1136.12 | E52: =SUM(E50:E51) -> 1235 | F52: =SUM(F50:F51) -> 1339 | G52: =SUM(G50:G51) -> 1355
A53: Smelting & Refining | B53: North America
B54: El Paso Refinery & Rod | C54: 269 | D54: 240.4 | E54: 286 | F54: 227 | G54: 261
B55: Miami Smelter & Rod | C55: 1889 | D55: 1665.34 | E55: 1837 | F55: 1781 | G55: 1902
B56: Europe
B57: Atlantic Copper Smelter & Refinery | C57: 1032 | D57: 1015.61 | E57: 804 | F57: 960 | G57: 947
B58: Kokkola Cobalt Refinery1 | C58: 98 | D58: - | E58: - | F58: - | G58: -
B59: Total Smelting & Refining | C59: =SUM(C54:C58) -> 3288 | D59: =SUM(D54:D58) -> 2921.35 | E59: =SUM(E54:E58) -> 2927 | F59: =SUM(F54:F58) -> 2968 | G59: =SUM(G54:G58) -> 3110
A60: Other | B60: Other
B61: Fort Madison Moly Special Products | C61: 145 | D61: 110.79 | E61: 114 | F61: 115 | G61: 159
B62: Rotterdam | C62: 46 | D62: 47.07 | E62: 49 | F62: 53 | G62: 46
B63: Stowmarket | C63: 4 | D63: 5.34 | E63: 5 | F63: 6 | G63: 5
B64: Total Other | C64: =SUM(C61:C63) -> 195 | D64: 163.2 | E64: =SUM(E61:E63) -> 168 | F64: =SUM(F61:F63) -> 174 | G64: 210
A65: Total Indirect Energy Consumption - FCX Global | C65: 33125 | D65: 34034.93 | E65: =SUM(E64+E59+E52+E48) -> 35875 | F65: 36548 | G65: =SUM(G64+G59+G52+G48) -> 36503
C66: Total Energy
A67: Copper Mining | C67: =+C17+C48 -> 75699 | D67: =+D17+D48 -> 81147.95 | E67: =E48+E17 -> 86319.1 | F67: =F48+F17 -> 90507 | G67: 93449
A68: Molybdenum Mining | C68: =+C21+C52 -> 2012 | D68: =+D21+D52 -> 1893.49 | E68: =E52+E21 -> 2333 | F68: =F52+F21 -> 2605 | G68: 2783
A69: Smelting & Refining | C69: =+C28+C59 -> 7840 | D69: =+D28+D59 -> 7493.31 | E69: =E59+E28 -> 7705 | F69: 7461 | G69: 7648
A70: Other | C70: =+C33+C64 -> 698 | D70: =+D33+D64 -> 676.96 | E70: =E64+E33 -> 715 | F70: =F64+F33 -> 744 | G70: 751
A71: Total Energy Consumption - FCX Global | C71: =SUM(C67:C70) -> 86249 | D71: 91211.71 | E71: =SUM(E67:E70) -> 97072.1 | F71: =SUM(F67:F70) -> 101317 | G71: 104630
A72: 1. In September 2021, FCX completed the sale of its remaining cobalt business based in Kokkola, Finland.
A73: 2. PTFI generates its own electricity in the Grasberg minerals district; as a result, there is no indirect energy associated with Grasberg operations.

Sheet Energy Consumption (by type)
A1: FCX—ESG PERFORMANCE DATA
A2: ENERGY CONSUMPTION BY TYPE (terajoules, except percentages)
C3: Direct Energy | F3: Indirect Energy | I3: Total Energy | L3: % Renewable
A4: Year Ended December 31, 2024 | C4: Renewable | D4: Nonrenewable | E4: Total | F4: Renewable | G4: Nonrenewable | H4: Total | I4: Renewable | J4: Nonrenewable | K4: Total
A5: Copper Mining | B5: North America
B6: Bagdad | C6: 0 | D6: 2597 | E6: 2597 | F6: 587 | G6: 1528 | H6: 2115 | I6: 587 | J6: 4124 | K6: 4711 | L6: 0.12
B7: Chino/Cobre | C7: 0 | D7: 2126 | E7: 2126 | F7: 119 | G7: 1121 | H7: 1240 | I7: 119 | J7: 3247 | K7: 3366 | L7: 0.04
B8: Morenci | C8: 0 | D8: 8045 | E8: 8045 | F8: 1200 | G8: 6979 | H8: 8178 | I8: 1200 | J8: 15024 | K8: 16224 | L8: 0.07
B9: Safford/Lone Star | C9: 0 | D9: 3206 | E9: 3206 | F9: 227 | G9: 1324 | H9: 1551 | I9: 227 | J9: 4530 | K9: 4756 | L9: 0.05
B10: Sierrita | C10: 0 | D10: 1883 | E10: 1883 | F10: 318 | G10: 2107 | H10: 2424 | I10: 318 | J10: 3989 | K10: 4307 | L10: 0.07
B11: Tyrone | C11: 0 | D11: 261 | E11: 261 | F11: 62 | G11: 673 | H11: 735 | I11: 62 | J11: 934 | K11: 996 | L11: 0.06
B12: South America
B13: Cerro Verde | C13: 501 | D13: 9545 | E13: 10046 | F13: 9674 | G13: 3434 | H13: 13108 | I13: 10175 | J13: 12979 | K13: 23154 | L13: 0.44
B14: El Abra | C14: 0 | D14: 1181 | E14: 1181 | F14: 2477 | G14: 0 | H14: 2477 | I14: 2477 | J14: 1181 | K14: 3658 | L14: 0.68
B15: Indonesia
B16: Grasberg | C16: 1606 | D16: 30670 | E16: 32276 | F16: 0 | G16: 0 | H16: 0 | I16: 1606 | J16: 30670 | K16: 32276 | L16: 0.05
B17: Total Copper Mining | C17: 2108 | D17: 59513 | E17: 61620 | F17: 14663 | G17: 17165 | H17: 31828 | I17: 16771 | J17: 76678 | K17: 93449 | L17: 0.18
A18: Molybdenum Mining | B18: North America
B19: Climax | C19: 0 | D19: 1075 | E19: 1075 | F19: 268 | G19: 403 | H19: 671 | I19: 268 | J19: 1477 | K19: 1745 | L19: 0.15
B20: Henderson | C20: 12 | D20: 342 | E20: 353 | F20: 274 | G20: 410 | H20: 684 | I20: 285 | J20: 752 | K20: 1037 | L20: 0.27
B21: Total Molybdenum Mining | C21: 12 | D21: 1416 | E21: 1428 | F21: 542 | G21: 813 | H21: 1355 | I21: 554 | J21: 2229 | K21: 2783 | L21: 0.1984897519
A22: Smelting & Refining | B22: North America
B23: El Paso Refinery & Rod | C23: 0 | D23: 1704 | E23: 1704 | F23: 10 | G23: 251 | H23: 261 | I23: 10 | J23: 1955 | K23: 1965 | L23: 0.01
B24: Miami Smelter & Rod | C24: 0 | D24: 1901 | E24: 1901 | F24: 300 | G24: 1602 | H24: 1902 | I24: 300 | J24: 3503 | K24: 3803 | L24: 0.08
B25: Europe
B26: Atlantic Copper Smelter & Refinery | C26: 0 | D26: 932 | E26: 932 | F26: 401 | G26: 545 | H26: 947 | I26: 401 | J26: 1478 | K26: 1879 | L26: 0.21
B27: Total Smelting & Refining | C27: 0 | D27: 4537 | E27: 4537 | F27: 712 | G27: 2398 | H27: 3110 | I27: 712 | J27: 6935 | K27: 7648 | L27: 0.09297763829
A28: Other | B28: Other
B29: Fort Madison Moly Special Products | C29: 0 | D29: 377 | E29: 377 | F29: 66 | G29: 93 | H29: 159 | I29: 66 | J29: 470 | K29: 536 | L29: 0.12
B30: Rotterdam | C30: 0 | D30: 162 | E30: 162 | F30: 46 | G30: 0 | H30: 46 | I30: 46 | J30: 162 | K30: 208 | L30: 0.22
B31: Stowmarket | C31: 0 | D31: 1 | E31: 1 | F31: 5 | G31: 0 | H31: 5 | I31: 5 | J31: 1 | K31: 7 | L31: 0.79
B32: Total Other | C32: 0 | D32: 541 | E32: 541 | F32: 117 | G32: 93 | H32: 210 | I32: 117 | J32: 634 | K32: 751 | L32: 0.155792277
A33: Total - FCX Global | C33: 2120 | D33: 66007 | E33: 68127 | F33: 16034 | G33: 20469 | H33: 36503 | I33: 18154 | J33: 86476 | K33: 104630 | L33: 0.17
A34: Note: Renewable energy sources include wind, solar, hydro, biomass and geothermal contracts for energy consumption, and a percentage associated with biofuels used on-site.

Sheet Indirect Energy (by source)
A1: FCX—ESG PERFORMANCE DATA
A2: INDIRECT ENERGY CONSUMPTION BY SOURCE (terajoules)
A3: Year Ended December 31, 2024 | C3: Geothermal | D3: Solar | E3: Wind | F3: Nuclear | G3: Hydro | H3: Biomass | I3: Other Fossil | J3: Natural Gas | K3: Oil | L3: Coal/Coke | M3: Other
A4: Copper Mining | B4: North America
B5: Bagdad1 | C5: 73.81 | D5: 171.73 | E5: 161.79 | F5: 377.52 | G5: 173.85 | H5: 5.92 | I5: 0 | J5: 916.61 | K5: 0 | L5: 233.7 | M5: 0
B6: Chino/Cobre | C6: 18.73 | D6: 43.66 | E6: 41.05 | F6: 95.87 | G6: 14.26 | H6: 1.49 | I6: 0 | J6: 965.92 | K6: 0 | L6: 59.28 | M6: 0
B7: Morenci | C7: 188.1 | D7: 439.18 | E7: 413.83 | F7: 965.06 | G7: 143.12 | H7: 15.54 | I7: 0 | J7: 5416.58 | K7: 0 | L7: 597.03 | M7: 0
B8: Safford/Lone Star | C8: 35.66 | D8: 82.95 | E8: 78.15 | F8: 182.5 | G8: 26.98 | H8: 2.95 | I8: 0 | J8: 1028.48 | K8: 0 | L8: 112.88 | M8: 0
B9: Sierrita | C9: 0 | D9: 150.31 | E9: 167.28 | F9: 0 | G9: 0 | H9: 0 | I9: 0 | J9: 1250.95 | K9: 0 | L9: 606.08 | M9: 249.71
B10: Tyrone | C10: 9.78 | D10: 22.71 | E10: 21.39 | F10: 49.84 | G10: 7.42 | H10: 0.81 | I10: 0 | J10: 592.26 | K10: 0 | L10: 30.87 | M10: 0
B11: South America
B12: Cerro Verde | C12: 0 | D12: 91.8 | E12: 616.1 | F12: 0 | G12: 8952.6 | H12: 13.1 | I12: 0 | J12: 3408 | K12: 26.2 | L12: 0 | M12: 0
B13: El Abra1 | C13: 0 | D13: 916.45 | E13: 99.08 | F13: 0 | G13: 1461.37 | H13: 0 | I13: 0 | J13: 0 | K13: 0 | L13: 0 | M13: 0
B14: Indonesia
B15: Grasberg2 | C15: 0 | D15: 0 | E15: 0 | F15: 0 | G15: 0 | H15: 0 | I15: 0 | J15: 0 | K15: 0 | L15: 0 | M15: 0
B16: Total Copper Mining | C16: 326.08 | D16: 1918.8 | E16: 1598.6 | F16: 1670.79 | G16: 10779.7 | H16: 39.8 | I16: 0 | J16: 13578.8 | K16: 26.22 | L16: 1639.84 | M16: 249.71
A17: Molybdenum Mining | B17: North America
B18: Climax | C18: 0 | D18: 26.83 | E18: 214.66 | F18: 67.08 | G18: 26.83 | H18: 0 | I18: 0 | J18: 201.25 | K18: 0 | L18: 127.46 | M18: 6.71
B19: Henderson | C19: 0 | D19: 27.35 | E19: 218.84 | F19: 68.39 | G19: 27.35 | H19: 0 | I19: 0 | J19: 205.16 | K19: 0 | L19: 129.93 | M19: 6.84
B20: Total Molybdenum Mining | C20: 0 | D20: 54.18 | E20: 433.5 | F20: 135.47 | G20: 54.18 | H20: 0 | I20: 0 | J20: 406.41 | K20: 0 | L20: 257.39 | M20: 13.55
A21: Smelting & Refining | B21: North America
B22: El Paso Refinery & Rod | C22: 0 | D22: 10.45 | E22: 0 | F22: 100.09 | G22: 0 | H22: 0 | I22: 0 | J22: 107.67 | K22: 0 | L22: 0 | M22: 43.12
B23: Miami Smelter & Rod1 | C23: 63.34 | D23: 173.28 | E23: 12.74 | F23: 358.74 | G23: 43.75 | H23: 7.23 | I23: 0 | J23: 766.55 | K23: 0 | L23: 326.21 | M23: 150.27
B24: Europe
B25: Atlantic Copper Smelter & Refinery1 | C25: 0 | D25: 103.21 | E25: 212.1 | F25: 226.3 | G25: 63.44 | H25: 22.72 | I25: 48.29 | J25: 205.47 | K25: 12.31 | L25: 33.14 | M25: 19.88
B26: Total Smelting & Refining | C26: 63.34 | D26: 286.94 | E26: 224.84 | F26: 685.13 | G26: 107.19 | H26: 29.95 | I26: 48.29 | J26: 1079.69 | K26: 12.31 | L26: 359.35 | M26: 213.27
A27: Other | B27: Other
B28: Fort Madison Moly Special Products1 | C28: 0 | D28: 0.54 | E28: 65.38 | F28: 0 | G28: 0.11 | H28: 0 | I28: 0 | J28: 64.35 | K28: 0.02 | L28: 21.84 | M28: 6.69
B29: Rotterdam1 | C29: 0 | D29: 0 | E29: 3.19 | F29: 0 | G29: 42.73 | H29: 0 | I29: 0 | J29: 0 | K29: 0 | L29: 0 | M29: 0
B30: Stowmarket1 | C30: 0 | D30: 1.23 | E30: 3.77 | F30: 0 | G30: 0.18 | H30: 0 | I30: 0 | J30: 0 | K30: 0 | L30: 0 | M30: 0
B31: Total Other | C31: 0 | D31: 1.77 | E31: 72.34 | F31: 0 | G31: 43.02 | H31: 0 | I31: 0 | J31: 64.35 | K31: 0.02 | L31: 21.84 | M31: 6.69
A32: Total - FCX Global | C32: 389.42 | D32: 2445.2 | E32: 2329.3 | F32: 2491.39 | G32: 10984 | H32: 69.76 | I32: 48.29 | J32: 15129.3 | K32: 38.5 | L32: 2278.42 | M32: 483.22
A33: 1. Denotes sites for which we have actively engaged in securing renewable electricity through a variety of instruments including renewable energy certificates, PPAs and renewable energy programs.
A34: 2. PTFI generates its own electricity in the Grasberg minerals district; as a result, there is no indirect energy associated with Grasberg operations.
A35: Note: Indirect energy consumption is calculated using resource mix, which comes from supplier data, when available.

Sheet Direct Energy (by source)
A1: FCX—ESG PERFORMANCE DATA
A2: DIRECT ENERGY CONSUMPTION BY SOURCE (terajoules)
A3: Year Ended December 31, 2024 | C3: Coal/Coke | D3: Diesel | E3: B5 Biodiesel | F3: B35 Biodiesel | G3: Renewable Diesel | H3: Gasoline | I3: Natural Gas | J3: Propane/LPG | K3: Aviation Fuel | L3: Used Oil
A4: Copper Mining | B4: North America
B5: Bagdad | C5: 0 | D5: 2492.7 | E5: 0 | F5: 0 | G5: 0 | H5: 39.5 | I5: 64 | J5: 0.3 | K5: 0 | L5: 0
B6: Chino/Cobre | C6: 0 | D6: 1187.9 | E6: 0 | F6: 0 | G6: 0 | H6: 34.4 | I6: 899.4 | J6: 3.9 | K6: 0 | L6: 0
B7: Morenci | C7: 0 | D7: 7036.3 | E7: 0 | F7: 0 | G7: 0 | H7: 169.1 | I7: 839 | J7: 0.7 | K7: 0 | L7: 0
B8: Safford/Lone Star | C8: 0 | D8: 3108.8 | E8: 0 | F8: 0 | G8: 0 | H8: 65.3 | I8: 0 | J8: 31.6 | K8: 0 | L8: 0
B9: Sierrita | C9: 0 | D9: 1627.2 | E9: 0 | F9: 0 | G9: 0 | H9: 42.2 | I9: 208.4 | J9: 5 | K9: 0 | L9: 0
B10: Tyrone | C10: 0 | D10: 229 | E10: 0 | F10: 0 | G10: 0 | H10: 14.3 | I10: 16.1 | J10: 2 | K10: 0 | L10: 0
B11: South America
B12: Cerro Verde | C12: 0 | D12: 0 | E12: 10029.6 | F12: 0 | G12: 0 | H12: 16.7 | I12: 0 | J12: 0 | K12: 0 | L12: 0
B13: El Abra | C13: 0 | D13: 1170.4 | E13: 0 | F13: 0 | G13: 0 | H13: 6.7 | I13: 0 | J13: 3.5 | K13: 0 | L13: 0
B14: Indonesia
B15: Grasberg | C15: 19214.6 | D15: 8102.2 | E15: 0 | F15: 4589.6 | G15: 0 | H15: 50.2 | I15: 0 | J15: 0 | K15: 190.6 | L15: 129.1
B16: Total Copper Mining | C16: 19214.6 | D16: 24954.5 | E16: 10029.6 | F16: 4589.6 | G16: 0 | H16: 438.4 | I16: 2026.9 | J16: 47.1 | K16: 190.6 | L16: 129.1
A17: Molybdenum Mining | B17: North America
B18: Climax | C18: 0 | D18: 857.6 | E18: 0 | F18: 0 | G18: 0 | H18: 14.7 | I18: 201.1 | J18: 1.2 | K18: 0 | L18: 0
B19: Henderson | C19: 0 | D19: 14.5 | E19: 0 | F19: 29.8 | G19: 1.3 | H19: 4 | I19: 301.9 | J19: 2 | K19: 0 | L19: 0
B20: Total Molybdenum Mining | C20: 0 | D20: 872.1 | E20: 0 | F20: 29.8 | G20: 1.3 | H20: 18.8 | I20: 503 | J20: 3.2 | K20: 0 | L20: 0
A21: Smelting & Refining | B21: North America
B22: El Paso Refinery & Rod | C22: 0 | D22: 3.8 | E22: 0 | F22: 0 | G22: 0 | H22: 0.4 | I22: 1689.4 | J22: 10.2 | K22: 0 | L22: 0
B23: Miami Smelter & Rod | C23: 9.5 | D23: 67 | E23: 0 | F23: 0 | G23: 0 | H23: 15.4 | I23: 1806.1 | J23: 3.4 | K23: 0 | L23: 0
B24: Europe
B25: Atlantic Copper Smelter & Refinery | C25: 80.3 | D25: 273.9 | E25: 0 | F25: 0 | G25: 0 | H25: 0 | I25: 578 | J25: 0 | K25: 0 | L25: 0
B26: Total Smelting & Refining | C26: 89.9 | D26: 344.8 | E26: 0 | F26: 0 | G26: 0 | H26: 15.7 | I26: 4073.5 | J26: 13.5 | K26: 0 | L26: 0
A27: Other | B27: Other
B28: Fort Madison Moly Special Products | C28: 0 | D28: 7.3 | E28: 0 | F28: 0 | G28: 0 | H28: 0.1 | I28: 368.1 | J28: 1.7 | K28: 0 | L28: 0
B29: Rotterdam | C29: 0 | D29: 3.3 | E29: 0 | F29: 0 | G29: 0 | H29: 0 | I29: 158.8 | J29: 0 | K29: 0 | L29: 0
B30: Stowmarket | C30: 0 | D30: 0.9 | E30: 0 | F30: 0 | G30: 0 | H30: 0 | I30: 0.5 | J30: 0 | K30: 0 | L30: 0
B31: Total Other | C31: 0 | D31: 11.4 | E31: 0 | F31: 0 | G31: 0 | H31: 0.1 | I31: 527.4 | J31: 1.7 | K31: 0 | L31: 0
A32: Total - FCX Global | C32: 19304.4 | D32: 26182.8 | E32: 10029.6 | F32: 4619.3 | G32: 1.3 | H32: 473.1 | I32: 7130.8 | J32: 65.6 | K32: 190.6 | L32: 129.1

Sheet Air Emissions
A1: FCX—ESG PERFORMANCE DATA
A2: AIR EMISSIONS (thousand metric tons)
A3: Years Ended December 31 | B3: 2020 | C3: 2021 | D3: 2022 | E3: 2023 | F3: 2024
A4: CO, carbon monoxide1 | B4: 98.2 | C4: 96.1 | D4: 38.4 | E4: 39.5 | F4: 41.2
A5: NOX (excluding N2O), oxides of nitrogen | B5: 39.9 | C5: 47.5 | D5: 49.7 | E5: 43.2 | F5: 42.4
A6: SOX, oxides of sulfur | B6: 7.3 | C6: 7 | D6: 6.9 | E6: 6.7 | F6: 7.1
A7: PM10, particulate matter | B7: 13.1 | C7: 13 | D7: 14.6 | E7: 16.5 | F7: 18.2
A8: Hg, mercury | B8: 0.0001 | C8: 0.0001 | D8: 0.0002 | E8: 0.0001 | F8: 0.0001
A9: Pb, lead | B9: 0.02 | C9: 0.01 | D9: 0.01 | E9: 0.01 | F9: 0.01
A10: VOCs, non-methane volatile organic compounds1 | B10: 8.3 | C10: 8.5 | D10: 4.2 | E10: 4.6 | F10: 4.5
A11: Ozone Depleting Substances, CFC-11 equivalent | B11: 2e-05 | C11: 2e-05 | D11: 1e-05 | E11: 5e-06 | F11: 1e-05
A12: 1. Emission factors for CO and VOC related to haul truck engines were updated to EPA Tier 1 standards in 2022 to better reflect the average age of FCX's haul truck fleet.

Sheet Water (FCX Global)
A1: FCX—ESG PERFORMANCE DATA
A2: WATER PERFORMANCE: FCX GLOBAL (thousand cubic meters)
A3: Years Ended December 31 | B3: 2020 | C3: 2021 | D3: 2022 | E3: 2023 | F3: 2024
A4: New Water Withdrawn
A5: Groundwater | B5: 96749 | C5: 112828 | D5: 102636 | E5: 126689 | F5: 118146
A6: Surface Water | B6: 49788 | C6: 56352 | D6: 67182 | E6: 59999 | F6: 67182
A7: Sea Water | B7: 49218 | C7: 43020 | D7: 34719 | E7: 44308 | F7: 42606
A8: Stormwater | B8: 41983 | C8: 53023 | D8: 54475 | E8: 47791 | F8: 57959
A9: Third-party Sources | B9: 23561 | C9: 31582 | D9: 32669 | E9: 35928 | F9: 35081
A10: Total New Water Withdrawn1 | B10: 261299 | C10: 296805 | D10: 291682 | E10: 314715 | F10: 320974
A11: Total Water Recycled/Reused | B11: 1231053 | C11: 1325184 | D11: 1526886 | E11: 1565794 | F11: 1556211
A12: Total Utilized Water (Withdrawn + Recycled/Reused) | B12: 1492352 | C12: 1621989 | D12: 1818568 | E12: 1880509 | F12: 1877186
A13: Water Recycle/Reuse Rate2 (%) | B13: 0.82 | C13: 0.82 | D13: 0.84 | E13: 0.83 | F13: 0.83
A14: Total Water Discharged3 | B14: 101963 | C14: 106127 | D14: 97347 | E14: 118295 | F14: 118850
A15: Total Water Consumption4 | B15: 166752 | C15: 184714 | D15: 197983 | E15: 200579 | F15: 203023
A16: Change in Water Storage Volume | B16: -7416 | C16: 5965 | D16: -3647 | E16: -4160 | F16: -899
A17: Water Use Efficiency Rate5 (%) | B17: 0.89 | C17: 0.87 | D17: 0.89 | E17: 0.89 | F17: 0.89
A18: 1. New water withdrawal includes new water that is received or extracted by a site and used for the first time. This includes high-quality freshwater and lower-quality water and is categorized by type: groundwater, surface water, stormwater, sea water or third-party water. Water withdrawals exclude water diverted away from operational areas without use.
A21: 2. Water Recycle/Reuse Rate = (Total Water Recycled + Reused) / Total Water Utilized.
A22: 3. Water discharged is water removed from an operation and returned to the environment or a third party after meeting required treatment and discharge standards.
A23: 4. Consumption is water that is lost in operational activities and cannot be recovered due primarily to losses from evaporation and entrainment (water entrained in product or waste).
A25: 5. Water Use Efficiency Rate = (Total Water Recycled + Reused) / (Total Water Utilization – Discharged Water).
A26: Note: Reported surface water differs from ICMM's definition, which considers surface water to be surface water plus stormwater. FCX reports surface and stormwater separately due to water right requirements in the U.S. southwest. FCX does not report water volumes per the ICMM definition of "other managed water" because they are not significant.
A30: WATER QUALITY: FCX GLOBAL (thousand cubic meters)
A31: Year Ended December 31, 2024 | B31: High Quality1 | C31: Low Quality1 | D31: Total
A32: Water Withdrawals
A33: Groundwater | B33: 99320 | C33: 18826 | D33: 118146
A34: Surface Water | B34: 67182 | C34: 0 | D34: 67182
A35: Sea Water | B35: 0 | C35: 42606 | D35: 42606
A36: Stormwater | B36: 54559 | C36: 3400 | D36: 57959
A37: Third-party Sources | B37: 34714 | C37: 366 | D37: 35081
A38: Total New Water Withdrawn2 | B38: 255775 | C38: 65199 | D38: 320974
A39: Water Discharged Off-site3
A40: To Surface | B40: 14598 | C40: 23 | D40: 14621
A41: To Sea, Ocean, or Estuary4 | B41: 11514 | C41: 92692 | D41: 104206
A42: To Third-party | B42: 0 | C42: 23 | D42: 23
A43: Total Water Discharged Off-site | B43: 26111 | C43: 92738 | D43: 118850
A44: Water Consumption5
A45: Total Water Consumption | D45: 203023
A46: Stored Water
A47: Change in Water Storage Volume | D47: -899
A48: Total Water Recycled/Reused | D48: 1556211
A49: Total Utilized Water (Withdrawn + Recycled/Reused) | D49: 1877186
A50: Water Recycle/Reuse Rate6 (%) | D50: 0.83
A51: Water Use Efficiency Rate7 (%) | D51: 0.89
A52: 1. Per ICMM guidance, we differentiate the quality of water withdrawn and discharged into high quality and low quality.
A53: 2. New water withdrawal includes new water that is received or extracted by a site and used for the first time. This includes high quality freshwater and lower quality water and is categorized by type: groundwater, surface water, stormwater, sea water or third-party water. Water withdrawals exclude water diverted away from operational areas without use.
A56: 3. Approximately 36% of water quantities discharged were associated with our Atlantic Copper Smelter where estuarine water is used for cooling and then returned to its source, 52% associated with PTFI’s controlled riverine tailings management system, and the remaining 12% is associated with our Climax and Henderson mines in Colorado.
A59: 4. Per ICMM guidelines, low quality discharged water to sea, ocean, or estuary is categorized as such due primarily to (a) the estuarine source water used at Atlantic Copper, which is already low quality due to salinity, and (b) the discharged water associated with the function of PTFI Grasberg’s controlled riverine tailings system, which has an alkaline pH.
A62: 5. Water Consumption = Total Water Withdrawn – Discharged Water – Change in Water Storage Volume. Consumption is water that is lost in operational activities and cannot be recovered due primarily to losses from evaporation and entrainment (water entrained in product or waste).
A64: 6. Water Recycle/Reuse Rate = (Total Water Reused + Recycled) / Total Water Utilized.
A65: 7. Water Use Efficiency Rate = (Total Water Recycled + Reused) / (Total Water Utilization – Discharged Water).
A66: Note: Reported surface water differs from ICMM's definition, which considers surface water to be surface water plus stormwater. FCX reports surface and stormwater separately due to water right requirements in the U.S. southwest. FCX does not report water volumes per the ICMM definition of "other managed water" because they are not significant.

Sheet Water (stressed areas)
A1: FCX—ESG PERFORMANCE DATA
A2: WATER PERFORMANCE: OPERATIONS IN WATER STRESSED AREAS1 (thousand cubic meters)
A3: Years Ended December 31 | B3: 2020 | C3: 2021 | D3: 2022 | E3: 2023 | F3: 2024
A4: New Water Withdrawn
A5: Groundwater | B5: 5945 | C5: 6066 | D5: 6589 | E5: 5472 | F5: 6896
A6: Surface Water | B6: 24360 | C6: 29279 | D6: 31202 | E6: 33255 | F6: 36022
A7: Sea Water | B7: 0 | C7: 0 | D7: 0 | E7: 0 | F7: 0
A8: Stormwater | B8: 1496 | C8: 208 | D8: 577 | E8: 1120 | F8: 677
A9: Third-party Sources | B9: 17717 | C9: 27242 | D9: 28333 | E9: 31104 | F9: 31237
A10: Total New Water Withdrawn2 | B10: 49518 | C10: 62794 | D10: 66701 | E10: 70950 | F10: 74832
A11: Total Water Recycled/Reused | B11: 495863 | C11: 595596 | D11: 644344 | E11: 664094 | F11: 638667
A12: Total Utilized Water (Withdrawn + Recycled/Reused) | B12: 545381 | C12: 658390 | D12: 711046 | E12: 735044 | F12: 713500
A13: Water Recycle/Reuse Rate3 (%) | B13: 0.91 | C13: 0.9 | D13: 0.91 | E13: 0.9 | F13: 0.9
A14: Total Water Discharged4 | B14: 0 | C14: 0 | D14: 0 | E14: 0 | F14: 0
A15: Total Water Consumption5 | B15: 48879 | C15: 62540 | D15: 67321 | E15: 72886 | F15: 73990
A16: Change in Water Storage Volume | B16: 639 | C16: 254 | D16: -620 | E16: -1936 | F16: 843
A17: Water Use Efficiency Rate6 (%) | B17: 0.91 | C17: 0.9 | D17: 0.91 | E17: 0.9 | F17: 0.9
A18: 1. This table reflects water utilization at mine sites determined by FCX to have a high or extremely high baseline water stress rating, which account for 2 (Cerro Verde and El Abra) out of 17 of FCX's mining and mineral processing sites.
A20: 2. New water withdrawn includes new water that is received or extracted by a site and used for the first time. This includes high-quality freshwater and lower-quality water and is categorized by type: groundwater, surface water, stormwater, sea water or third-party water. Water withdrawals exclude water diverted away from operational areas without use.
A23: 3. Water Recycle/Reuse Rate = (Total Water Recycled + Reused) / Total Water Utilized.
A24: 4. Water discharged is water removed from an operation and returned to the environment or a third party after meeting required treatment and discharge standards.
A25: 5. Consumption is water that is lost in operational activities and cannot be recovered due primarily to losses from evaporation and entrainment (water entrained in product or waste).
A27: 6. Water Use Efficiency Rate = (Total Water Recycled + Reused) / (Total Water Utilization – Discharged Water).
A28: Note: Reported surface water differs from ICMM's definition, which considers surface water to be surface water plus stormwater. FCX reports surface and stormwater separately due to water right requirements in the U.S. southwest. FCX does not report water volumes per the ICMM definition of "other managed water" because they are not significant.
A32: WATER QUALITY: OPERATIONS IN WATER STRESSED AREAS1 (thousand cubic meters)
A33: Year Ended December 31, 2024 | B33: High Quality2 | C33: Low Quality2 | D33: Total
A34: Water Withdrawals
A35: Groundwater | B35: 0 | C35: 6896 | D35: 6896
A36: Surface Water | B36: 36022 | C36: 0 | D36: 36022
A37: Sea Water | B37: 0 | C37: 0 | D37: 0
A38: Stormwater | B38: 677 | C38: 0 | D38: 677
A39: Third-party Sources | B39: 31237 | C39: 0 | D39: 31237
A40: Total New Water Withdrawn3 | B40: 67936 | C40: 6896 | D40: 74832
A41: Water Discharged Off-site
A42: To Surface | B42: 0 | C42: 0 | D42: 0
A43: To Sea, Ocean, or Estuary | B43: 0 | C43: 0 | D43: 0
A44: To Third-party | B44: 0 | C44: 0 | D44: 0
A45: Total Water Discharged Off-site | B45: 0 | C45: 0 | D45: 0
A46: Water Consumption4
A47: Total Water Consumption | D47: 73990
A48: Stored Water
A49: Change in Water Storage Volume | D49: 843
A50: Total Water Recycled/Reused | D50: 638667
A51: Total Utilized Water (Withdrawn + Recycled/Reused) | D51: 713500
A52: Water Recycle/Reuse Rate5 (%) | D52: 0.9
A53: Water Use Efficiency Rate6 (%) | D53: 0.9
A54: 1. This table reflects water utilization at mine sites determined by FCX to have a high or extremely high baseline water stress rating, which account for 2 (Cerro Verde and El Abra) out of 17 of FCX's mining and mineral processing sites.
A56: 2. Per ICMM guidance, we differentiate the quality of water withdrawn and discharged into high quality and low quality.
A57: 3. New water withdrawn includes new water that is received or extracted by a site and used for the first time. This includes high quality freshwater and lower quality water and is categorized by type: groundwater, surface water, stormwater, sea water or third-party water. Water withdrawals exclude water diverted away from operational areas without use.
A60: 4. Water Consumption = Total Water Withdrawn – Discharged Water – Change in Water Storage Volume. Consumption is water that is lost in operational activities and cannot be recovered due primarily to losses from evaporation and entrainment (water entrained in product or waste).
A62: 5. Water Recycle/Reuse Rate = (Total Water Reused + Recycled) / Total Water Utilized.
A63: 6. Water Use Efficiency Rate = (Total Water Recycled + Reused) / (Total Water Utilization – Discharged Water).
A64: Note: Reported surface water differs from ICMM's definition, which considers surface water to be surface water plus stormwater. FCX reports surface and stormwater separately due to water right requirements in the U.S. southwest. FCX does not report water volumes per the ICMM definition of "other managed water" because they are not significant.

Sheet ICMM Water Quality
A1: ICMM WATER QUALITY CATEGORIES
A2: High Quality (Freshwater1) | B2: Category 1 High-quality water that may require minimal and inexpensive treatment to raise quality to appropriate drinking water standard (e.g., near potable water quality).
B3: Category 2 Medium-quality water that would require a moderate level of treatment to meet appropriate drinking water standard (e.g., agricultural use).
A4: Low Quality | B4: Category 3 Low-quality water that would require significant treatment to raise quality to appropriate drinking water standards (e.g., industrial and wastewater).
A5: 1. High-quality water, as defined by ICMM, is equivalent to Fresh Water as defined by the IFRS Foundation’s SASB Standards.

Sheet Water Supply Risks
A1: FCX—ESG PERFORMANCE DATA
A2: WATER SUPPLY RISKS | D2: Water Supply Risks
A3: Operation | B3: Climate Conditions1 | C3: Water Sources2 | D3: Water Stress Rating3 | E3: Excess Water4 | F3: Access Challenges5
A4: Bagdad | B4: Arid; Semi-desert | C4: Groundwater | D4: Low-Med
A5: Arizona | C5: Surface water
C6: Stormwater
C7: Third Party
A8: Cerro Verde | B8: Arid; Desert | C8: Groundwater | D8: High | F8: X
A9: Arequipa, Peru | C9: Surface water
C10: Stormwater
C11: Third Party
A12: Chino | B12: Arid; Semi-desert | C12: Groundwater | D12: Low-Med
A13: New Mexico | C13: Stormwater
C14: Third Party
A15: Climax | B15: Snow; Fully humid | C15: Groundwater | D15: Low-Med
A16: Colorado | C16: Surface water
C17: Stormwater
A18: El Abra | B18: Arid; Desert | C18: Groundwater | D18: Extremely High | F18: X
A19: Calama, Chile | C19: Stormwater
A20: Grasberg | B20: Tropical; Fully humid | C20: Groundwater | D20: Low | E20: X
A21: Central Papua, Indonesia | C21: Surface water
C22: Stormwater
A23: Henderson | B23: Snow; Fully humid | C23: Groundwater | D23: Med-High | E23: X
A24: Colorado | C24: Surface water
C25: Stormwater
A26: Miami | B26: Arid; Semi-desert | C26: Groundwater | D26: Med-High | E26: X | F26: X
A27: Arizona | C27: Surface water
C28: Stormwater
C29: Third Party
A30: Morenci | B30: Arid; Semi-desert | C30: Groundwater | D30: Med-High | F30: X
A31: Arizona | C31: Surface water
C32: Stormwater
C33: Third Party
A34: Safford | B34: Arid; Semi-desert | C34: Groundwater | D34: Med-High | F34: X
A35: Arizona | C35: Stormwater
A36: Sierrita | B36: Arid; Semi-desert | C36: Groundwater | D36: Med-High | F36: X
A37: Arizona | C37: Stormwater
A38: Tyrone | B38: Arid; Semi-desert | C38: Groundwater | D38: Low-Med
A39: New Mexico | C39: Surface water
C40: Stormwater
A41: 1. Climate conditions based on the Köppen-Geiger climate classification terminology.
A42: 2. Water sources can include groundwater, surface water, stormwater, sea water, or third-party sources (including effluent). Third-party water sources are primarily sourced from wastewater effluent.
A44: 3. FCX determines baseline water stress ratings by referencing the World Resources Institute’s Aqueduct tool's baseline water stress classifications where our operations are located and considering site-specific circumstances of withdrawal at each operation, including the location of available water sources.
A47: 4. Excess water risk applies to sites which receive more stormwater through precipitation and/or snowmelt than can be used for operational purposes. This risk is mitigated through water management plans, including water balance forecasting, diversions, enhanced evaporation and water treatment.
A49: 5. Access challenges can include legal challenges or potential changes in law or regulations that could impact our access to certain water supplies.

Sheet Water (by region)
A1: FCX—ESG PERFORMANCE DATA
A2: WATER PERFORMANCE BY REGION (thousand cubic meters)
A3: Years Ended December 31 | D3: 2020 | E3: 2021 | F3: 2022 | G3: 2023 | H3: 2024
A4: COPPER MINING | B4: North America | C4: New Water Withdrawn
C5: Groundwater | D5: 65922 | E5: 71089 | F5: 60754 | G5: 72356 | H5: 72107
C6: Surface Water | D6: 16245 | E6: 18857 | F6: 27240 | G6: 17858 | H6: 22800
C7: Sea Water | D7: 0 | E7: 0 | F7: 0 | G7: 0 | H7: 0
C8: Stormwater | D8: 8945 | E8: 18575 | F8: 20980 | G8: 14371 | H8: 15113
C9: Third-party Sources | D9: 3540 | E9: 2054 | F9: 2378 | G9: 2496 | H9: 1685
C10: Total New Water Withdrawn1 | D10: 94652 | E10: 110575 | F10: 111352 | G10: 107080 | H10: 111704
C11: Total Water Recycled/Reused | D11: 613440 | E11: 574321 | F11: 711682 | G11: 734348 | H11: 734369
C12: Total Utilized Water (Withdrawn + Recycled/Reused) | D12: 708092 | E12: 684896 | F12: 823035 | G12: 841428 | H12: 846074
C13: Water Recycle/Reuse Rate2 (%) | D13: 0.87 | E13: 0.84 | F13: 0.86 | G13: 0.87 | H13: 0.87
C14: Total Water Discharged3 | D14: 0 | E14: 191 | F14: 0 | G14: 0 | H14: 0
C15: Total Water Consumption4 | D15: 100035 | E15: 104279 | F15: 112740 | G15: 109211 | H15: 111133
C16: Change in Water Storage Volume | D16: -5383 | E16: 6105 | F16: -1387 | G16: -2130 | H16: 571
C17: Water Use Efficiency Rate5 (%) | D17: 0.87 | E17: 0.84 | F17: 0.86 | G17: 0.87 | H17: 0.87
B18: South America | C18: New Water Withdrawn
C19: Groundwater | D19: 5945 | E19: 6066 | F19: 6589 | G19: 5472 | H19: 6896
C20: Surface Water | D20: 24360 | E20: 29279 | F20: 31202 | G20: 33255 | H20: 36022
C21: Sea Water | D21: 0 | E21: 0 | F21: 0 | G21: 0 | H21: 0
C22: Stormwater | D22: 1496 | E22: 208 | F22: 577 | G22: 1120 | H22: 677
C23: Third-party Sources | D23: 17717 | E23: 27242 | F23: 28333 | G23: 31104 | H23: 31237
C24: Total New Water Withdrawn1 | D24: 49518 | E24: 62794 | F24: 66701 | G24: 70950 | H24: 74832
C25: Total Water Recycled/Reused | D25: 495863 | E25: 595596 | F25: 644344 | G25: 664094 | H25: 638667
C26: Total Utilized Water (Withdrawn + Recycled/Reused) | D26: 545381 | E26: 658390 | F26: 711046 | G26: 735044 | H26: 713500
C27: Water Recycle/Reuse Rate2 (%) | D27: 0.91 | E27: 0.9 | F27: 0.91 | G27: 0.9 | H27: 0.9
C28: Total Water Discharged3 | D28: 0 | E28: 0 | F28: 0 | G28: 0 | H28: 0
C29: Total Water Consumption4 | D29: 48879 | E29: 62540 | F29: 67321 | G29: 72886 | H29: 73990
C30: Change in Water Storage Volume | D30: 639 | E30: 254 | F30: -620 | G30: -1936 | H30: 843
C31: Water Use Efficiency Rate5 (%) | D31: 0.91 | E31: 0.9 | F31: 0.91 | G31: 0.9 | H31: 0.9
B32: Indonesia | C32: New Water Withdrawn
C33: Groundwater | D33: 21036 | E33: 31984 | F33: 31526 | G33: 44608 | H33: 35050
C34: Surface Water | D34: 4734 | E34: 5960 | F34: 6529 | G34: 6896 | H34: 6328
C35: Sea Water | D35: 0 | E35: 0 | F35: 0 | G35: 0 | H35: 0
C36: Stormwater | D36: 16348 | E36: 16831 | F36: 16134 | G36: 13789 | H36: 23771
C37: Third-party Sources | D37: 0 | E37: 0 | F37: 0 | G37: 0 | H37: 0
C38: Total New Water Withdrawn1 | D38: 42119 | E38: 54775 | F38: 54188 | G38: 65293 | H38: 65148
C39: Total Water Recycled/Reused | D39: 64302 | E39: 101534 | F39: 118651 | G39: 108157 | H39: 121848
C40: Total Utilized Water (Withdrawn + Recycled/Reused) | D40: 106420 | E40: 156309 | F40: 172839 | G40: 173451 | H40: 186995
C41: Water Recycle/Reuse Rate2 (%) | D41: 0.6 | E41: 0.65 | F41: 0.69 | G41: 0.62 | H41: 0.65
C42: Total Water Discharged3 | D42: 38721 | E42: 51022 | F42: 49966 | G42: 61115 | H42: 61245
C43: Total Water Consumption4 | D43: 3339 | E43: 3751 | F43: 4216 | G43: 4186 | H43: 3902
C44: Change in Water Storage Volume | D44: 59 | E44: 2 | F44: 6 | G44: -8 | H44: 0
C45: Water Use Efficiency Rate5 (%) | D45: 0.95 | E45: 0.96 | F45: 0.97 | G45: 0.96 | H45: 0.97
B46: TOTAL Copper Mining | C46: New Water Withdrawn
C47: Groundwater | D47: 92902 | E47: 109139 | F47: 98869 | G47: 122435 | H47: 114052
C48: Surface Water | D48: 45340 | E48: 54096 | F48: 64971 | G48: 58010 | H48: 65150
C49: Sea Water | D49: 0 | E49: 0 | F49: 0 | G49: 0 | H49: 0
C50: Stormwater | D50: 26790 | E50: 35613 | F50: 37691 | G50: 29279 | H50: 39561
C51: Third-party Sources | D51: 21257 | E51: 29296 | F51: 30711 | G51: 33600 | H51: 32921
C52: Total New Water Withdrawn1 | D52: 186288 | E52: 228144 | F52: 232242 | G52: 243324 | H52: 251684
C53: Total Water Recycled/Reused | D53: 1173605 | E53: 1271451 | F53: 1474677 | G53: 1506599 | H53: 1494884
C54: Total Utilized Water (Withdrawn + Recycled/Reused) | D54: 1359893 | E54: 1499595 | F54: 1706919 | G54: 1749923 | H54: 1746569
C55: Water Recycle/Reuse Rate2 (%) | D55: 0.86 | E55: 0.85 | F55: 0.86 | G55: 0.86 | H55: 0.86
C56: Total Water Discharged3 | D56: 38721 | E56: 51213 | F56: 49966 | G56: 61115 | H56: 61245
C57: Total Water Consumption4 | D57: 152253 | E57: 170570 | F57: 184276 | G57: 186282 | H57: 189024
C58: Change in Water Storage Volume | D58: -4686 | E58: 6361 | F58: -2000 | G58: -4074 | H58: 1414
C59: Water Use Efficiency Rate5 (%) | D59: 0.89 | E59: 0.88 | F59: 0.89 | G59: 0.89 | H59: 0.89
A60: MOLYBDENUM MINING | B60: North America | C60: New Water Withdrawn
C61: Groundwater | D61: 1256 | E61: 1150 | F61: 1256 | G61: 1210 | H61: 1233
C62: Surface Water | D62: 2470 | E62: 1213 | F62: 1270 | G62: 1167 | H62: 1082
C63: Sea Water | D63: 0 | E63: 0 | F63: 0 | G63: 0 | H63: 0
C64: Stormwater | D64: 13990 | E64: 13174 | F64: 14576 | G64: 15601 | H64: 16827
C65: Third-party Sources | D65: 0 | E65: 0 | F65: 0 | G65: 0 | H65: 0
C66: Total New Water Withdrawn1 | D66: 17716 | E66: 15537 | F66: 17101 | G66: 17978 | H66: 19141
C67: Total Water Recycled/Reused | D67: 20458 | E67: 20115 | F67: 20808 | G67: 23897 | H67: 24203
C68: Total Utilized Water (Withdrawn + Recycled/Reused) | D68: 38174 | E68: 35652 | F68: 37909 | G68: 41875 | H68: 43344
C69: Water Recycle/Reuse Rate2 (%) | D69: 0.54 | E69: 0.56 | F69: 0.55 | G69: 0.57 | H69: 0.56
C70: Total Water Discharged3 | D70: 11938 | E70: 10954 | F70: 11835 | G70: 11801 | H70: 14188
C71: Total Water Consumption4 | D71: 5025 | E71: 5210 | F71: 5727 | G71: 6003 | H71: 6352
C72: Change in Water Storage Volume | D72: 753 | E72: -627 | F72: -460 | G72: 174 | H72: -1399
C73: Water Use Efficiency Rate5 (%) | D73: 0.78 | E73: 0.81 | F73: 0.8 | G73: 0.79 | H73: 0.83
A74: SMELTING & REFINING | B74: North America | C74: New Water Withdrawn
C75: Groundwater | D75: 2067 | E75: 2040 | F75: 2043 | G75: 2274 | H75: 2329
C76: Surface Water | D76: 999 | E76: 1043 | F76: 941 | G76: 822 | H76: 950
C77: Sea Water | D77: 0 | E77: 0 | F77: 0 | G77: 0 | H77: 0
C78: Stormwater | D78: 1034 | E78: 4077 | F78: 2053 | G78: 2763 | H78: 1345
C79: Third-party Sources | D79: 198 | E79: 258 | F79: 229 | G79: 272 | H79: 261
C80: Total New Water Withdrawn1 | D80: 4298 | E80: 7418 | F80: 5266 | G80: 6131 | H80: 4885
C81: Total Water Recycled/Reused | D81: 29385 | E81: 30785 | F81: 29189 | G81: 32582 | H81: 34396
C82: Total Utilized Water (Withdrawn + Recycled/Reused) | D82: 33683 | E82: 38203 | F82: 34455 | G82: 38713 | H82: 39282
C83: Water Recycle/Reuse Rate2 (%) | D83: 0.87 | E83: 0.81 | F83: 0.85 | G83: 0.84 | H83: 0.88
C84: Total Water Discharged3 | D84: 0 | E84: 0 | F84: 0 | G84: 0 | H84: 0
C85: Total Water Consumption4 | D85: 7727 | E85: 7315 | F85: 6635 | G85: 6579 | H85: 5792
C86: Change in Water Storage Volume | D86: -3429 | E86: 103 | F86: -1369 | G86: -448 | H86: -907
C87: Water Use Efficiency Rate5 (%) | D87: 0.87 | E87: 0.81 | F87: 0.85 | G87: 0.84 | H87: 0.88
B88: Europe | C88: New Water Withdrawn
C89: Groundwater | D89: 0 | E89: 0 | F89: 0 | G89: 0 | H89: 0
C90: Surface Water | D90: 980 | E90: 0 | F90: 0 | G90: 0 | H90: 0
C91: Sea Water | D91: 49218 | E91: 43020 | F91: 34719 | G91: 44308 | H91: 42606
C92: Stormwater | D92: 77 | E92: 42 | F92: 47 | G92: 21 | H92: 87
C93: Third-party Sources | D93: 1986 | E93: 1928 | F93: 1608 | G93: 1893 | H93: 1776
C94: Total New Water Withdrawn1 | D94: 52261 | E94: 44990 | F94: 36374 | G94: 46223 | H94: 44469
C95: Total Water Recycled/Reused | D95: 7597 | E95: 2820 | F95: 2202 | G95: 2704 | H95: 2712
C96: Total Utilized Water (Withdrawn + Recycled/Reused) | D96: 59858 | E96: 47810 | F96: 38576 | G96: 48927 | H96: 47181
C97: Water Recycle/Reuse Rate2 (%) | D97: 0.13 | E97: 0.06 | F97: 0.06 | G97: 0.06 | H97: 0.06
C98: Total Water Discharged3 | D98: 50702 | E98: 43478 | F98: 35151 | G98: 44730 | H98: 42982
C99: Total Water Consumption4 | D99: 1533 | E99: 1511 | F99: 1223 | G99: 1492 | H99: 1487
C100: Change in Water Storage Volume | D100: 25 | E100: 0 | F100: 0 | G100: 0 | H100: 0
C101: Water Use Efficiency Rate5 (%) | D101: 0.83 | E101: 0.65 | F101: 0.64 | G101: 0.64 | H101: 0.65
B102: TOTAL Smelting & Refining | C102: New Water Withdrawn
C103: Groundwater | D103: 2067 | E103: 2040 | F103: 2043 | G103: 2274 | H103: 2329
C104: Surface Water | D104: 1978 | E104: 1043 | F104: 941 | G104: 822 | H104: 950
C105: Sea Water | D105: 49218 | E105: 43020 | F105: 34719 | G105: 44308 | H105: 42606
C106: Stormwater | D106: 1111 | E106: 4119 | F106: 2100 | G106: 2784 | H106: 1432
C107: Third-party Sources | D107: 2184 | E107: 2186 | F107: 1837 | G107: 2165 | H107: 2037
C108: Total New Water Withdrawn1 | D108: 56559 | E108: 52408 | F108: 41640 | G108: 52354 | H108: 49354
C109: Total Water Recycled/Reused | D109: 36982 | E109: 33605 | F109: 31391 | G109: 35286 | H109: 37108
C110: Total Utilized Water (Withdrawn + Recycled/Reused) | D110: 93541 | E110: 86013 | F110: 73031 | G110: 87640 | H110: 86462
C111: Water Recycle/Reuse Rate2 (%) | D111: 0.4 | E111: 0.39 | F111: 0.43 | G111: 0.4 | H111: 0.43
C112: Total Water Discharged3 | D112: 50702 | E112: 43478 | F112: 35151 | G112: 44730 | H112: 42982
C113: Total Water Consumption4 | D113: 9260 | E113: 8826 | F113: 7857 | G113: 8071 | H113: 7279
C114: Change in Water Storage Volume | D114: -3404 | E114: 103 | F114: -1369 | G114: -448 | H114: -907
C115: Water Use Efficiency Rate5 (%) | D115: 0.86 | E115: 0.79 | F115: 0.83 | G115: 0.82 | H115: 0.85
A116: OTHER | C116: New Water Withdrawn
C117: Groundwater | D117: 524 | E117: 499 | F117: 469 | G117: 770 | H117: 532
C118: Surface Water | D118: 0 | E118: 0 | F118: 0 | G118: 0 | H118: 0
C119: Sea Water | D119: 0 | E119: 0 | F119: 0 | G119: 0 | H119: 0
C120: Stormwater | D120: 92 | E120: 117 | F120: 108 | G120: 126 | H120: 140
C121: Third-party Sources | D121: 119 | E121: 101 | F121: 122 | G121: 163 | H121: 122
C122: Total New Water Withdrawn1 | D122: 735 | E122: 717 | F122: 699 | G122: 1060 | H122: 795
C123: Total Water Recycled/Reused | D123: 8 | E123: 13 | F123: 10 | G123: 11 | H123: 16
C124: Total Utilized Water (Withdrawn + Recycled/Reused) | D124: 744 | E124: 730 | F124: 709 | G124: 1071 | H124: 811
C125: Water Recycle/Reuse Rate2 (%) | D125: 0.01 | E125: 0.02 | F125: 0.01 | G125: 0.01 | H125: 0.02
C126: Total Water Discharged3 | D126: 601 | E126: 482 | F126: 394 | G126: 649 | H126: 434
C127: Total Water Consumption4 | D127: 213 | E127: 107 | F127: 123 | G127: 222 | H127: 368
C128: Change in Water Storage Volume | D128: -79 | E128: 128 | F128: 182 | G128: 188 | H128: -7.6
C129: Water Use Efficiency Rate5 (%) | D129: 0.06 | E129: 0.05 | F129: 0.03 | G129: 0.03 | H129: 0.04
A130: FCX Global | C130: New Water Withdrawn
C131: Groundwater | D131: 96749 | E131: 112828 | F131: 102636 | G131: 126689 | H131: 118146
C132: Surface Water | D132: 49788 | E132: 56352 | F132: 67182 | G132: 59999 | H132: 67182
C133: Sea Water | D133: 49218 | E133: 43020 | F133: 34719 | G133: 44308 | H133: 42606
C134: Stormwater | D134: 41983 | E134: 53023 | F134: 54475 | G134: 47791 | H134: 57959
C135: Third-party Sources | D135: 23561 | E135: 31582 | F135: 32669 | G135: 35928 | H135: 35081
C136: Total New Water Withdrawn1 | D136: 261299 | E136: 296805 | F136: 291682 | G136: 314715 | H136: 320974
C137: Total Water Recycled/Reused | D137: 1231053 | E137: 1325184 | F137: 1526886 | G137: 1565794 | H137: 1556211
C138: Total Utilized Water (Withdrawn + Recycled/Reused) | D138: 1492352 | E138: 1621989 | F138: 1818568 | G138: 1880509 | H138: 1877186
C139: Water Recycle/Reuse Rate2 (%) | D139: 0.82 | E139: 0.82 | F139: 0.84 | G139: 0.83 | H139: 0.83
C140: Total Water Discharged3 | D140: 101963 | E140: 106127 | F140: 97347 | G140: 118295 | H140: 118850
C141: Total Water Consumption4 | D141: 166752 | E141: 184714 | F141: 197983 | G141: 200579 | H141: 203023.33
C142: Change in Water Storage Volume | D142: -7416 | E142: 5965 | F142: -3647 | G142: -4160 | H142: -899
C143: Water Use Efficiency Rate5 (%) | D143: 0.89 | E143: 0.87 | F143: 0.89 | G143: 0.89 | H143: 0.89
A144: 1. New water withdrawal includes new water that is received or extracted by a site and used for the first time. This includes high quality freshwater and lower quality water and is categorized by type: groundwater, surface water, stormwater, sea water or third-party water. Water withdrawals exclude water diverted away from operational areas without use.
A146: 2. Water Recycle/Reuse Rate = (Total Water Recycled + Reused) / Total Water Utilized.
A147: 3. Water discharged is water removed from an operation and returned to the environment or a third party after meeting required treatment and discharge standards.
A148: 4. Consumption is water that is lost in operational activities and cannot be recovered due primarily to losses from evaporation and entrainment (water entrained in product or waste).
A150: 5. Water Use Efficiency Rate = (Total Water Recycled + Reused) / (Total Water Utilization – Discharged Water).
A151: Note: Reported surface water differs from ICMM's definition, which considers surface water to be surface water plus stormwater. FCX reports surface and stormwater separately due to water right requirements in the U.S. southwest. FCX does not report water volumes per the ICMM definition of "other managed water" because they are not significant.

Sheet Mining.Mineral Processing Waste
A1: FCX—ESG PERFORMANCE DATA
A2: MINING AND MINERAL PROCESSING WASTE (million metric tons)
A3: Years Ended December 31 | B3: 2020 | C3: 2021 | D3: 2022 | E3: 2023 | F3: 2024
A4: Tailings Generated | B4: 259 | C4: 295 | D4: 331 | E4: 341 | F4: 346
A5: Overburden and Waste Rock | B5: 349 | C5: 365 | D5: 414 | E5: 408 | F5: 453
A6: Slags | B6: 0.6 | C6: 0.6 | D6: 0.7 | E6: 0.7 | F6: 0.7

Sheet Tailings Impoundments
A1: FCX—ESG PERFORMANCE DATA
A2: TAILINGS STORAGE FACILITIES1 (count)
A3: Years Ended December 31 | B3: 2020 | C3: 2021 | D3: 2022 | E3: 2023 | F3: 2024
A4: Active | B4: 17 | C4: 16 | D4: 15 | E4: 15 | F4: 15
A5: Inactive or Closed2 | B5: 56 | C5: 52 | D5: 48 | E5: 35 | F5: 29
A6: Safely Closed2 | B6: 0 | C6: 5 | D6: 9 | E6: 22 | F6: 25
A7: Total Tailings Storage Facilities | B7: =B4+B5+B6 -> 73 | C7: =C4+C5+C6 -> 73 | D7: 72 | E7: 72 | F7: 69 3
A8: 1. Tailings storage facility counts include non-operating sites and are reviewed at least annually and updated according to construction of new facilities, changes in operating conditions, closure, business transactions and legal reviews. FCX provides additional disclosure of its tailings facilities, location, status, construction type and consequence categorization and descriptions of embankment types (upstream, centerline and downstream) on our website at fcx.com/sustainability/tailings-americas.
A12: 2. Safely Closed is defined by the Tailings Standard and requires confirmation by an external independent reviewer and an internal accountable executive. While certain inactive/closed facilities are awaiting review to confirm their Safely Closed designation, we consistently apply our tailings management system to all facilities to support their safe management.
A15: 3. Decrease in total number of storage facilities reflects that the Keystone tailings storage facility was updated to reflect that there is one tailings storage facility (previously listed as four) based on a review of historical records and new information.
A17: Note: Information as reported in FCX's Form 10-Ks. FCX's tailings storage facilities are located in North America and South America. At our Grasberg operations in Indonesia, PTFI operates a controlled riverine tailings management system, which is not represented in this table.

Sheet Non-Mineral Waste.Recycled
A1: FCX—ESG PERFORMANCE DATA
A2: NON-MINERAL WASTE AND RECYCLABLE MATERIAL (thousand metric tons)
A3: Years Ended December 31 | B3: 2020 | C3: 2021 | D3: 2022 | E3: 2023 | F3: 2024
A4: Non-Hazardous Waste
A5: Recycled | B5: 61.3 | C5: 118.3 | D5: 126.5 | E5: 127.5 | F5: 146.2
A6: Disposed - Landfill | B6: 52.7 | C6: 59.8 | D6: 62.7 | E6: 75.8 | F6: 90.5
A7: Disposed - Other | B7: 16.1 | C7: 23.1 | D7: 25.1 | E7: 34.9 | F7: 30.9
A8: Disposed - On-site | B8: 25 | C8: 30.9 | D8: 27.4 | E8: 29.5 | F8: 17.8
A9: Total Non-Hazardous Waste and Recyclable Material | B9: 155.1 | C9: 232.1 | D9: 241.8 | E9: 267.7 | F9: 285.3
A10: Hazardous Waste
A11: Recycled | B11: 52.7 | C11: 7.1 | D11: 7.4 | E11: 6.2 | F11: 7.2
A12: Disposed - Landfill | B12: 4 | C12: 4.5 | D12: 6.7 | E12: 5.2 | F12: 5
A13: Stored - On-site | B13: 0 | C13: 0 | D13: 0 | E13: 0 | F13: 0
A14: Treated | B14: 17.5 | C14: 17.9 | D14: 18.5 | E14: 18.1 | F14: 16.7
A15: Total Hazardous Waste and Recyclable Material | B15: 74.2 | C15: 29.4 | D15: 32.6 | E15: 29.5 | F15: 28.9
A16: Total Non-Mineral Waste Generated | B16: 229.3 | C16: 261.5 | D16: 274.3 | E16: 297.2 | F16: 314.1
A17: % Recycled | B17: 0.5 | C17: 0.48 | D17: 0.49 | E17: 0.45 | F17: 0.488
A18: Note: We use national regulations to determine whether a material disposed or recycled is hazardous or non-hazardous waste at its point of generation.

Sheet Land Disturbed
A1: FCX—ESG PERFORMANCE DATA
A2: LAND (hectares) | C2: New Land Disturbed | D2: Land Rehabilitated | E2: Total Land Disturbed to be Rehabilitated
C3: During 2024 | D3: During 2024 | E3: As of Year Ended December 31, 2024
A4: Copper Mining | B4: North America
B5: Bagdad | C5: 203.19 | D5: 0 | E5: 4092.88
B6: Chino/Cobre | C6: 27.11 | D6: 0 | E6: 4029.89
B7: Morenci | C7: 100.59 | D7: 0 | E7: 7663.82
B8: Safford/Lone Star | C8: 164.92 | D8: 0 | E8: 3466.91
B9: Sierrita | C9: 0 | D9: 0 | E9: 4701.72
B10: Tyrone | C10: 7.7 | D10: 19.8 | E10: 2119.4
B11: South America
B12: Cerro Verde | C12: 322.95 | D12: 0 | E12: 5013.64
B13: El Abra | C13: 21.7 | D13: 0.19 | E13: 6683.58
B14: Indonesia
B15: Grasberg | C15: 17.25 | D15: 118.94 | E15: 24303.86
B16: Total Copper Mining | C16: 865.41 | D16: 138.93 | E16: 62075.7
A17: Molybdenum Mining | B17: North America
B18: Climax | C18: 40 | D18: 0 | E18: 1506
B19: Henderson | C19: 1 | D19: 0 | E19: 1102
B20: Total Molybdenum Mining | C20: 40 | D20: 0 | E20: 2608
A21: Smelting & Refining | B21: North America
B22: El Paso Refinery & Rod | C22: 0 | D22: 0 | E22: 88.6
B23: Miami Smelter & Rod | C23: 13.88 | D23: 0 | E23: 1578.72
B24: Europe
B25: Atlantic Copper Smelter & Refinery | C25: 0.23 | D25: 0 | E25: 60.77
B26: Total Smelting & Refining | C26: 14.11 | D26: 0 | E26: 1728.09
A27: Other | B27: Other
B28: Fort Madison Moly Special Products | C28: 0 | D28: 0 | E28: 40.5
B29: Rotterdam | C29: 0 | D29: 0 | E29: 6.8
B30: Stowmarket | C30: 2.5 | D30: 0 | E30: 3.7
B31: Total Other | C31: 2.5 | D31: 0 | E31: 51
A32: Total - FCX Global | C32: 922.41 | D32: 139.33 | E32: 66462.4

Sheet Environmental Compliance
A1: FCX—ESG PERFORMANCE DATA
A2: ENVIRONMENTAL COMPLIANCE
A3: Years Ended December 31 | B3: 2020 | C3: 2021 | D3: 2022 | E3: 2023 | F3: 2024
A4: Reportable Spills or Releases of Hazardous or Toxic Chemicals1 | B4: 19 | C4: 20 | D4: 16 | E4: 34 | F4: 29
A5: NOVs2 (related to permit exceedances, spills, releases or other compliance matters) | B5: 6 | C5: 9 | D5: 12 | E5: 16 | F5: 14
A6: Number of Significant Environmental Events3 | B6: 0 | C6: 0 | D6: 1 | E6: 2 | F6: 0
A7: Environmental Penalties Paid4 | B7: 67100 | C7: 18951 | D7: 24301 | E7: 10831 | F7: 35800
A8: 1. Reported figures are those reported to a national agency. Spills associated with pipeline sabotage at PTFI's Grasberg operations are not reported in this table.
A10: 2. NOV is Notice of Violation. When NOVs are rescinded based on the legal appeals process, prior year data are updated.
A11: 3. Our risk assessment uses a likelihood and consequence matrix with a scale on each axis from 1 through 4, with 4 being the highest likelihood or consequence. Significant environmental events are defined as those with a rating of 3 or higher on the consequence scale.
A13: 4. Fines paid during 2024 were associated with NOVs related to exploration activities at Tyrone and an Administrative Order of Consent at Fort Madison related to air quality.

Sheet GRI Index; SDGs
A1: GRI CONTENT INDEX
A3: The table below provides an overview of the relevant GRI Standards for our most material* topics and where to find information in our Annual Report on Sustainability, website or from other sources. We are reporting in reference to the GRI Standards (2021) and GRI 14 Mining Sector Supplement (2024). While FCX provides disclosures on additional GRI Topics, only those aligned with FCX's 2024 materiality assessment and GRI 14 Mining Sector Supplement (2024) are included in the index below. Information presented in this index refer to the active operations of Freeport-McMoRan’s mining subsidiaries: Freeport Minerals Company (FMC) and PT Freeport Indonesia (PTFI) for the period January 1, 2024 to December 31, 2024, unless otherwise stated. This index also highlights alignment to the UN Sustainable Development Goals. *Note: The term “materiality” is based on a different definition of materiality than used in U.S. federal securities laws and regulations or the disclosure requirements of the Securities and Exchange Commission (SEC). Websites and links can be found in the references tab.
A9: SERIES | B9: MATERIAL TOPIC | C9: DISCLOSURE | D9: DISCLOSURE DESCRIPTION | E9: FCX RESPONSE (Websites and links can be found in the references tab) | F9: Variance | G9: UN SDGs
A10: GRI 2 General Disclosures 2021 | C10: 2-1 | D10: Organizational details | E10: Freeport-McMoRan Inc. (NYSE: FCX) Phoenix, Arizona, USA Our operating mines are located in Chile, Indonesia, Peru and the United States. About Us on fcx.com Form 10-K: Part I: General, Mining Operations
A11: GRI 2 General Disclosures 2021 | C11: 2-2 | D11: Entities included in the organization’s sustainability reporting | E11: Form 10-K: Part I, General 2024 Annual Report on Sustainability: About this Report, ESG Performance Data
A12: GRI 2 General Disclosures 2021 | C12: 2-3 | D12: Reporting period, frequency and contact point | E12: Fiscal year ended December 31, 2024 (annual) The 2024 Annual Report on Sustainability is aligned with FCX's financial reporting period Published April 24, 2025 ir@fmi.com
A13: GRI 2 General Disclosures 2021 | C13: 2-4 | D13: Restatements of information | E13: As a result of methodology changes or corrections, prior year data may be adjusted or revised. Revisions are clearly noted in relevant footnotes if applicable. In the event that a revision is significant, its effect will be discussed in footnotes or the relevant section of the Sustainability Report.
A14: GRI 2 General Disclosures 2021 | C14: 2-5 | D14: External assurance | E14: Our Annual Reports on Sustainability have been independently verified since 2005. Limited assurance of the 2024 report was obtained from Ernst & Young (EY) LLP as indicated in the Report of Independent Accountants. External reasonable-level assurance reviews occur at each of our active mining and metals processing operations every three years for purposes of maintaining the Copper Mark and/or Molybdenum Mark and confirming the site is upholding ICMM Performance Expectations. Certain of our larger mining operations also undergo limited-level assurance more frequently to support our disclosures and overall responsible production performance. A combination of on-site and virtual assurance reviews were conducted in 2024. Annual Report on Sustainability: Our Strategy in Action: Responsible Production External Assurance on fcx.com
A15: GRI 2 General Disclosures 2021 | C15: 2-6 | D15: Activities, value chain and other business relationships | E15: Freeport-McMoRan Inc. (Freeport-McMoRan, Freeport, FCX or the company) is a leading international mining company with headquarters in Phoenix, Arizona. FCX operates large, long-lived, geographically diverse assets with significant proven and probable reserves of copper, gold and molybdenum. FCX’s portfolio of assets includes the Grasberg minerals district in Indonesia (PT Freeport Indonesia or PTFI), one of the world’s largest copper and gold deposits; and significant mining operations in North America and South America (Freeport Minerals Corporation or FMC), including the large-scale Morenci minerals district in Arizona and the Cerro Verde operation in Peru. About Us on fcx.com Form 10-K: Part I Products and Sales; General; Items 1. and 2. Business and Properties; Mining Production and Sales Data; Part I, Sources and Availability of Energy, Natural Resources and Raw Materials; Part II, Revenues; Part II, Management's Discussion and Analysis of Financial Condition and Results of Operations and Quantitative and Qualitative Disclosures About Market Risk Annual Report on Sustainability: Our Strategy in Action: Responsible Production; Economic Contributions; Workforce; ESG Performance Data Suppliers webpage on fcx.com Commodity Management webpage on fcx.com | G15: SDG 8: Decent Work and Economic Growth
A16: GRI 2 General Disclosures 2021 | C16: 2-7 | D16: Employees | E16: Form 10-K: Items 1 and 2. Business and Properties: Human Capital: Workforce Annual Report on Sustainability: Workforce; ESG Performance Data: Workforce FCX does not have " non-guaranteed hours employees" | F16: We report the total number of employees by region and the percentage of women in each region. For the U.S., we report in line with EEO requirements. We also report the number of contractors in each region and what percent of them are covered under collective labor agreements. We also report the number of full time and part time employees, the number of employees in each job category, employees by age group and by nationality. At this time, we do not report: total number of permanent and temporary employees by gender and region; methodologies and assumptions used to compile the data. | G16: SDG 8: Decent Work and Economic Growth SDG 10: Reduced Inequalities
A17: GRI 2 General Disclosures 2021 | C17: 2-8 | D17: Workers who are not employees | E17: Form 10-K: Items 1 and 2. Business and Properties: Human Capital: Workforce Annual Report on Sustainability: Workforce; ESG Performance Data | F17: We report the number of contractors employed; however, we do not discuss the most common types of contractor, the work they perform, their contractual relationship with the organization. | G17: SDG 8: Decent Work and Economic Growth SDG 10: Reduced Inequalities
A18: GRI 2 General Disclosures 2021 | C18: 2-9 | D18: Governance structure and composition | E18: Annual Report on Sustainability: Robust Governance Freeport-McMoRan Inc. Corporate Governance Guidelines Proxy Statement: Board Qualifications, Skills and Experience; Board Composition About Us on fcx.com | G18: SDG 5: Gender Equality SDG 16: Peace, Justice and Strong Institutions
A19: GRI 2 General Disclosures 2021 | C19: 2-10 | D19: Nominating and selecting the highest governance body | E19: Proxy Statement: Board Qualifications, Skills and Experience; Board Composition Freeport-McMoRan Inc. Corporate Governance Guidelines | G19: SDG 5: Gender Equality SDG 16: Peace, Justice and Strong Institutions
A20: GRI 2 General Disclosures 2021 | C20: 2-11 | D20: Chair of the highest governance body | E20: Effective at the annual meeting of stockholders on June 11, 2024, Ms. Kathleen Quirk succeeded Mr. Richard Adkerson as CEO. Mr. Adkerson continues to serve as chairman of the board and as an executive officer of FCX, supporting the company on global matters of strategic importance. Mr. Dustan McCoy serves as the Lead Independent Director. Proxy Statement: Board Structure | G20: SDG 16: Peace, Justice and Strong Institutions
A21: GRI 2 General Disclosures 2021 | C21: 2-12 | D21: Role of the highest governance body in overseeing the management of impacts | E21: Annual Report on Sustainability: Our Approach; Robust Governance; Stakeholder Engagement & Materiality; Business Conduct Proxy Statement: ESG / Sustainability; Board Committees; Board Oversight Freeport-McMoRan Inc. Corporate Governance Guidelines Corporate Responsibility Committee Charter | G21: SDG 16: Peace, Justice and Strong Institutions SDG 17: Partnerships for the Goals
A22: GRI 2 General Disclosures 2021 | C22: 2-13 | D22: Delegation of responsibility for managing impacts | E22: Annual Report on Sustainability: Robust Governance Proxy Statement: ESG / Sustainability; Board Committees; Board Oversight
A23: GRI 2 General Disclosures 2021 | C23: 2-14 | D23: Highest governance body’s role in sustainability reporting | E23: Our CEO has responsibility for the company’s sustainability performance, with active oversight from the Board. Our cross-functional SLT includes members of management tasked with defining our sustainability strategy and implementing policies, systems and programs across the organization to achieve integrated decision making for responsible production and performance. The SLT provides oversight of our sustainability work in each focus area, with the programs directed and managed by our corporate and site-level sustainability teams. The SLT is sponsored by our Chief Administrative Officer and led by our Chief Sustainability Officer, with active participation from our five business unit presidents and senior leadership from functional groups including health and safety, security, supply chain, human resources, sales, legal, compliance, sustainability and finance. Executive officers are held accountable for FCX’s ESG performance in part through FCX’s performance-based annual incentive program (AIP) via predetermined metrics aligned with our key commitments and priorities. In 2024, ESG metrics collectively accounted for 25% of the AIP (15% safety and 10% sustainability), with the sustainability scorecard including performance metrics associated with the Copper Mark and Molybdenum Mark, climate, human rights, tailings management and workforce priorities. The scorecard used to measure 2024 sustainability performance can be found in the Compensation Discussion and Analysis section of our latest Proxy Statement. The results of the 2024 materiality assessment were presented to and approved by the SLT. Annual Report on Sustainability: Stakeholder Engagement and Materiality; Robust Governance; Materiality
A24: GRI 2 General Disclosures 2021 | C24: 2-15 | D24: Conflicts of interest | E24: Freeport-McMoRan maintains Conflicts of Interest Guidelines that are designed to provide guidance to directors, officers and employees so that conflicts of interest may be avoided. The guidelines establish procedures for disclosure of actual or potential conflicts of interest so that concerns may be addressed and corrective action may be taken. Annual Report on Sustainability: Robust Governance Freeport-McMoRan Inc. Corporate Governance Guidelines Proxy Statement: Board Composition; Board Governance, Principles and Policies | G24: SDG 16: Peace, Justice and Strong Institutions
A25: GRI 2 General Disclosures 2021 | C25: 2-16 | D25: Communicating critical concerns | E25: Annual Report on Sustainability: Governance; Human Rights Proxy Statement: Communications with the Board Freeport-McMoRan Inc. Corporate Governance Guidelines | F25: We publicly report on key sustainability-related topics communicated to the board and its committees. We do not report the total number of critical concerns that were communicated to the highest governance body during the reporting period.
A26: GRI 2 General Disclosures 2021 | C26: 2-17 | D26: Collective knowledge of highest governance body | E26: Proxy Statement: Board Governance, Principles and Policies Annual Report on Sustainability: Governance
A27: GRI 2 General Disclosures 2021 | C27: 2-18 | D27: Evaluating the highest governance body’s performance | E27: Freeport-McMoRan Inc. Corporate Governance Guidelines Proxy Statement: Annual Board and Committee Evaluations
A28: GRI 2 General Disclosures 2021 | C28: 2-19 | D28: Remuneration policies | E28: Annual Report on Sustainability: Governance Proxy Statement: Director Compensation; Executive Officer Compensation
A29: GRI 2 General Disclosures 2021 | C29: 2-20 | D29: Process for determining remuneration | E29: We are committed to respecting the rights of our workforce, including paying fair and equal wages. Our approach to compensation and benefits is market-based, competitive and informed by annual benchmarking and analysis. This includes equal pay for equal work and compensation levels that support the acquisition of the goods and services necessary for an average-size family to meet their basic needs in the geographic locations where we operate – often referred to as a living wage. We are committed to providing equal pay for equal work regardless of gender, race, ethnicity or any area protected by law. We periodically conduct internal compensation reviews to identify possible pay gaps which cannot be explained through performance, distribution of jobs, experience, time in role and other legitimate business-related factors. Proxy Statement: Director Compensation; Executive Officer Compensation Annual Report on Sustainability: Workforce
A30: GRI 2 General Disclosures 2021 | C30: 2-21 | D30: Annual total compensation ratio | E30: Proxy Statement: CEO Pay Ratio | F30: We report on CEO Pay Ratio. At this time we do not report the ratio of the percentage increase in annual total compensation for the organization’s highest-paid individual to the median percentage increase in annual total compensation for all employees (excluding the highest-paid individual).
A31: GRI 2 General Disclosures 2021 | C31: 2-22 | D31: Statement on sustainable development strategy | E31: Annual Report on Sustainability: Stakeholder Letters; Our Approach
A32: GRI 2 General Disclosures 2021 | C32: 2-23 | D32: Policy Commitments | E32: Freeport-McMoRan is a leading responsible copper producer. Our commitment to responsible copper production is visible in everything we do, driven by our core values of Safety, Respect, Integrity, Excellence and Commitment. Our values direct the decisions we make as a company and as individual employees. These values represent who we are and how we work – everyone, everywhere, every day. Our focus on responsible production is critical to establish and maintain acceptance from our local stakeholders through shared value creation and to meet society's responsible sourcing objectives necessary to supply the world with copper. Annual Report on Sustainability: Our Strategy in Action: Responsible Production; Business Conduct; Empowered People & Resilient Communities; Thriving Environments Freeport-McMoRan Human Rights Policy Freeport-McMoRan Principles of Business Conduct Freeport-McMoRan Business Partner Code of Conduct Freeport-McMoRan Corporate Governance | F32: We describe our policy commitments, how they are communicated, application and approach for responsible production, including due diligence and risk assessment. We disclose our policy commitments publicly and indicate the level at which each policy was approved. We do not describe whether the commitments stipulate applying the precautionary principle. | G32: SDG 16: Peace, Justice and Strong Institutions
A33: GRI 2 General Disclosures 2021 | C33: 2-24 | D33: Embedding policy commitments | E33: Annual Report on Sustainability: Business Conduct; Human Rights; Responsible Value Chains Freeport-McMoRan Principles of Business Conduct Freeport-McMoRan Business Partner Code of Conduct
A34: GRI 2 General Disclosures 2021 | C34: 2-25 | D34: Processes to remediate negative impacts | E34: Annual Report on Sustainability: Business Conduct; Human Rights; Responsible Value Chains https://secure.ethicspoint.com/domain/media/en/gui/76933/index.html
A35: GRI 2 General Disclosures 2021 | C35: 2-26 | D35: Mechanisms for seeking advice and raising concerns | E35: Annual Report on Sustainability: Business Conduct; Human Rights Principles of Business Conduct: FCX Compliance Line | G35: SDG 16: Peace, Justice and Strong Institutions
A36: GRI 2 General Disclosures 2021 | C36: 2-27 | D36: Compliance with laws and regulations | E36: Sustainability Report: Environmental Compliance; Human Rights Freeport-McMoRan Form 10-K: Governmental Regulations; Item 3: Legal Proceedings; Note: 12 Contingencies | F36: We disclose significant instances of non-compliance during the reporting period, as well as the total amount of environmental fines paid in the current reporting period and previous reporting periods. We do not currently disclose the total number and value for all fines incurred or paid for instances of non-compliance with laws or regulations. | G36: SDG 16: Peace, Justice and Strong Institutions
A37: GRI 2 General Disclosures 2021 | C37: 2-28 | D37: Membership of associations | E37: Annual Report on Sustainability: Stakeholder Engagement & Materiality | G37: SDG 17: Partnerships for the Goals
A38: GRI 2 General Disclosures 2021 | C38: 2-29 | D38: Approach to Stakeholder engagement | E38: FCX’s sustainability strategy relies upon, and is consistently informed by, engagement with our stakeholders. Our approach is characterized by transparency, collaboration, and meaningful dialogue with the primary goal of fostering mutual understanding, trust and cooperation with stakeholder groups. Annual Report on Sustainability: Stakeholder Engagement & Materiality; Human Rights; Workforce; Communities & Indigenous Peoples 2024 Proxy Statement: Stakeholder Engagement | G38: SDG 16: Peace, Justice and Strong Institutions SDG 17: Partnerships for the Goals
A39: GRI 2 General Disclosures 2021 | C39: 2-30 | D39: Collective bargaining agreements | E39: Annual Report on Sustainability: Workforce Form 10-K: Part I, Human Capital | G39: SDG 8: Decent Work and Economic Growth
A40: GRI 3 Material Topics 2021 | C40: 3-1 | D40: Process to determine material topics | E40: Annual Report on Sustainability: Stakeholder Engagement & Materiality
A41: GRI 3 Material Topics 2021 | C41: 3-2 | D41: List of material topics | E41: This index includes relevant topics as outlined in the GRI 14 Mining Sector Standards. All other topics from the GRI Standards and GRI 14 Mining Sector Standards are excluded as they were not determined to be material for this exercise. Business Conduct (Topic 14.22 Anti-corruption) Responsible Value Chains (Topic 14.18 Child labor; Topic 14.19 Forced labor and modern slavery) Health, Safety and Well-being (Topic 14.16 Occupational health and safety; Topic 14.15 Critical incident management) Workforce (Topic 14.17 Employment practices; Topic 14.20 Freedom of association and collective bargaining ; Topic 14.21 Non-discrimination and equal opportunity) Communities and Indigenous Peoples (Topic 14.10 Local communities; Topic 14.11 Right of Indigenous Peoples; Topic 14.12 Land and resource rights) Economic Contributions (Topic 14.9 Economic impacts; Topic 14.23 Payments to governments) Climate (Topic 14.1 GHG emissions; Topic 14.2 Climate adaptation and resilience) Water Stewardship (Topic 14.7 Water and effluents) Biodiversity (Topic 14.4 Biodiversity) Mineral Waste and Circular Copper (Topic 14.5 Waste) Tailings Management (Topic 14.6 Tailings)
A42: Business Conduct
A43: GRI 14 MINING SECTOR | B43: 14.22 Anti-Corruption | C43: 3-3 | D43: Management of material topics | E43: Annual Report on Sustainability: Our Approach; Business Conduct; Economic Contributions; Responsible Value Chains Form 10-K: Risk Factors | G43: SDG 16: Peace, Justice and Strong Institutions
A44: GRI 200 ECONOMIC | B44: 205 Anti-Corruption 2016 | C44: 205-1 | D44: Operations assessed for risks related to corruption | E44: Every year, our internal audit firm performs a company-wide, global business risk assessment to assist in planning the next year’s audit projects. This overall risk assessment includes corruption as a risk factor. Annual Report on Sustainability: Our Approach; Business Conduct; Our Strategy in Action: Responsible Production | F44: We perform an annual company-wide, global business risk assessment; however, we do not disclose significant risks related to corruption identified through the risk assessment. | G44: SDG 16: Peace, Justice and Strong Institutions
A45: GRI 200 ECONOMIC | B45: 205 Anti-Corruption 2016 | C45: 205-2 | D45: Communication and training about anti-corruption policies and procedures | E45: Annual Report on Sustainability: Our Approach; Business Conduct; ESG Performance Data | F45: We report on our Principles of Business Conduct and Anti-corruption training; however, we do not provide a breakdown by employee category, business partners or region as requested by GRI. | G45: SDG 16: Peace, Justice and Strong Institutions
A46: GRI 200 ECONOMIC | B46: 205 Anti-Corruption 2016 | C46: 205-3 | D46: Confirmed incidents of corruption and actions taken | E46: Annual Report on Sustainability: Business Conduct > Anti-corruption | G46: SDG 16: Peace, Justice and Strong Institutions
A47: Responsible Value Chains
A48: GRI 14 MINING SECTOR | B48: 14.18 Child Labor | C48: 3-3 | D48: Management of material topics | E48: Annual Report on Sustainability: Our Approach; Responsible Value Chains; Human Rights Human Rights Policy Business Partner Code of Conduct Responsible Souring of Minerals Policy Human Rights on fcx.com UK Modern Slavery Act Statement | G48: SDG 8: Decent Work and Economic Growth
A49: GRI 400 SOCIAL | B49: 408 Child Labor 2016 | C49: 408-1 | D49: Operations and suppliers at significant risk for incidents of child labor | E49: Annual Report on Sustainability: Business Conduct; Human Rights > Managing Risks of Temporary Workers; Responsible Value Chains Human Rights Policy Business Partner Code of Conduct Responsible Souring of Minerals Policy Human Rights on fcx.com UK Modern Slavery Act Statement | G49: SDG 8: Decent Work and Economic Growth
A50: GRI 400 SOCIAL | B50: 414 Supplier Social Assessment 2016 | C50: 414-1 | D50: New suppliers that were screened using social criteria | E50: Business Partner Code of Conduct Annual Report on Sustainability: Business Conduct; Responsible Value Chains; Human Rights UK Modern Slavery Act Statement | F50: We screen new suppliers across a range of sustainability criteria, including social aspects of sustainability. We do not report on the percentage screened. | G50: SDG 8: Decent Work and Economic Growth
A51: GRI 14 MINING SECTOR | B51: 14.19 Forced or Compulsory Labor | C51: 3-3 | D51: Management of material topics | E51: Annual Report on Sustainability: Our Approach; Human Rights; Responsible Value Chains Human Rights Policy Responsible Sourcing of Minerals Policy Human Rights on fcx.com | G51: SDG 8: Decent Work and Economic Growth
A52: GRI 400 SOCIAL | B52: 409 Forced or Compulsory Labor 2016 | C52: 409-1 | D52: Operations and suppliers at significant risk for incidents of forced or compulsory labor | E52: We prohibit forced, compulsory and child labor and human trafficking. We do not believe that any of our operations are at significant risk for incidents of forced or compulsory labor. Annual Report on Sustainability: Business Conduct; Human Rights; Responsible Value Chains; Workforce Human Rights Policy Business Partner Code of Conduct Responsible Souring of Minerals Policy Human Rights on fcx.com UK Modern Slavery Act Statement | G52: SDG 8: Decent Work and Economic Growth
A53: Health, Safety and Well-Being
A54: GRI 14 MINING SECTOR | B54: 14.15 Critical Incident Management | C54: 3-3 | D54: Management of material topics | E54: Annual Report on Sustainability: Our Approach; Letters to Stakeholders; Health, Safety and Well-being; Water Stewardship; Tailings Management; Environmental Compliance | G54: SDG 8: Decent Work and Economic Growth SDG 12: Responsible Consumption and Production SDG 13: Climate Action SDG 14: Life Below Water SDG 15: Life on Land
A55: GRI 300 ENVIRONMENTAL | B55: 306 Waste and Effluents 2016 | C55: 306-3 | D55: Significant spills | E55: Annual Report on Sustainability: Ambitions and Performance Objectives; Environmental Compliance; ESG Performance Data | G55: SDG 8: Decent Work and Economic Growth SDG 12: Responsible Consumption and Production SDG 13: Climate Action SDG 14: Life Below Water SDG 15: Life on Land
A56: GRI 14 MINING SECTOR | B56: 14.16 Occupational Health and Safety | C56: 3-3 | D56: Management of material topics | E56: Annual Report on Sustainability: Our Approach; Letter to Stakeholders; Views from Our Corporate Responsibility Committee Chair; Health, Safety and Well-being | G56: SDG 3: Good Health and Well-Being SDG 8: Decent Work and Economic Growth
A57: GRI 400 SOCIAL | B57: 403 Occupational Health and Safety 2018 | C57: 403-1 | D57: Occupational health and safety management system | E57: Annual Report on Sustainability: Health, Safety and Well-being Our Occupational Health and Safety Management System is voluntarily certified in accordance with the ISO 45001 Health and Safety Management System. | G57: SDG 3: Good Health and Well-Being SDG 8: Decent Work and Economic Growth
A58: GRI 400 SOCIAL | B58: 403 Occupational Health and Safety 2018 | C58: 403-2 | D58: Hazard identification, risk assessment, and incident investigation | E58: Annual Report on Sustainability: Health, Safety and Well-being; Workforce > Global Facilities and PPE Assessment | G58: SDG 3: Good Health and Well-Being SDG 8: Decent Work and Economic Growth
A59: GRI 400 SOCIAL | B59: 403 Occupational Health and Safety 2018 | C59: 403-3 | D59: Occupational health services | E59: Annual Report on Sustainability: Health, Safety and Well-being; Our Strategy in Action: Responsible Production | G59: SDG 3: Good Health and Well-Being SDG 8: Decent Work and Economic Growth
A60: GRI 400 SOCIAL | B60: 403 Occupational Health and Safety 2018 | C60: 403-4 | D60: Worker participation, consultation, and communication on occupational health and safety | E60: Annual Report on Sustainability: Health, Safety and Well-being | F60: We report on our expectation that every member of our workforce engage in our health and safety program. We do not report on formal joint management-worker health and safety committees. | G60: SDG 3: Good Health and Well-Being SDG 8: Decent Work and Economic Growth
A61: GRI 400 SOCIAL | B61: 403 Occupational Health and Safety 2018 | C61: 403-5 | D61: Worker training on occupational health and safety | E61: Annual Report on Sustainability: Health, Safety and Well-being | G61: SDG 3: Good Health and Well-Being SDG 8: Decent Work and Economic Growth
A62: GRI 400 SOCIAL | B62: 403 Occupational Health and Safety 2018 | C62: 403-6 | D62: Promotion of worker health | E62: Annual Report on Sustainability: Health, Safety and Well-being | G62: SDG 3: Good Health and Well-Being SDG 8: Decent Work and Economic Growth
A63: GRI 400 SOCIAL | B63: 403 Occupational Health and Safety 2018 | C63: 403-7 | D63: Prevention and mitigation of occupational health and safety impacts directly linked by business relationships | E63: Annual Report on Sustainability: Responsible Value Chains; Health, Safety and Well-being | G63: SDG 3: Good Health and Well-Being SDG 8: Decent Work and Economic Growth
A64: GRI 400 SOCIAL | B64: 403 Occupational Health and Safety 2018 | C64: 403-8 | D64: Workers covered by an occupational health and safety management system | E64: Every member of our workforce is empowered to engage in our health and safety program, including our occupational health and safety management system. Annual Report on Sustainability: Health, Safety and Well-being | F64: Our occupational health and safety management system is ISO 45001 certified; we do not report coverage percentages as outlined by GRI. | G64: SDG 3: Good Health and Well-Being SDG 8: Decent Work and Economic Growth
A65: GRI 400 SOCIAL | B65: 403 Occupational Health and Safety 2018 | C65: 403-9 | D65: Work-related injuries | E65: Annual Report on Sustainability: Health, Safety and Well-being; ESG Performance Data | F65: FCX reports health and safety data based on Mine Safety and Health Administration (MSHA) reporting criteria, as such, scopes may vary from what is requested by GRI. Data include employees (full-time and part-time employees on a full-time equivalent basis) and contractors. FCS does not separate the number and rate of high-consequence work-related injuries by employees and contractors separately. FCX does not report which types of hazards caused high-consequence injuries during the reporting period. | G65: SDG 3: Good Health and Well-Being SDG 8: Decent Work and Economic Growth
A66: GRI 400 SOCIAL | B66: 403 Occupational Health and Safety 2018 | C66: 403-10 | D66: Work-related ill health | F66: We do not report this indicator at this time.
A67: Workforce
A68: GRI 14 MINING SECTOR | B68: 14.17 Employment Practices | C68: 3-3 | D68: Management of material topics | E68: Annual Report on Sustainability: Our Approach; Workforce fcx.com/careers | G68: SDG 5: Gender Equality SDG 8: Decent Work and Economic Growth SDG 10: Reduced Inequalities
A69: GRI 200 ECONOMIC | B69: 202 Market Presence 2016 | C69: 202-1 | D69: Ratios of standard entry-level wage by gender compared to local minimum wage | E69: Annual Report on Sustainability: Workforce; ESG Performance Data | F69: FCX discloses its approach to pay equity, however, we do not report this indicator at this time. | G69: SDG 5: Gender Equality SDG 8: Decent Work and Economic Growth SDG 10: Reduced Inequalities
A70: GRI 400 SOCIAL | B70: 401 Employment 2016 | C70: 401-1 | D70: New employee hires and employee turnover | E70: Annual Report on Sustainability: Workforce; ESG Performance Data | G70: SDG 5: Gender Equality SDG 8: Decent Work and Economic Growth SDG 10: Reduced Inequalities
A71: GRI 400 SOCIAL | B71: 401 Employment 2016 | C71: 401-2 | D71: Benefits provided to full-time employees that are not provided to temporary or part-time employees | E71: Annual Report on Sustainability: Workforce; ESG Performance Data | G71: SDG 5: Gender Equality SDG 8: Decent Work and Economic Growth SDG 10: Reduced Inequalities
A72: GRI 400 SOCIAL | B72: 401 Employment 2016 | C72: 401-3 | D72: Parental leave | E72: Annual Report on Sustainability: ESG Performance Data fcx.com/careers | F72: Parental leave benefits vary by region. We do not disclose participation or return rates. | G72: SDG 5: Gender Equality SDG 8: Decent Work and Economic Growth SDG 10: Reduced Inequalities
A73: GRI 400 SOCIAL | B73: 402 Labor/Management Relations 2016 | C73: 402-1 | D73: Minimum notice periods regarding operational changes | F73: We do not disclose this at this time.
A74: GRI 400 SOCIAL | B74: 404 Training and Education 2016 | C74: 404-1 | D74: Average hours of training per year per employee | E74: Annual Report on Sustainability: Workforce fcx.com/careers | F74: We describe various training and development opportunities available to our employees and the average hours trained for managers and non-managers; however, at this time we do not report the average of hours of training provided by gender. | G74: SDG 5: Gender Equality SDG 8: Decent Work and Economic Growth SDG 10: Reduced Inequalities
A75: GRI 400 SOCIAL | B75: 404 Training and Education 2016 | C75: 404-2 | D75: Programs for upgrading employee skills and transition assistance programs | E75: Annual Report on Sustainability: Workforce fcx.com/careers | F75: We describe various training and development opportunities available to our employees; however, at this time we do not describe transition assistance programs. | G75: SDG 5: Gender Equality SDG 8: Decent Work and Economic Growth SDG 10: Reduced Inequalities
A76: GRI 400 SOCIAL | B76: 414 Supplier Social Assessment 2016 | C76: 414-1 | D76: New suppliers that were screened using social criteria | E76: Business Partner Code of Conduct Annual Report on Sustainability: Business Conduct; Responsible Value Chains; Human Rights UK Modern Slavery Act Statement | F76: We screen new suppliers across a range of sustainability criteria, including social aspects of sustainability. We do not report on the percentage screened. | G76: SDG 5: Gender Equality SDG 8: Decent Work and Economic Growth SDG 12: Responsible Consumption and Production SDG 16: Peace, Justice and Strong Institutions
A77: GRI 400 SOCIAL | B77: 414 Supplier Social Assessment 2016 | C77: 414-2 | D77: Negative social impacts in the supply chain and actions taken | E77: Annual Report on Sustainability: Business Conduct; Responsible Value Chains; ESG Performance Data | F77: We describe our risk-based decision-making process and disclose the percent of suppliers requiring additional engagement due to a variety of factors, not solely social. For our minerals and metals supply chains, we report our due diligence tools and the number of suppliers flagged for a variety of risk factors, not solely social. | G77: SDG 5: Gender Equality SDG 8: Decent Work and Economic Growth SDG 12: Responsible Consumption and Production SDG 16: Peace, Justice and Strong Institutions
A78: GRI 14 MINING SECTOR | B78: 14.20 Freedom of Association and Colective Bargaining | C78: 3-3 | D78: Management of material topics | E78: Annual Report on Sustainability: Our Approach; Robust Governance; Workforce Human Rights Policy Form 10-K | G78: SDG 8: Decent Work and Economic Growth
A79: GRI 400 SOCIAL | B79: 407 Freedom of Association and Collective Bargaining 2016 | C79: 407-1 | D79: Operations and suppliers in which the right to freedom of association and collective bargaining may be at risk | E79: We do not believe that the right to exercise freedom of association and collective bargaining is at significant risk at any of our operations and we work to embed our human rights policy and respect for people across our operations. Our grievance mechanisms enable workers - without fear of retaliation - to report if they believe this right is being violated. Annual Report on Sustainability: Workforce; ESG Performance Data | G79: SDG 8: Decent Work and Economic Growth
A80: GRI 14 MINING SECTOR | B80: 14.20 Freedom of Association and Colective Bargaining | C80: 14.20.3 | D80: Number of strikes and lockouts | E80: In 2024, there were no strikes or lockouts at any of our operations. | G80: SDG 8: Decent Work and Economic Growth
A81: GRI 14 MINING SECTOR | B81: 14.21 Non-Discrimination and Equal Opportunity | C81: 3-3 | D81: Management of material topics | E81: Annual Report on Sustainability: Our Approach; Business Conduct; Workforce Human Rights Policy | G81: SDG 5: Gender Equality SDG 8: Decent Work and Economic Growth SDG 10: Reduced Inequalities SDG 16: Peace, Justice and Strong Institutions
A82: GRI 200 ECONOMIC | B82: 202 Market Presence 2016 | C82: 202-2 | D82: Proportion of senior management hired from the local community | E82: Annual Report on Sustainability: Workforce; ESG Performance Data | F82: We report the percent of local coutry nationals employed, we do not provide a break down by job category. | G82: SDG 5: Gender Equality SDG 8: Decent Work and Economic Growth SDG 10: Reduced Inequalities SDG 16: Peace, Justice and Strong Institutions
A83: GRI 400 SOCIAL | B83: 401 Employment 2016 | C83: 401-3 | D83: Parental leave | E83: Annual Report on Sustainability: ESG Performance Data fcx.com/careers | F83: Parental leave benefits vary by region. We do not disclose participation or return rates. | G83: SDG 5: Gender Equality SDG 8: Decent Work and Economic Growth SDG 10: Reduced Inequalities SDG 16: Peace, Justice and Strong Institutions
A84: GRI 400 SOCIAL | B84: 404 Training and Education 2016 | C84: 404-1 | D84: Average hours of training per year per employee | E84: Annual Report on Sustainability: Workforce fcx.com/careers | F84: We describe various training and development opportunities available to our employees and the average hours trained for managers and non-managers; however, at this time we do not report the average of hours of training provided by gender. | G84: SDG 5: Gender Equality SDG 8: Decent Work and Economic Growth SDG 10: Reduced Inequalities SDG 16: Peace, Justice and Strong Institutions
A85: GRI 400 SOCIAL | B85: 405 Diversity and Equal Opportunity 2016 | C85: 405-1 | D85: Diversity of governance bodies and employees | E85: Annual Report on Sustainability: Our Approach; Robust Governance; Workforce Proxy Statement: Board Composition Inclusion and Diversity Policy | F85: We provide several breakdowns of our workforce data by age, gender, and ethnicity; however, all breakdowns as requested by GRI are not provided for each employee category. | G85: SDG 5: Gender Equality SDG 8: Decent Work and Economic Growth SDG 10: Reduced Inequalities SDG 16: Peace, Justice and Strong Institutions
A86: GRI 400 SOCIAL | B86: 405 Diversity and Equal Opportunity 2016 | C86: 405-2 | D86: Ratio of basic salary and remuneration of women to men | E86: Annual Report on Sustainability: Workforce | F86: FCX reports the results of its pay equity analysis for females to males (globally) and non-white to white (U.S. only). This data is not reported by employee category or location. | G86: SDG 5: Gender Equality SDG 8: Decent Work and Economic Growth SDG 10: Reduced Inequalities SDG 16: Peace, Justice and Strong Institutions
A87: GRI 400 SOCIAL | B87: 406 Non-discrimination 2016 | C87: 406-1 | D87: Incidents of discrimination and corrective actions taken | E87: Annual Report on Sustainability: Robust Governance; Workforce | F87: We report on our non-discrimination and grievance programs as well as the total number of grievances received through our Compliance Line. We do not report the total number or status of incidents of discrimination. | G87: SDG 5: Gender Equality SDG 8: Decent Work and Economic Growth SDG 16: Peace, Justice and Strong Institutions
A88: Communities and Indigenous Peoples
A89: GRI 14 MINING SECTOR | B89: 14.10 Local Communities | C89: 3-3 | D89: Management of material topics | E89: Annual Report on Sustainability: Our Approach; Human Rights; Communities and Indigenous Peoples Social Performance Policy | G89: SDG 3: Good Health and Well-Being SDG 4: Quality Education SDG 5: Gender Equality SDG 8: Decent Work and Economic Growth SDG 10: Reduced Inequalities
A90: GRI 400 SOCIAL | B90: 413 Local Communities 2016 | C90: 413-1 | D90: Operations with local community engagement, impact assessments, and development programs | E90: All of our operations have a stakeholder engagement process in place, commensurate with the size and complexity of the operation. Annual Report on Sustainability: Our Approach; Stakeholder Engagement and Materiality; Human Rights; Communities and Indigenous Peoples | G90: SDG 3: Good Health and Well-Being SDG 4: Quality Education SDG 5: Gender Equality SDG 8: Decent Work and Economic Growth SDG 10: Reduced Inequalities
A91: GRI 400 SOCIAL | B91: 413 Local Communities 2016 | C91: 413-2 | D91: Operations with significant actual and potential negative impacts on local communities | E91: To identify potential and actual negative impacts on our host communities we conduct due diligence on an ongoing basis. In all cases there are stakeholder engagement activities that are commensurate with the size and complexity of the operation. For all of our mining operations we conduct Human Rights Impact Assessments (HRIAs) using a third party and publish a summary of the results on our website. Our grievance mechanisms enable us to identify potential or actual impacts to communities. We follow UNGP guidelines for providing remedy where actual impacts are identified. Annual Report on Sustainability: Human Rights; Communities and Indigenous Peoples Human Rights: Due Diligence on fcx.com | G91: SDG 3: Good Health and Well-Being SDG 4: Quality Education SDG 5: Gender Equality SDG 8: Decent Work and Economic Growth SDG 10: Reduced Inequalities
A92: GRI 14 MINING SECTOR | B92: 14.11 Rights of Indigenous Peoples | C92: 3-3 | D92: Management of material topics | E92: Annual Report on Sustainability: Our Approach; Human Rights; Communities and Indigenous Peoples Social Performance Policy Human Rights Policy Land Use and Customary Rights at PTFI on fcx.com | G92: SDG 3: Good Health and Well-Being SDG 4: Quality Education SDG 5: Gender Equality SDG 8: Decent Work and Economic Growth SDG 10: Reduced Inequalities
A93: GRI 400 SOCIAL | B93: 411 Rights of Indigenous Peoples 2016 | C93: 411-1 | D93: Incidents of violations involving rights of Indigenous Peoples | E93: We report the number of gross human rights violations and disclose our programs and performance in our Voluntary Principles on Security and Human Rights Annual Report to the Plenary. There were no gross human rights violations in 2024. Annual Report on Sustainability: Human Rights; Communities and Indigenous Peoples> Community Grievance Mechanism; Nature Land Use and Customary Rights at PTFI on fcx.com Sustainability at PTFI Human Rights Policy | G93: SDG 16: Peace, Justice and Strong Institutions
A94: GRI 14 MINING SECTOR | B94: 14.12 Land and Resource Rights | C94: 3-3 | D94: Management of material topics | E94: Annual Report on Sustainability: Our Approach; Human Rights; Communities and Indigenous Peoples Social Performance Policy Human Rights Policy Land Use and Customary Rights at PTFI on fcx.com Sustainability at PTFI | G94: SDG 16: Peace, Justice and Strong Institutions
A95: GRI 14 MINING SECTOR | B95: 14.12 Land and Resource Rights | C95: 14.12.2 | D95: Involuntary resettlement | E95: There has not been involuntary physical or economic displacement of families or communities around FCX’s current operations in the last 20 years. Annual Report on Sustainability: Communities and Indigenous Peoples Social Performance Policy Human Rights Policy Land Use and Customary Rights at PTFI on fcx.com Sustainability at PTFI | G95: SDG 16: Peace, Justice and Strong Institutions
A96: Economic Contributions
A97: GRI 14 MINING SECTOR | B97: 14.9 Economic Impacts 14.23 Payments to Governments | C97: 3-3 | D97: Management of material topics | E97: Annual Report on Sustainability: Our Approach; Business Conduct; Economic Contributions; Human Rights; Responsible Value Chains; Communities and Indigenous Peoples; Workforce Economic Impact on fcx.com | G97: SDG 1: No Poverty SDG 4: Quality Education SDG 5: Gender Equality SDG 8: Decent Work and Economic Growth SDG 9: Industry, Innovation and Infrastructure SDG 16: Peace, Justice and Strong Institutions
A98: GRI 200 ECONOMIC | B98: 201 Economic Performance 2016 | C98: 201-1 | D98: Direct economic value generated and distributed | E98: Form 10-K: Part II, Consolidated Results Annual Report on Sustainability: Economic Contributions; ESG Performance Data Economic Impact on fcx.com | G98: SDG 1: No Poverty SDG 4: Quality Education SDG 5: Gender Equality SDG 8: Decent Work and Economic Growth SDG 9: Industry, Innovation and Infrastructure SDG 16: Peace, Justice and Strong Institutions
A99: GRI 200 ECONOMIC | B99: 203 Indirect Economic Impacts 2016 | C99: 203-1 | D99: Infrastructure investments and services supported | E99: Annual Report on Sustainability: Communities and Indigenous Peoples; Economic Contributions; ESG Performance Data Economic Impact on fcx.com Form 10-K: Community and Human Rights Sustainability at PTFI | G99: SDG 1: No Poverty SDG 4: Quality Education SDG 5: Gender Equality SDG 8: Decent Work and Economic Growth SDG 9: Industry, Innovation and Infrastructure SDG 16: Peace, Justice and Strong Institutions
A100: GRI 200 ECONOMIC | B100: 203 Indirect Economic Impacts 2016 | C100: 203-2 | D100: Significant indirect economic impacts | E100: Annual Report on Sustainability: Stakeholder Engagement and Materiality; Communities and Indigenous Peoples; Economic Contributions; ESG Performance Data Economic Impact on fcx.com Sustainability at PTFI | G100: SDG 1: No Poverty SDG 4: Quality Education SDG 5: Gender Equality SDG 8: Decent Work and Economic Growth SDG 9: Industry, Innovation and Infrastructure SDG 16: Peace, Justice and Strong Institutions
A101: GRI 200 ECONOMIC | B101: 204 Procurement Practices 2016 | C101: 204-1 | D101: Proportion of spending on local suppliers | E101: Annual Report on Sustainability: Responsible Value Chains > Local and Diversified Procurement; Economic Contributions; ESG Performance Data | G101: SDG 1: No Poverty SDG 4: Quality Education SDG 5: Gender Equality SDG 8: Decent Work and Economic Growth SDG 9: Industry, Innovation and Infrastructure SDG 16: Peace, Justice and Strong Institutions
A102: GRI 200 ECONOMIC | B102: 201 Economic Performance 2016 | C102: 201-4 | D102: Financial assistance received from government | E102: Form 10-K: Deferred tax assets Annual Report on Sustainability: Climate | F102: FCX does not disclose an aggregated or disaggregated total monetary value of financial assistance received as requested by GRI. | G102: SDG 1: No Poverty SDG 4: Quality Education SDG 5: Gender Equality SDG 8: Decent Work and Economic Growth SDG 9: Industry, Innovation and Infrastructure SDG 16: Peace, Justice and Strong Institutions
A103: GRI 200 ECONOMIC | B103: 207 Tax 2019 | C103: 207-1 | D103: Approach to Tax | E103: Annual Report on Sustainability: Economic Contributions; ESG Performance Data Form 10-K: Risk Factors | F103: FCX does describe its approach to tax, but does not disclose the frequency with which it is reviewed. | G103: SDG 1: No Poverty SDG 4: Quality Education SDG 5: Gender Equality SDG 8: Decent Work and Economic Growth SDG 9: Industry, Innovation and Infrastructure SDG 16: Peace, Justice and Strong Institutions
A104: GRI 200 ECONOMIC | B104: 207 Tax 2019 | C104: 207-2 | D104: Tax governance, control, and risk management | E104: Annual Report on Sustainability: Business Conduct; Economic Contributions Form 10-K: Risk Factors Audit Committee Charter | F104: FCX continues to work to align its disclosures with GRI 207 Tax 2019 | G104: SDG 1: No Poverty SDG 4: Quality Education SDG 5: Gender Equality SDG 8: Decent Work and Economic Growth SDG 9: Industry, Innovation and Infrastructure SDG 16: Peace, Justice and Strong Institutions
A105: GRI 200 ECONOMIC | B105: 207 Tax 2019 | C105: 207-3 | D105: Stakeholder engagement and management of concerns related to tax | E105: Annual Report on Sustainability: Stakeholder Engagement and Materiality > Political Engagement; Business Conduct; Economic Contributions Form 10-K: Risk Factors | F105: FCX continues to work to align its disclosures with GRI 207 Tax 2019 | G105: SDG 1: No Poverty SDG 4: Quality Education SDG 5: Gender Equality SDG 8: Decent Work and Economic Growth SDG 9: Industry, Innovation and Infrastructure SDG 16: Peace, Justice and Strong Institutions
A106: GRI 200 ECONOMIC | B106: 207 Tax 2019 | C106: 207-4 | D106: Country-by-country reporting | E106: Annual Report on Sustainability: Economic Impacts; ESG Performance Data | F106: We disclose employee payroll taxes, property taxes, and other taxes in our performance data; however, we do not specify entity names, or other granular items requested by GRI. | G106: SDG 1: No Poverty SDG 4: Quality Education SDG 5: Gender Equality SDG 8: Decent Work and Economic Growth SDG 9: Industry, Innovation and Infrastructure SDG 16: Peace, Justice and Strong Institutions
A107: Climate
A108: GRI 14 MINING SECTOR | B108: 14.1 GHG Emissions 14.2 Climate Adaptation and Resilience | C108: 3-3 | D108: Management of material topics | E108: Annual Report on Sustainability: Letters to Stakeholders; Our Approach; Climate Form 10-K: General; Risk Factors | G108: SDG 7: Affordable and Clean Energy SDG 12: Responsible Consumption and Production SDG 13: Climate Action
A109: GRI 300 ENVIRONMENTAL | B109: 302 Energy 2016 | C109: 302-1 | D109: Energy consumption within the organization | E109: Annual Report on Sustainability: Climate; ESG Performance Data | F109: While we do report our energy consumption, we do not provide the methodology, assumptions, conversion factors, and/or calculation tools, related to these calculations. | G109: SDG 7: Affordable and Clean Energy SDG 12: Responsible Consumption and Production SDG 13: Climate Action
A110: GRI 300 ENVIRONMENTAL | B110: 302 Energy 2016 | C110: 302-2 | D110: Energy consumption outside of the organization | E110: Annual Report on Sustainability: Climate; ESG Performance Data | F110: While we do report our Scope 3 GHG emissions per the GHG Protocol in line with this indicator, we do not disclose the underlying third-party energy use or all of the methodologies related to these calculations. | G110: SDG 7: Affordable and Clean Energy SDG 12: Responsible Consumption and Production SDG 13: Climate Action
A111: GRI 300 ENVIRONMENTAL | B111: 302 Energy 2016 | C111: 302-3 | D111: Energy Intensity | E111: Annual Report on Sustainability: Climate; ESG Performance Data | F111: We disclose absolute energy consumption data by site and type; at this time, we do not report an energy intensity ratio. | G111: SDG 7: Affordable and Clean Energy SDG 12: Responsible Consumption and Production SDG 13: Climate Action
A112: GRI 300 ENVIRONMENTAL | B112: 302 Energy 2016 | C112: 302-4 | D112: Reduction of energy consumption | E112: Annual Report on Sustainability: Climate Freeport-McMoRan Inc. CDP - Climate Change 2024 (https://www.cdp.net/) | F112: Trend data and specific examples of reduction in energy consumption are available, however, we do not report a cumulative total for energy reductions achieved across the enterprise as a direct result of our initiatives. | G112: SDG 7: Affordable and Clean Energy SDG 12: Responsible Consumption and Production SDG 13: Climate Action
A113: GRI 300 ENVIRONMENTAL | B113: 305 Emissions 2016 | C113: 305-1 | D113: Direct (Scope I) GHG emissions | E113: Annual Report on Sustainability: Climate; Management's schedule of Scope 1 and 2 GHG emissions; ESG Performance Data Freeport-McMoRan Inc. CDP - Climate Change 2024 (https://www.cdp.net/) | F113: We do not disclose global warming potential due to lack of relevance. | G113: SDG 7: Affordable and Clean Energy SDG 12: Responsible Consumption and Production SDG 13: Climate Action
A114: GRI 300 ENVIRONMENTAL | B114: 305 Emissions 2016 | C114: 305-2 | D114: Energy Indirect (Scope II) GHG emissions | E114: Annual Report on Sustainability: Climate; Management's schedule of Scope 1 and 2 GHG emissions; ESG Performance Data Freeport-McMoRan Inc. CDP - Climate Change 2024 (https://www.cdp.net/) | G114: SDG 7: Affordable and Clean Energy SDG 12: Responsible Consumption and Production SDG 13: Climate Action
A115: GRI 300 ENVIRONMENTAL | B115: 305 Emissions 2016 | C115: 305-3 | D115: Other indirect (Scope III) GHG emissions | E115: Annual Report on Sustainability: Climate; Management's schedule of Scope 3 GHG emissions; ESG Performance Data Freeport-McMoRan Inc. CDP - Climate Change 2024 (https://www.cdp.net/) | F115: We provide a summary overview of our Scope 3 GHG emissions estimation methodology and Scope 3 emissions by category, but do not report our emissions by gas type. | G115: SDG 7: Affordable and Clean Energy SDG 12: Responsible Consumption and Production SDG 13: Climate Action
A116: GRI 300 ENVIRONMENTAL | B116: 305 Emissions 2016 | C116: 305-4 | D116: GHG emissions intensity | E116: Annual Report on Sustainability: Climate; ESG Performance Data Freeport-McMoRan Inc. CDP - Climate Change 2024 (https://www.cdp.net/) | F116: We report GHG emissions intensity data for Americas Copper and PTFI, which both have intensity based targets. We do not report the GHG emissions intensity ratio for the organization as a whole. | G116: SDG 7: Affordable and Clean Energy SDG 12: Responsible Consumption and Production SDG 13: Climate Action
A117: GRI 300 ENVIRONMENTAL | B117: 305 Emissions 2016 | C117: 305-5 | D117: Reduction of GHG emissions | E117: Annual Report on Sustainability: Climate; ESG Performance Data Freeport-McMoRan Inc. CDP - Climate Change 2024 (https://www.cdp.net/) | F117: We report to CDP Climate on our GHG emission reduction activities, as well as GHG emission trend data over time, compared to our base year of 2018, which was chosen to facilitate short-term target setting and represented a year of normal operations. We do not report aggregate emission reductions achieved as a direct result of reduction initiatives. | G117: SDG 7: Affordable and Clean Energy SDG 12: Responsible Consumption and Production SDG 13: Climate Action
A118: GRI 200 ECONOMIC | B118: 201 Economic Performance 2016 | C118: 201-2 | D118: Financial implications and other risks and opportunities due to climate change | E118: Form 10-K: Environmental Risks Annual Report on Sustainability: Climate; Water Stewardship Freeport-McMoRan Inc. CDP - Climate Change 2024 (https://www.cdp.net/) | F118: We do disclose detailed information on risks and opportunities due to climate change. We do not report the financial implications of risks and opportunities or costs to manage them before action is taken. | G118: SDG 7: Affordable and Clean Energy SDG 12: Responsible Consumption and Production SDG 13: Climate Action
A119: Water Stewardship
A120: GRI 14 MINING SECTOR | B120: 14.7 Water and Effluents | C120: 3-3 | D120: Management of material topics | E120: Annual Report on Sustainability: Letter to Stakeholders; Our Approach; Business Conduct; Responsible Value Chains; Climate; Water Stewardship Form 10-K: General; Risk Factors | G120: SDG 6: Clean Water and Sanitation SDG 12: Responsible Consumption and Production
A121: GRI 300 ENVIRONMENTAL | B121: 303 Water and Effluents 2018 | C121: 303-1 | D121: Interactions with water as a shared resource | E121: Annual Report on Sustainability: Our Strategy in Action: Responsible Production; Water Stewardship; Environmental Compliance; ESG Performance Data | F121: We provide a description of how the organization interacts with water, our approach used to identify water-related impacts, a description of how water-related impacts are addressed. At this time we do not report on water impacts across our value chain. | G121: SDG 6: Clean Water and Sanitation SDG 12: Responsible Consumption and Production
A122: GRI 300 ENVIRONMENTAL | B122: 303 Water and Effluents 2018 | C122: 303-2 | D122: Management of water discharge-related impacts | E122: Annual Report on Sustainability: Water Stewardship; ESG Performance Data | F122: We report total water discharged by quality and destination based on ICMM Water Quality Guidelines. We do not report the minimum standards set for the quality of water discharged. | G122: SDG 6: Clean Water and Sanitation SDG 12: Responsible Consumption and Production
A123: GRI 300 ENVIRONMENTAL | B123: 303 Water and Effluents 2018 | C123: 303-3 | D123: Water Withdrawal | E123: Annual Report on Sustainability: Water Stewardship; ESG Performance Data | G123: SDG 6: Clean Water and Sanitation SDG 12: Responsible Consumption and Production
A124: GRI 300 ENVIRONMENTAL | B124: 303 Water and Effluents 2018 | C124: 303-4 | D124: Water Discharge | E124: Annual Report on Sustainability: Water Stewardship; ESG Performance Data | F124: Many of our sites are zero discharge for surface water. We report water discharge by source, region and areas of water stress. Discharge to groundwater is not included as it is not significant. We do not currently report priority substances of concern. | G124: SDG 6: Clean Water and Sanitation SDG 12: Responsible Consumption and Production
A125: GRI 300 ENVIRONMENTAL | B125: 303 Water and Effluents 2018 | C125: 303-5 | D125: Water consumption | E125: Annual Report on Sustainability: Water Stewardship; ESG Performance Data | G125: SDG 6: Clean Water and Sanitation SDG 12: Responsible Consumption and Production
A126: Biodiversity
A127: GRI 14 MINING SECTOR | B127: 14.4 Biodiversity | C127: 3-3 | D127: Management of material topics | E127: Annual Report on Sustainability: Biodiversity Biodiversity Management Plan Summary on fcx.com | G127: SDG 13: Climate Action SDG 14: Life Below Water SDG 15: Life on Land
A128: GRI 101 BIODIVERSITY | B128: 101 Biodiversity 2024 | C128: 101-1 | D128: Policies to halt and reverse biodiversity loss | E128: Annual Report on Sustainability: Biodiversity; Nature FCX Environmental Policy Biodiversity Management Plan Summary on fcx.com | G128: SDG 13: Climate Action SDG 14: Life Below Water SDG 15: Life on Land
A129: GRI 101 BIODIVERSITY | B129: 101 Biodiversity 2024 | C129: 101-2 | D129: Management of biodiversity impacts | E129: Annual Report on Sustainability: Climate; Nature; Biodiversity; Mine Closure and Reclamation; ESG Performance Data SASB Index Biodiversity Management Plan Summary on fcx.com | G129: SDG 13: Climate Action SDG 14: Life Below Water SDG 15: Life on Land
A130: GRI 101 BIODIVERSITY | B130: 101 Biodiversity 2024 | C130: 101-4 | D130: Identification of biodiversity impacts | E130: Annual Report on Sustainability: Nature; Biodiversity SASB Index Biodiversity Management Plan Summary on fcx.com | G130: SDG 13: Climate Action SDG 14: Life Below Water SDG 15: Life on Land
A131: GRI 101 BIODIVERSITY | B131: 101 Biodiversity 2024 | C131: 101-5 | D131: Locations with biodiversity impacts | E131: Annual Report on Sustainability: Biodiversity; Nature; Mine Closure and Reclamation; ESG Performance Data Biodiversity Management Plan Summary on fcx.com | F131: FCX discloses its "interface with nature" and continues to work to align with GRI 101 Biodiversity 2024. FCX does not report on the products and services in its supply chain with the most significant impacts; however, FCX has begun to utilize existing supplier assessment questionnaires to better understand if our significant suppliers have nature/biodiversity programs. We hope to begin identifying opportunities to help address nature loss in our upstream value chain. Through ICMM, we are also working to understand upstream value chain risk to nature and biodiversity. | G131: SDG 13: Climate Action SDG 14: Life Below Water SDG 15: Life on Land
A132: GRI 101 BIODIVERSITY | B132: 101 Biodiversity 2024 | C132: 101-6 | D132: Direct drivers of biodiversity loss | E132: Annual Report on Sustainability: Water Stewardship; Nature; Biodiversity; ESG Performance Data Biodiversity Management Plan Summary on fcx.com FCX does not harvest wild species. | F132: FCX reports new land disturbed and rehabilitated during the reporting year as well as water withdrawal and consumption by site. FCX does not report pollutants generated by site, invasive species or supply chain impacts. We continue to work to align our disclosures with GRI 101 Biodiversity 2024. | G132: SDG 13: Climate Action SDG 14: Life Below Water SDG 15: Life on Land
A133: GRI 101 BIODIVERSITY | B133: 101 Biodiversity 2024 | C133: 101-7 | D133: Changes to the state of biodiversity | F133: We do not report this indicator at this time. We continue to work to align our disclosures with GRI 101 Biodiversity 2024. | G133: SDG 13: Climate Action SDG 14: Life Below Water SDG 15: Life on Land
A134: GRI 101 BIODIVERSITY | B134: 101 Biodiversity 2024 | C134: 101-8 | D134: Ecosystem services | F134: We do not report this indicator at this time. We continue to work to align our disclosures with GRI 101 Biodiversity 2024. | G134: SDG 13: Climate Action SDG 14: Life Below Water SDG 15: Life on Land
A135: Mineral Waste and Circular Copper
A136: GRI 14 MINING SECTOR | B136: 14.5 Waste | C136: 3-3 | D136: Management of material topics | E136: Annual Report on Sustainability: Our Approach; Tailings Management; Non-mineral Waste Management Form 10-K: Risk Factors Tailings Management Program on fcx.com | G136: SDG 12: Responsible Consumption and Production
A137: GRI 300 ENVIRONMENTAL | B137: 306 Waste 2020 | C137: 306-1 | D137: Waste generation and significant waste-related impacts | E137: Annual Report on Sustainability: Tailings Management; Non-mineral Waste Management; ESG Performance Data Tailings Management Program on fcx.com | G137: SDG 12: Responsible Consumption and Production
A138: GRI 300 ENVIRONMENTAL | B138: 306 Waste 2020 | C138: 306-2 | D138: Management of significant waste related impacts | E138: Annual Report on Sustainability: Tailings Management; Non-mineral Waste Management; ESG Performance Data | G138: SDG 12: Responsible Consumption and Production
A139: GRI 300 ENVIRONMENTAL | B139: 306 Waste 2020 | C139: 306-3 | D139: Waste generated | E139: Annual Report on Sustainability: Non-mineral Waste Management; ESG Performance Data | G139: SDG 12: Responsible Consumption and Production
A140: GRI 300 ENVIRONMENTAL | B140: 306 Waste 2020 | C140: 306-4 | D140: Waste diverted from disposal | E140: Annual Report on Sustainability: Non-mineral Waste Management; ESG Performance Data | G140: SDG 12: Responsible Consumption and Production
A141: GRI 300 ENVIRONMENTAL | B141: 306 Waste 2020 | C141: 306-5 | D141: Waste directed to disposal | E141: Annual Report on Sustainability: Biodiversity; Tailings Management | G141: SDG 12: Responsible Consumption and Production
A142: Tailings Management
A143: GRI 14 MINING SECTOR | B143: 14.6 Tailings | C143: 3-3 | D143: Management of material topics | E143: Annual Report on Sustainability: Letters to Stakeholders; Tailings Management; Non-mineral Waste Management; ESG Performance Data Tailings Management Policy Tailings Management Program on fcx.com Sustainability at PTFI | G143: SDG 6: Clean Water and Sanitation SDG 12: Responsible Consumption and Sanitation SG 15: Life on Land
A144: GRI 14 MINING SECTOR | B144: 14.6 Tailings | C144: 14.6.2 | D144: Report the tailings disposal methods used by the organization | E144: Annual Report on Sustainability: Tailings Management Tailings Management Program on fcx.com | G144: SDG 6: Clean Water and Sanitation SDG 12: Responsible Consumption and Sanitation SG 15: Life on Land
A145: GRI 14 MINING SECTOR | B145: 14.6 Tailings | C145: 14.6.3 | D145: List the organization's tailings facilities and report the name, location and ownership status, including whether the organization is the operator | E145: FCX Tailings Management - TSF Detailed Data - https://fcx.com/sites/fcx/files/documents/sustainability/tsf_inventory_data.pdf https://fcx.com/sustainability/tailings-americas https://fcx.com/sustainability/tailings-indonesia 2024 Annual Report on Sustainability: Tailings Management | G145: SDG 6: Clean Water and Sanitation SDG 12: Responsible Consumption and Sanitation SG 15: Life on Land

Sheet ICMM PEs
A1: SELF-ASSESSMENT of INTERNATIONAL COUNCIL of MINING and METALS (ICMM) PRINCIPLES and PERFORMANCE EXPECTATIONS
A3: This self-assessment is as of April 24, 2025. ICMM, the Copper Mark, Mining Association of Canada, and World Gold Council are working together to consolidate their individual voluntary responsible mining and metals standards into a single global responsible standard with multi-stakeholder oversight. The new standard is expected to be available by 2027, replacing the ICMM Mining Principles framework and becoming the basis for achieving the Copper Mark. For the latest information on each FCX site's alignment with Copper Mark criteria, please see the third-party validated Copper Mark assurance reports on coppermark.org.
A6: Websites and links can be found in the references tab.
A7: PRINCIPLE | B7: PRINCIPLE DESCRIPTION | C7: PERFORMANCE EXPECTATION | D7: DESCRIPTION | E7: APPLICABILITY | F7: FCX RESPONSE | G7: MINING | S7: PROCESSING
G8: El Abra | H8: Bagdad | I8: Cerro Verde | J8: Chino/Cobre | K8: Climax | L8: Henderson | M8: Miami | N8: Morenci | O8: Grasberg | P8: Safford | Q8: Sierrita | R8: Tyrone | S8: Atlantic Copper | T8: El Paso | U8: Fort Madison | V8: Rotterdam | W8: Stowmarket
A9: PRINCIPLE 1: ETHICAL BUSINESS | B9: Apply ethical business practices and sound systems of corporate governance and transparency to support sustainable development. | C9: 1.1 | D9: Establish systems to maintain compliance with applicable law. | E9: Corporate and Asset Level | F9: FCX is committed to the highest level of ethical and legal conduct in all of our business activities. Acting ethically involves more than simply complying with laws and regulations; it involves recognition that our decisions affect others. By keeping this in mind, we aspire to earn the respect, trust and confidence of our stakeholders. • Form 10-K • Policies can be found on fcx.com: About Us > Corporate Governance > Governance Documents > Business Ethics Policies • Information can be found in our 2024 Annual Report on Sustainability: Robust Governance > Business Conduct | G9: Meets | H9: Meets | I9: Meets | J9: Meets | K9: Meets | L9: Meets | M9: Meets | N9: Meets | O9: Meets | P9: Meets | Q9: Meets | R9: Meets | S9: Meets | T9: Meets | U9: Meets | V9: Meets | W9: Meets
A10: PRINCIPLE 1: ETHICAL BUSINESS | C10: 1.2 | D10: Implement policies and practices to prevent bribery, corruption and to publicly disclose facilitation payments. | E10: Corporate and Asset Level | F10: FCX has zero tolerance for corruption of any kind. This standard applies not only to our employees but also to our business partners. We neither seek nor obtain any business advantage through bribery, improper payments, kickbacks or any other illegal means. No employee or business partner may offer, pay, solicit or accept bribes in any form, including facilitation payments. • Principles of Business Conduct (PBC) • Business Partner Code of Conduct (BPCC) • Anti-Corruption Policy • Information can be found in our 2024 Annual Report on Sustainability: Robust Governance > Business Conduct, Responsible Value Chains | G10: Meets | H10: Meets | I10: Meets | J10: Meets | K10: Meets | L10: Meets | M10: Meets | N10: Meets | O10: Meets | P10: Meets | Q10: Meets | R10: Meets | S10: Meets | T10: Meets | U10: Meets | V10: Meets | W10: Meets
A11: PRINCIPLE 1: ETHICAL BUSINESS | B11: Apply ethical business practices and sound systems of corporate governance and transparency to support sustainable development. | C11: 1.3 | D11: Implement policies and standards consistent with the ICMM policy framework. | E11: Corporate Level | F11: To facilitate implementation of our policy commitments and objectives, we utilize a combination of audit and assessment programs along with an annual program for site-level third-party assurance of our sustainability framework—including the implementation of our commitments under the ICMM Mining with Principles Framework and the Copper Mark. We report and track our progress in our Annual Report on Sustainability as well as other external disclosures including the Voluntary Principles on Security and Human Rights (VPs) Report to the Plenary, the UK Modern Slavery Act Statement, and site summary reports published by the Copper Mark available at coppermark.org. • VPs Report to the Plenary • UK Modern Slavery Act Statement • Information can be found in our 2024 Annual Report on Sustainability: Robust Governance, Responsible Value Chains | G11: Meets | H11: Meets | I11: Meets | J11: Meets | K11: Meets | L11: Meets | M11: Meets | N11: Meets | O11: Meets | P11: Meets | Q11: Meets | R11: Meets | S11: Meets | T11: Meets | U11: Meets | V11: Meets | W11: Meets
A12: PRINCIPLE 1: ETHICAL BUSINESS | B12: Apply ethical business practices and sound systems of corporate governance and transparency to support sustainable development. | C12: 1.4 | D12: Assign accountability for sustainability performance at the Board and/or Executive Committee level. | E12: Corporate Level | F12: The Corporate Responsibility Committee (CRC), on behalf of the Board, oversees FCX’s environmental and social policies and implementation programs and related risks. The CRC receives reports from management and reviews the effectiveness of FCX’s strategies, programs and policy implementation with respect to health and safety, responsible production frameworks, tailings management and stewardship, climate, water stewardship, biodiversity, nature and land management, waste management, human rights, stakeholder relations, social performance and Indigenous Peoples, responsible sourcing, and political activity and spending practices. During 2024, the CRC had four regularly scheduled meetings. Additionally, each of the audit, governance and compensation committees oversees key sustainability-related matters. The audit committee oversees our global compliance program and corporate compliance procedures and our information technology security and cybersecurity processes and procedures. Additionally, tax matters are included within the audit committee’s financial oversight responsibilities. The governance committee maintains our Corporate Governance Guidelines and oversees our corporate governance practices, policies and procedures. The compensation committee oversees our executive compensation program and human capital management policies, programs, practices and strategies, including those relating to, among other things, workforce recruitment, retention and development. Our CEO has ultimate responsibility for our sustainability performance, with active oversight from the board. Our cross-functional sustainability leadership team (SLT) includes members of management tasked with defining our sustainability strategy and implementing policies, systems and programs across the organization to achieve integrated decision making for responsible production and performance. The SLT provides oversight of our sustainability work in each focus area, with the programs directed and managed by our corporate and site-level sustainability teams. The SLT is sponsored by our Chief Administrative Officer and led by our Chief Sustainability Officer, with active participation from our five business unit presidents and senior leadership from functional groups including health and safety, security, supply chain, human resources, sales, legal, compliance, sustainability and finance. In 2024, the SLT met 10 times to review the company’s overall sustainability strategy, related performance and external drivers and trends. Members of the SLT regularly reported on key environmental and social matters to executive leadership, including our CEO, and to relevant board committees and periodically to the full board. Executive officers are held accountable for FCX’s ESG performance in part through FCX’s performance-based annual incentive program (AIP) via predetermined metrics aligned with our key commitments and priorities. In 2024, ESG metrics collectively accounted for 25% of the AIP (15% safety and 10% sustainability), with the sustainability scorecard including performance metrics associated with the Copper Mark and Molybdenum Mark, climate, human rights, tailings management and workforce priorities. The scorecard used to measure 2024 sustainability performance can be found in the Compensation Discussion and Analysis section of our latest Proxy Statement. • 2025 Proxy Statement: Sustainability • CRC Charter • Information can be found in our 2024 Annual Report on Sustainability: Our Approach; Letter to Stakeholders; Views from our CRC Chair; Governance | G12: Meets | H12: Meets | I12: Meets | J12: Meets | K12: Meets | L12: Meets | M12: Meets | N12: Meets | O12: Meets | P12: Meets | Q12: Meets | R12: Meets | S12: Meets | T12: Meets | U12: Meets | V12: Meets | W12: Meets
A13: PRINCIPLE 1: ETHICAL BUSINESS | B13: Apply ethical business practices and sound systems of corporate governance and transparency to support sustainable development. | C13: 1.5 | D13: Disclose the value and beneficiaries of financial and in-kind political contributions whether directly or through an intermediary. | E13: Corporate Level | F13: FCX recognizes that public policy decisions can significantly affect our operations, future business opportunities, employees, shareholders and the communities in which FCX operates. For this reason, FCX exercises its right and responsibility to participate in public policy matters by staying informed on public matters important to our business and interacting, where appropriate, with elected and appointed government officials, regulators and their staff. FCX is committed to maintaining the highest levels of ethical and legal conduct and transparency regarding political activity and spending practices. This commitment includes seeking to comply with applicable laws and regulations. • CRC Charter • Anti-Corruption Policy • Political Activity and Spending Practices at fcx.com | G13: Meets | H13: Meets | I13: Meets | J13: Meets | K13: Meets | L13: Meets | M13: Meets | N13: Meets | O13: Meets | P13: Meets | Q13: Meets | R13: Meets | S13: Meets | T13: Meets | U13: Meets | V13: Meets | W13: Meets
A14: PRINCIPLE 2: DECISION MAKING | B14: Integrate sustainable development in corporate strategy and decision-making processes. | C14: 2.1 | D14: Integrate sustainable development principles into corporate strategy and decision-making processes relating to investments and in the design, operation and closure of facilities. | E14: Corporate Level | F14: FCX’s cross-functional SLT includes members of the management team tasked with defining the sustainability strategy and implementing sustainability policies, systems and programs across the organization to achieve integrated decision making for responsible production and performance. The SLT evolved FCX’s sustainability strategy, formalized its integration throughout the company and clarified the ambition: Accelerate the Future, Responsibly. The SLT provides oversight of our sustainability work in each focus area, with the programs directed and managed by our corporate and site-level sustainability teams. FCX integrates its voluntary commitments, policies and practices into the risk register process, which drives action both at site and project level. Regular measurement and reporting support FCX’s understanding of the company’s current performance, including any gaps, and the actions to take to improve. FCX seeks to plan and operate its mines in a manner that considers post-mining land use well in advance of mine closure. Likewise, when designing new projects or expanding existing ones, FCX plans for how the land can be reclaimed once the mine closes. FCX’s philosophy of responsible production continues when it closes mining and processing sites through to reclamation. FCX strives to work in partnership with our host communities and Indigenous Peoples to earn and maintain their trust and deliver shared value. We not only seek to avoid, minimize and mitigate negative impacts from our operations, but we also aim to provide long-lasting benefits to our neighbors so they can thrive beyond the life of our mines. • Information can be found in our 2024 Annual Report on Sustainability: Our Approach; Communities and Indigenous Peoples; Mine Closure and Reclamation | G14: Meets | H14: Meets | I14: Meets | J14: Meets | K14: Meets | L14: Meets | M14: Meets | N14: Meets | O14: Meets | P14: Meets | Q14: Meets | R14: Meets | S14: Meets | T14: Meets | U14: Meets | V14: Meets | W14: Meets
A15: PRINCIPLE 2: DECISION MAKING | B15: Integrate sustainable development in corporate strategy and decision-making processes. | C15: 2.2 | D15: Support the adoption of responsible physical and psychological health and safety, environmental, human rights and labour policies and practices by joint venture partners, suppliers and contractors, based on risk. | E15: Corporate and Asset Level | F15: At each FCX operation, we aim to be a preferred employer, neighbor, business partner and supplier. We are committed to responsibly managing our social impacts on people, which includes focusing on the health, safety and security of our workforce and host communities and respecting the rights of people who are or may be impacted by FCX’s business. Operational leadership teams at each of our sites are responsible for safety performance and are supported by our corporate health and safety team. Together, they develop and oversee our safety programs across the organization, including safety management systems and safety audit programs and incident investigations. Various programs to address psychological safety are currently under evaluation. One of the ways we are working to support psychological safety is by training our frontline leaders on emotional triggers and conflict resolution. The importance of psychological safety is also incorporated into new hire orientation. We have expanded education and training related to psychological safety, including integrating it into our foundational leadership training and our annual PBC training. FCX recognizes that mining impacts the natural environment. We are committed to conducting our work in a manner that minimizes negative impacts on the environment and supports protection of the natural environment and ecosystems through responsible environmental stewardship, strong management systems and continuous improvement. Effective environmental protection and stewardship are essential to the long-term viability of our business, including maintaining the necessary support from host communities and governments. FCX’s BPCC and compliance screening processes represent the foundation of FCX’s responsible sourcing program for all suppliers globally. Based on the PBC, FCX’s BPCC sets forth expectations for business partners in areas such as safety, human rights, anti-corruption, community and environment. FCX mandates human rights standards through its contracts with business partners. • Information can be found in our 2024 Annual Report on Sustainability: Robust Governance > Business Conduct, Responsible Value Chains; Our Approach; Empowered People & Resilient Communities; Thriving Environments | G15: Meets | H15: Meets | I15: Meets | J15: Meets | K15: Meets | L15: Meets | M15: Meets | N15: Meets | O15: Meets | P15: Meets | Q15: Meets | R15: Meets | S15: Meets | T15: Meets | U15: Meets | V15: Meets | W15: Meets
A16: PRINCIPLE 3: HUMAN RIGHTS | B16: Respect human rights and the interests, cultures, customs and values of employees and communities affected by our activities. | C16: 3.1 | D16: Support the UN Guiding Principles on Business and Human Rights by developing a policy commitment to respect human rights, undertaking human rights due diligence and providing for or cooperating in processes to enable the remediation of adverse human rights impacts that members have caused or contributed to. | E16: Corporate and Asset Level | F16: We are dedicated to the recognition and respect of human rights wherever we do business. Our core values of safety, respect, integrity, excellence and commitment underpin this imperative. We respect the rights of all individuals, including employees, contractors, business partners, host communities, Indigenous Peoples and others who may be impacted by our business activities. We strive for continuous improvement and expect everyone in the organization to play a role in upholding this commitment and expect the same from our business partners. We have expanded education and training related to psychological safety, including integrating it into our foundational leadership training and our annual PBC training. We also recognize that human rights are overarching and that they connect to every aspect of our business. As such, we aim to promote human rights through proactive engagement with host governments and communities and by educating our stakeholders, including training our employees and contractors. As FCX seeks to further embed respect for human rights across our organizational activities, it has various due diligence processes that help to identify and assess which human rights topics are most salient at the site-level so that the company can manage and integrate these risks into ongoing operational work. We use our risk register process to identify risks to people at our existing operations. We also have a risk identification process for our new or growth projects to address potential and actual impacts on rights-holders. We implement and refine our approach to human rights through ongoing stakeholder engagement, grievance management and the findings from our human rights impact assessments (HRIAs). FCX respects internationally recognized human rights, including the rights under the International Bill of Human Rights, the International Labour Organization’s Declaration on Fundamental Principles and Rights at Work and the UN Declaration on the Rights of Indigenous Peoples and is committed to implementing the United Nations Guiding Principles on Business and Human Rights (UNGPs), the Organisation for Economic Co-operation and Development (OECD) Guidelines for Multinational Enterprises and the VPs. We aim to promote human rights through proactive engagement with governments and communities and by educating stakeholders, including training our employees and contractors. We also are committed to complying with the UK Modern Slavery Act as demonstrated by our annual statement outlining our efforts to minimize the risk of modern slavery throughout our business and supply chain.. Our most recent UK Modern Slavery Act Statement is available on our website at fcx.com. • VPs Report to the Plenary • UK Modern Slavery Act Statement • Information can be found in our 2024 Annual Report on Sustainability: Robust Governance> Responsible Value Chains; Empowered People and Resilient Communities; and on the Robust Governance > Human Rights > Embedding Respect page on fcx.com. | G16: Meets | H16: Meets | I16: Meets | J16: Meets | K16: Meets | L16: Meets | M16: Meets | N16: Meets | O16: Meets | P16: Meets | Q16: Meets | R16: Meets | S16: Meets | T16: Meets | U16: Meets | V16: Meets | W16: Meets
A17: PRINCIPLE 3: HUMAN RIGHTS | B17: Respect human rights and the interests, cultures, customs and values of employees and communities affected by our activities. | C17: 3.2 | D17: Avoid the involuntary physical or economic displacement of families and communities. Where this is not possible apply the mitigation hierarchy and implement actions or remedies that address residual adverse effects to restore or improve livelihoods and standards of living of displaced people. | E17: Corporate and Asset Level | F17: In all cases, we seek to avoid involuntary displacement of people, whether physical or economic, by exploring alternative project designs. When unavoidable, we are committed to complying with community resettlement procedures aligned with international best practices. This requires careful planning and implementation, including information disclosure, consultation, and informed participation of affected people to minimize impacts through appropriate mitigation measures, with particular attention paid to vulnerable households. This commitment is reflected in our Social Performance Policy and Human Rights Policy available on our website. There has not been involuntary physical or economic displacement of families or communities around FCX’s current operations in the last 20 years. Prior to this, PTFI conducted resettlement activities based on community consultation and negotiation processes that resulted in cooperatively agreed upon customary land rights (hak tanah ulayat) release and community development programs in partnership with the local government. If resettlement is unavoidable, we develop a resettlement action plan and/or livelihood restoration plan, as applicable, with the objective of maintaining or improving standards of living and livelihoods.. We do this in line with host country laws and regulations, International Finance Corporation (IFC) Performance Standard 5: Land Acquisition and Involuntary Resettlement, IFC Performance Standard 7: Indigenous Peoples and the UNGPs and the UNGPs. | G17: Meets | H17: Meets | I17: Meets | J17: Meets | K17: Meets | L17: Meets | M17: Meets | N17: Meets | O17: Meets | P17: Meets | Q17: Meets | R17: Meets | S17: Not applicable | T17: Not applicable | U17: Not applicable | V17: Not applicable | W17: Not applicable
A18: PRINCIPLE 3: HUMAN RIGHTS | B18: Respect human rights and the interests, cultures, customs and values of employees and communities affected by our activities. | C18: 3.3 | D18: Implement, based on risk, a human rights and security approach consistent with the Voluntary Principles on Security and Human Rights. | E18: Corporate and Asset Level | F18: We are committed to respecting internationally recognized human rights as set out in the VPs. The VPs serve as guidelines for our security and human rights programs, including interactions with government police, military personnel and private security contractors. We primarily focus our implementation on Indonesia and Peru, which are higher-risk jurisdictions for security and human rights. The VPs serve as a key component of our broader human rights program, which includes implementation of the UNGPs. Not all human rights issues are security issues, and not all security issues are human rights issues—it is at the nexus of human rights and security where our implementation of the VPs resides. We have remained an active participant in the Voluntary Principles Initiative since it was first established in 2000. • VPs Report to the Plenary • Information can be found in our 2024 Annual Report on Sustainability: Robust Governance > Responsible Value Chains; and on the Robust Governance > Human Rights > Security & Human Rights page our website at fcx.com. | G18: Meets | H18: Meets | I18: Meets | J18: Meets | K18: Meets | L18: Meets | M18: Meets | N18: Meets | O18: Meets | P18: Meets | Q18: Meets | R18: Meets | S18: Meets | T18: Meets | U18: Meets | V18: Meets | W18: Meets
A19: PRINCIPLE 3: HUMAN RIGHTS | B19: Respect human rights and the interests, cultures, customs and values of employees and communities affected by our activities. | C19: 3.4 | D19: Respect the rights of workers by: not employing child or forced labour; avoiding human trafficking; not assigning hazardous/dangerous work to those under 18; eliminating harassment and discrimination; respecting freedom of association and collective bargaining and; providing a mechanism to address workers grievances. | E19: Corporate and Asset Level | F19: Our BPCC and compliance screening processes are the foundation of our responsible sourcing program for goods and services. We are committed to operating in a manner consistent with the UNGC Ten Principles, including Labour Principles 3, 4, 5 and 6. • PBC • Inclusion and Diversity Policy • Social Performance Policy • Human Rights Policy • Responsible Sourcing of Minerals Policy • BPCC • UK Modern Slavery Act Statement • Information can be found in our 2024 Annual Report on Sustainability: Our Approach: Responsible Value Chains; Robust Governance > Human Rights; Empowered People and Resilient Communities > Workforce | G19: Meets | H19: Meets | I19: Meets | J19: Meets | K19: Meets | L19: Meets | M19: Meets | N19: Meets | O19: Meets | P19: Meets | Q19: Meets | R19: Meets | S19: Meets | T19: Meets | U19: Meets | V19: Meets | W19: Meets
A20: PRINCIPLE 3: HUMAN RIGHTS | B20: Respect human rights and the interests, cultures, customs and values of employees and communities affected by our activities. | C20: 3.5 | D20: Equitably remunerate employees with wages that equal or exceed legal requirements or represent a competitive wage within that job market (whichever is higher) and assign regular and overtime working hours within legally required limits. | E20: Corporate and Asset Level | F20: We reward workforce contributions with competitive, performance-based pay and are committed to respecting the rights of our workforce by paying fair and equal wages for equal work regardless of race, color, sex, religion, national origin, sexual orientation, gender identity or expression, disability, age, veteran status or any other characteristic protected by applicable law. Our approach to compensation and benefits is market-based, competitive and informed by annual benchmarking and analysis. This includes equal pay for equal work and compensation levels supporting the acquisition of the goods and services necessary for an average-size family to meet their basic needs in the geographic locations where we operate—often referred to as a living wage. We also develop schedules that keep regular and overtime hours within legally required limits. For several years, we have conducted a living wage assessment for both full-time and part-time employees using living wage benchmark rates provided by BSR, a global sustainability nonprofit. Each of FCX’s locations globally, including operating sites, office locations, remediation and discontinued operations, and smaller processing locations were assessed against the benchmark rates, and compensation for all applicable FCX employees met BSR’s living wage benchmarks for each respective location. We paused this analysis in 2024 as BSR transitions their living wage program to WageMap, a consortium of living wage data and service providers working together to drive alignment across living wage methodologies and frameworks. We intend to resume our assessments once the new WageMap reference standard is established and living wage benchmark data is available for our locations. • PBC • Working Hours Policy • Information can be found in our 2024 Annual Report on Sustainability: Empowered People and Resilient Communities > Workforce | G20: Meets | H20: Meets | I20: Meets | J20: Meets | K20: Meets | L20: Meets | M20: Meets | N20: Meets | O20: Meets | P20: Meets | Q20: Meets | R20: Meets | S20: Meets | T20: Meets | U20: Meets | V20: Meets | W20: Meets
A21: PRINCIPLE 3: HUMAN RIGHTS | B21: Respect human rights and the interests, cultures, customs and values of employees and communities affected by our activities. | C21: 3.6 | D21: Respect the rights, interests, aspirations, culture and natural resource-based livelihoods of Indigenous Peoples in project design, development and operation; apply the mitigation hierarchy to address adverse impacts and; deliver sustainable benefits for Indigenous Peoples. | E21: Corporate and Asset Level | F21: FCX is steadfast in its commitment to acknowledge, respect and engage collaboratively with Indigenous Peoples. Through our Building Trust approach, dedicated teams, such as our Native American affairs team in the U.S. and PTFI’s Papuan affairs team in Indonesia, strive to understand the values and cultural needs of each group of Indigenous Peoples; develop and maintain ongoing relationships; support effective engagement about potential and actual impacts on cultural and natural resources; and create opportunities for social benefit, shared value creation and long-term resilience. FCX employees and contractors in roles that engage with or interact with Indigenous Peoples are provided training in cultural sensitivity and effective communication. Our Human Rights Policy outlines our commitment to enable and promote respect for the rights of host communities and the values, traditions, beliefs and rights of Indigenous Peoples, with the objective of obtaining their Free, Prior and Informed Consent (FPIC). • Human Rights Policy • Social Performance Policy • Information can be found in our 2024 Annual Report on Sustainability: Empowered People and Resilient Communities > Communities and Indigenous Peoples | G21: Meets | H21: Meets | I21: Meets | J21: Meets | K21: Meets | L21: Meets | M21: Meets | N21: Meets | O21: Meets | P21: Meets | Q21: Meets | R21: Meets | S21: Not applicable | T21: Not applicable | U21: Not applicable | V21: Not applicable | W21: Not applicable
A22: PRINCIPLE 3: HUMAN RIGHTS | B22: Respect human rights and the interests, cultures, customs and values of employees and communities affected by our activities. | C22: 3.7 | D22: Work to obtain the free, prior and informed consent of Indigenous Peoples where significant adverse impacts are likely to occur, as a result of relocation, disturbance of lands and territories or of critical cultural heritage, and capture the outcomes of engagement and consent processes in agreements. | E22: Corporate and Asset Level | F22: We acknowledge and respect the social, economic and cultural rights of Indigenous Peoples who occupy or have historically occupied or have ancestral connections to areas within or near our operations. Through our Building Trust approach, dedicated teams, such as our Native American affairs team in the U.S. and PTFI’s Papuan affairs team in Indonesia, strive to understand the values and cultural needs of each group of Indigenous Peoples; develop and maintain ongoing relationships; support effective engagement about potential and actual impacts on cultural and natural resources; and create opportunities for social benefit, shared value creation and long-term resilience. Our Human Rights Policy outlines our commitment to enable and promote respect for the rights of host communities and the values, traditions, beliefs and rights of Indigenous Peoples, with the objective of obtaining their Free, Prior and Informed Consent (FPIC). Building Trust lays the foundation for our objective of FPIC for new projects and material expansions where significant impacts to Indigenous Peoples are likely to occur. To do so, we engage with Indigenous communities early in the project development process to seek input on potential impacts and feedback on proposed activities. Over time, deeper trust among FCX and Indigenous Peoples is expected to result in a more collaborative and successful FPIC process if new expansions or projects are undertaken that may have adverse impacts on Indigenous Peoples. For example, starting in 2020, PTFI went through an extensive FPIC process as part of its mine extension permitting, in which impacted Indigenous communities and organizations were engaged in line with FPIC principles through activities in villages. • Social Performance Policy • Human Rights Policy • Information can be found in our 2024 Annual Report on Sustainability: Empowered People and Resilient Communities > Communities and Indigenous Peoples • Information can be found in Sustainability at PT Freeport Indonesia on fcx.com | G22: Meets | H22: Meets | I22: Meets | J22: Meets | K22: Meets | L22: Meets | M22: Meets | N22: Meets | O22: Meets | P22: Meets | Q22: Meets | R22: Meets | S22: Not applicable | T22: Not applicable | U22: Not applicable | V22: Not applicable | W22: Not applicable
A23: PRINCIPLE 3: HUMAN RIGHTS | B23: Respect human rights and the interests, cultures, customs and values of employees and communities affected by our activities. | C23: 3.8 | D23: Implement policies and practices to respect the rights and interests of women that reflect gender-informed approaches to work practices and job design, and that protect against all forms of discrimination and harassment, and behaviours that adversely impact on women’s successful participation in the workplace. | E23: Corporate and Asset Level | F23: Integrating responsible business practices across our global operations requires comprehensive and disciplined efforts. FCX is guided by its PBC, the cornerstone of our commitment to ethical business practices. The PBC highlights our core values — Safety, Respect, Integrity, Excellence and Commitment — and provides guidance for the application of these values to our business. Comprehensive annual training on our PBC covers health and safety concepts, addressing harassment and discrimination, dealing with inappropriate behavior, preventing conflicts of interest and retaliation from coworkers, and reminding employees how to raise concerns via the Compliance Line. We reward workforce contributions with competitive, performance-based pay and are committed to respecting the rights of our workforce by paying fair and equal wages for equal work regardless of race, color, sex, religion, national origin, sexual orientation, gender identity or expression, disability, age, veteran status or any other characteristic protected by applicable law. We periodically conduct internal compensation reviews to identify and address, as appropriate, possible pay gaps that cannot be explained through performance, distribution of jobs, experience, time in role and other legitimate business-related factors. We engage a third-party compensation consultant to evaluate our gender pay equity practices across our global operations. We undertook a global assessment in 2023 to evaluate the accessibility of facilities and personal protective equipment (PPE) for both men and women. Some of our sites have initiated actions to improve their facilities and PPE selections in recent years. The assessment identified opportunities at our North America operations related to the quality, security and accessibility of bathrooms and changing rooms for men and women. We have upgraded facilities to ensure each site has appropriate lactation rooms as required by U.S. law, and we surpassed our commitment to upgrade 40 facilities by upgrading 50 facilities, including lactation facilities, changerooms, lunchrooms and prayer facilities in 2024. • Information can be found in our 2024 Annual Report on Sustainability: Empowered People and Resilient Communities > Workforce; Robust Governance > Business Conduct | G23: Meets | H23: Meets | I23: Meets | J23: Meets | K23: Meets | L23: Meets | M23: Meets | N23: Meets | O23: Meets | P23: Meets | Q23: Meets | R23: Meets | S23: Meets | T23: Meets | U23: Meets | V23: Meets | W23: Meets
A24: PRINCIPLE 3: HUMAN RIGHTS | B24: Respect human rights and the interests, cultures, customs and values of employees and communities affected by our activities. | C24: 3.9 | D24: Implement policies and practices to respect the rights and interests of all workers and improve workforce representation in the workplace so it is more inclusive. | E24: Corporate and Asset Level | F24: As a global organization that operates in regions of varying ethnic, religious and cultural backgrounds, we value and prioritize inclusion within our workforce. We strive for, promote and foster a workplace where everyone feels a sense of belonging, is treated with respect and their opinions are valued. We believe an inclusive environment gives our people the confidence to speak up, share ideas that drive innovation and achieve operational excellence. Across cultures, regional teams and dedicated site leaders are tasked with identifying and addressing local challenges and opportunities unique to each operation. • Inclusion and Diversity Policy • Information can be found in our 2024 Annual Report on Sustainability: Empowered People and Resilient Communities > Workplace Culture; Robust Governance > Business Conduct | G24: Meets | H24: Meets | I24: Meets | J24: Meets | K24: Meets | L24: Meets | M24: Meets | N24: Meets | O24: Meets | P24: Meets | Q24: Meets | R24: Meets | S24: Meets | T24: Meets | U24: Meets | V24: Meets | W24: Meets
A25: PRINCIPLE 4: RISK MANAGEMENT | B25: Implement effective risk-management strategies and systems based on sound science and which account for stakeholder perceptions of risks. | C25: 4.1 | D25: Assess environmental and social risks and opportunities of new projects and of significant changes to existing operations in consultation with interested and affected stakeholders, and publicly disclose assessment results. | E25: Corporate and Asset Level | F25: We employ a variety of baselining and risk management tools to identify and evaluate the potential sustainability-related impacts of our operations. Together, these tools help us characterize the current social, economic and environmental conditions and provide a baseline against which we can measure our performance over time. We perform Environmental and Social Impact Assessments, which identify potentially affected stakeholders and potential impacts from the outset of new projects. We integrate human rights impacts into these assessments to be better informed about impacts to people from growth projects. Additionally, as part of the internal risk review process, the Project Development Sustainability Review considers sustainability issues during the evaluation, and implementation of, potential expansion and development projects. The Project Development Sustainability Review process enables us to identify, prioritize and proactively manage potential risks before a project begins and throughout its development. The process complements our sustainability risk register process and serves as a key input to the sustainability risk register once a project is operational, enhancing the integration of sustainability into decision making across FCX. Key focus areas identified at different project stages have included: access to water, energy and materials, potential impacts to hydrology, air quality, biodiversity, human rights, community receptivity, economic impacts, and land acquisition and resettlement. The process also supports preparation for future closure of operations. • Information can be found in our 2024 Annual Report on Sustainability: Our Approach > Our Strategy in Action: Responsible Production; Empowered People and Resilient Communities | G25: Meets | H25: Meets | I25: Meets | J25: Meets | K25: Meets | L25: Meets | M25: Meets | N25: Meets | O25: Meets | P25: Meets | Q25: Meets | R25: Meets | S25: Meets | T25: Meets | U25: Meets | V25: Meets | W25: Meets
A26: PRINCIPLE 4: RISK MANAGEMENT | B26: Implement effective risk-management strategies and systems based on sound science and which account for stakeholder perceptions of risks. | C26: 4.2 | D26: Undertake risk-based due diligence on conflict and human rights that aligns with the OECD Due Diligence Guidance on Conflict-Affected and High-Risk Areas, when operating in, or sourcing from, a conflict-affected or high-risk area. | E26: Corporate and Asset Level | F26: FCX is committed to sourcing, producing and distributing metals and minerals responsibly across our entire value chain. While all of our suppliers (goods and services and minerals and metals) undergo the same initial screening process, minerals and metals are then subject to a secondary diligence process specifically designed to meet the OECD Due Diligence Guidance for Responsible Supply Chains of Minerals from Conflict Affected and High-Risk Areas (OECD Guidance). This process is in alignment with our Responsible Sourcing of Minerals Policy, which commits us to producing and sourcing minerals and metals responsibly, including respecting human rights; preventing bribery, fraud and corruption; and implementing the OECD Guidance. We have implemented the policy across all of our global operations including: copper smelting, refining and semi-fabrication; molybdenum roasting; and ferromolybdenum production. In preparation for the start-up of PTFI’s new smelter and precious metals refinery, we began reviewing potential suppliers of other minerals and metals that may be in scope for those operations in the future. Our policy and implementation of the OECD Guidance is also a requirement of the ICMM Mining Principles Framework, Copper Mark, Molybdenum Mark, Responsible Steel and the London Metal Exchange (LME) Policy on Responsible Sourcing of LME-Listed Brands. The board's CRC receives an annual update on our responsible sourcing of minerals program and at the management-level, the SLT oversees and receives regular updates on our performance. FCX has established a Responsible Sourcing of Minerals & Metals Standard Operating Procedure, which defines the process, roles and responsibilities across our organization. Implementation of this procedure is supported by our Responsible Sourcing Working Group and dedicated committees made up of individuals from FCX’s business units and corporate office. The committees meet periodically to review outcomes of the source review process. • Responsible Sourcing of Minerals Policy • Information can be found in our 2024 Annual Report on Sustainability: Our Approach > Responsible Value Chains and Responsible Sourcing of Minerals and Metals | G26: Meets | H26: Meets | I26: Meets | J26: Meets | K26: Meets | L26: Meets | M26: Meets | N26: Meets | O26: Meets | P26: Meets | Q26: Meets | R26: Meets | S26: Meets | T26: Meets | U26: Meets | V26: Meets | W26: Meets
A27: PRINCIPLE 4: RISK MANAGEMENT | B27: Implement effective risk-management strategies and systems based on sound science and which account for stakeholder perceptions of risks. | C27: 4.3 | D27: Implement risk-based controls to avoid/prevent, minimise, mitigate and/or remedy health, safety and environmental impacts to workers, local communities, cultural heritage and the natural environment, based upon a recognised international standard or management system. | E27: Corporate and Asset Level | F27: We drive responsible production practices throughout our operations by identifying the commitments and the corresponding responsible production frameworks that we believe will move the industry forward and help to meaningfully advance our operations and our supply chains. These commitments include our strategic focus areas and related ambitions and performance targets, as well as commitments such as the Copper Mark, UNGPs, the VPs Task Force on Climate-related Financial Disclosures and Taskforce on Nature-Related Financial Disclosures, among others. Being a responsible producer also means purposefully working toward achieving the SDGs within our communities and value chain. Ongoing stakeholder engagement is fundamental to informing our policies and processes as well as the voluntary commitments to which we subscribe. • Information can be found in our 2024 Annual Report on Sustainability: Our Approach; Empowered People & Resilient Communities; Thriving Environments | G27: Meets | H27: Meets | I27: Meets | J27: Meets | K27: Meets | L27: Meets | M27: Meets | N27: Meets | O27: Meets | P27: Meets | Q27: Meets | R27: Meets | S27: Meets | T27: Meets | U27: Meets | V27: Meets | W27: Meets
A28: PRINCIPLE 4: RISK MANAGEMENT | B28: Implement effective risk-management strategies and systems based on sound science and which account for stakeholder perceptions of risks. | C28: 4.4 | D28: Develop, maintain and test emergency response plans. Where risks to external stakeholders are significant, this should be in collaboration with potentially affected stakeholders and consistent with established industry good practice. | E28: Corporate and Asset Level | F28: All FCX-operated sites and facilities are required to have a crisis management plan to effectively respond to and support the safety of individuals potentially impacted by a crisis event at or near our operations. These plans guide our approach to preparing for, responding to, and recovering from potential emergencies or crises. Our crisis management guidelines set the minimum level of direction for crisis preparedness, response and recovery activities, with the overarching goal of minimizing the impact a crisis may have on our workforce and our host communities. Each site is expected to develop, document and test their site-specific plans based on these guidelines. The health and safety of our workforce and communities and the protection of the environment are fundamental to our extensive tailings management programs and approach. Our objective is to have zero fatalities, zero catastrophic failures and zero unplanned discharges from any of our tailings facilities. FCX is on track to implement Global Industry Standard on Tailings Management (the Tailings Standard) at remaining applicable tailings storage facilities by August 2025, in line with ICMM's deadline and subject to third-party assurance and concurrence. As of the end of January 2025, conformance had been achieved for TSFs at all operating sites except Chino. As part of the Tailing Standard conformance process for our Morenci TSFs, we successfully conducted a tabletop exercise with external emergency management agencies and community stakeholders. During the year, crisis management support was provided to several sites to aid in the execution of the sites’ crisis drills. Sites engaged local emergency response agencies to participate and test the site’s capabilities for events, both naturally occurring and operations related, that could potentially occur on our properties. In addition, the pocket reference books that were made available in 2023 were digitized and distributed as a web application so that team members can access them from their phones. Finally, we continued development of an online training course to help leaders understand crisis management, which is expected to be launched in 2025. PTFI’s Grasberg operations in Indonesia have a mature and robust crisis management program. In early 2023, PTFI’s emergency response team responded to flooding and landslides which caused damage to infrastructure near the milling complex. In an effort to improve our process to address potential future flood incidents at the milling complex, a standard operating procedure for flood and landslide response was developed and a joint exercise was held to test the established protocols. Additionally, the emergency response team at PTFI’s underground mining operations developed simplified underground emergency guidelines, conducted six exercises and provided more than 12,000 hours of employee training. PTFI also managed through a crisis event in 2024 at its new smelter complex in Gresik. Before the new smelter complex could become operational, thousands of components had to be tested and synchronized as part of the commissioning process. In October 2024, a fire occurred during start-up activities at the new smelter. Fire brigades from Gresik Regency, JIIPE (the industrial complex), Maspion, Petrokimia and Surabaya Regency quickly mobilized to contain and extinguish the fire without casualties or significant injuries. • Information can be found in our 2024 Annual Report on Sustainability: Empowered People and Resilient Communities > Health, Safety and Well-being; Thriving Environments > Tailings Management | G28: Meets | H28: Meets | I28: Meets | J28: Meets | K28: Meets | L28: Meets | M28: Meets | N28: Meets | O28: Meets | P28: Meets | Q28: Meets | R28: Meets | S28: Meets | T28: Meets | U28: Meets | V28: Meets | W28: Meets
A29: PRINCIPLE 5: HEALTH AND SAFETY | B29: Pursue continual improvement in health and safety performance with the ultimate goal of zero harm. | C29: 5.1 | D29: Implement practices aimed at continually improving workplace health and safety, and monitor performance for the elimination of workplace fatalities, serious injuries and prevention of occupational diseases, based upon a recognised international standard or management system. | E29: Corporate and Asset Level | F29: Safety is a company value and is a foundation of doing business. Our highest priority is the health, safety and well-being of our workforce, suppliers and the communities where we operate. We believe that health and safety considerations are integral to, and fundamental for, all other functions in our organization, and we understand the health and safety of our workforce is critical to our operational efficiency and long-term success. Our objective is to achieve zero workplace fatalities and to decrease injuries and occupational illnesses. As part of our commitment to providing a healthy and safe workplace, we strive to provide the training, tools and resources needed so our workforce can identify risks and consistently apply effective controls. We share information and key learnings about potential fatal events, high-risk incidents and best practices throughout FCX, and engage relevant subject matter experts in evaluating corrective actions from root cause analysis. We also participate with industry peers and professional organizations to share best practices and continuously improve our health and safety program. Our Occupational Health and Safety Management System provides the framework for managing risks and compliance obligations and is certified company-wide in accordance with the ISO 45001 Health and Safety Management System, which requires third-party site-level verification of requirements, with an overall goal of preventing fatalities and reducing safety incidents. • Safety & Health Policy • Information can be found in our 2024 Annual Report on Sustainability: Empowered People and Resilient Communities > Health, Safety and Well-being; ESG Performance Data | G29: Meets | H29: Meets | I29: Meets | J29: Meets | K29: Meets | L29: Meets | M29: Meets | N29: Meets | O29: Meets | P29: Meets | Q29: Meets | R29: Meets | S29: Meets | T29: Meets | U29: Meets | V29: Meets | W29: Meets
A30: PRINCIPLE 5: HEALTH AND SAFETY | B30: Pursue continual improvement in health and safety performance with the ultimate goal of zero harm. | C30: 5.2 | D30: Provide workers with training in accordance with their responsibilities for health and safety, and implement health surveillance and risk-based monitoring programmes based on occupational exposures. | E30: Corporate and Asset Level | F30: Safety is a company value and is a foundation of doing business. Our highest priority is the health, safety and well-being of our workforce, suppliers and the communities where we operate. We believe that health and safety considerations are integral to, and fundamental for, all other functions in our organization, and we understand the health and safety of our workforce is critical to our operational efficiency and long-term success. Our objective is to achieve zero workplace fatalities and to decrease injuries and occupational illnesses. As part of our commitment to providing a healthy and safe workplace, we strive to provide the training, tools and resources needed so our workforce can identify risks and consistently apply effective controls. We share information and key learnings about potential fatal events, high-risk incidents and best practices throughout FCX and engage relevant subject matter experts in evaluating corrective actions from root cause analysis. We also participate with industry peers and professional organizations to share best practices and continuously improve our health and safety program. Our global health and safety strategy, “Safe Production Matters,” is focused on fatality prevention, eliminating systemic root causes of incidents and continuous improvement through robust management systems, which are supported by leaders empowering our teams to work safely. We further seek to prevent fatalities and high-risk incidents by leveraging technology to support safe work practices in the field and data analytics to identify opportunities for improvement. • Safety & Health Policy • Information can be found in our 2024 Annual Report on Sustainability: Empowered People and Resilient Communities > Health, Safety and Well-being; ESG Performance Data | G30: Meets | H30: Meets | I30: Meets | J30: Meets | K30: Meets | L30: Meets | M30: Meets | N30: Meets | O30: Meets | P30: Meets | Q30: Meets | R30: Meets | S30: Meets | T30: Meets | U30: Meets | V30: Meets | W30: Meets
A31: PRINCIPLE 6: ENVIRONMENTAL PERFORMANCE | B31: Pursue continual improvement in environmental performance issues, such as water stewardship, energy use and climate change. | C31: 6.1 | D31: Plan and design for closure in consultation with relevant authorities and stakeholders, implement measures to address closure-related environmental and social aspects, and make financial provision to enable agreed closure and post-closure commitments to be realised. | E31: Corporate and Asset Level | F31: We seek to plan and operate our mines in a manner that considers post-mining land use well in advance of mine closure. Likewise, when designing new projects or expanding existing ones, we plan for how the land can be reclaimed once the mine closes. FCX strives to work in partnership with our host communities (which in many cases include Indigenous Peoples) to define and deliver shared value, throughout the mine life cycle. We not only seek to avoid, minimize and mitigate negative impacts from our operations, but we also aim to provide long-lasting benefits to our neighbors so people can thrive beyond the life of our mines. At each of our operations, we have mine closure and reclamation plans with site-specific environmental measures designed to minimize long-term impacts, promote ecosystem reestablishment and protect the watersheds where we operate. To support future anticipated closure and reclamation costs, each operating mine site has asset retirement obligations aligned with approved closure plans. Closure plans are periodically updated to incorporate new learnings and additional disturbances associated with new development and expansion projects. Asset retirement obligations are estimated and accounted for in accordance with generally accepted accounting principles (GAAP) in the U.S. and are audited by an independent accounting firm. • Environmental Policy • Social Performance Policy • Information can be found in our 2024 Annual Report on Sustainability: Thriving Environments > Mine Closure and Reclamation | G31: Meets | H31: Meets | I31: Meets | J31: Meets | K31: Meets | L31: Meets | M31: Meets | N31: Meets | O31: Meets | P31: Meets | Q31: Meets | R31: Meets | S31: Meets | T31: Meets | U31: Meets | V31: Meets | W31: Meets
A32: PRINCIPLE 6: ENVIRONMENTAL PERFORMANCE | B32: Pursue continual improvement in environmenal performance issues, such as water stewardship, energy use and climate change. | C32: 6.2 | D32: Implement water stewardship practices that provide for strong and transparent water governance, effective and efficient management of water at operations, and collaboration with stakeholders at a catchment level to achieve responsible and sustainable water use. | E32: Corporate and Asset Level | F32: FCX’s water stewardship program aims to secure reliable, long-term water supplies while maximizing water use efficiency within our operations. On the supply side, we seek to identify opportunities to shift to more sustainable water sources, such as recycled, reused, renewable and lower-quality water. On the use side, we are working to identify best practices, scalable levers and technological innovations to maintain our high water-use efficiency rates and reduce our freshwater usage over the long term. We review our water usage and consumption patterns regularly in order to understand our water balances and identify efficiency opportunities. Globally, we aim to identify, manage and mitigate water-related risks to support the continuous improvement of our operations and promote water security for local communities and the natural systems within which we operate. To that end, we recognize the importance of collaborating with our stakeholders, including providing education and opportunities to adopt new technologies as well as balancing responsible production with societal needs and expectations. • Environmental Policy • Information can be found in our 2024 Annual Report on Sustainability: Thriving Environments > Water Stewardship | G32: Meets | H32: Meets | I32: Meets | J32: Meets | K32: Meets | L32: Meets | M32: Meets | N32: Meets | O32: Meets | P32: Meets | Q32: Meets | R32: Meets | S32: Meets | T32: Meets | U32: Meets | V32: Meets | W32: Meets
A33: PRINCIPLE 6: ENVIRONMENTAL PERFORMANCE | B33: Pursue continual improvement in environmenal performance issues, such as water stewardship, energy use and climate change. | C33: 6.3 | D33: Design, construct, operate, monitor and decommission tailings disposal/storage facilities using comprehensive, risk-based management and governance practices in line with internationally recognised good practice, to minimise the risk of catastrophic failure. | E33: Corporate and Asset Level | F33: FCX has comprehensive measures in place to help ensure our tailings facilities are designed, built, operated, closed and monitored to minimize risk to our workforce, communities and the environment. Although there is some overlap among the categories, our safeguards generally fall within four categories: (1) engineering practices and safe designs, (2) adherence to construction and operational parameters through monitoring and use of technology, (3) multi-tiered oversight and robust management of change and (4) adherence to practices grounded in continuous improvement and learning from past experiences, including industry failures and best practices. We remain focused on the safe execution of our tailings management programs by maintaining robust, multi-tiered governance, which includes appropriately qualified personnel with clearly defined roles, responsibilities and accountabilities. Our board and executive management are firmly committed to providing the necessary financial and technical resources to maintain the safety and integrity of our tailings facilities globally, with a focus on risk management and continuous improvement. FCX’s Tailings Management Policy outlines our commitment to manage our tailings responsibly and effectively across our sites globally. This policy is designed to be implemented in conjunction with our Environmental, Human Rights and Social Performance policies as well as our associated management systems. Additionally, we are committed to implementing the Global Industry Standard on Tailings Management (Tailings Standard) at our applicable tailings storage facilities (TSFs) in the Americas. • Environmental Policy • Tailings Management Policy • Information can be found in our 2024 Annual Report on Sustainability: Thriving Environments > Tailings Management; and the Site-Specific Tailings Management document on fcx.com | G33: Not applicable | H33: Meets | I33: Meets | J33: Partially meets | K33: Meets | L33: Meets | M33: Meets | N33: Meets | O33: Meets | P33: Not applicable | Q33: Meets | R33: Partially meets | S33: Not applicable | T33: Not applicable | U33: Not applicable | V33: Not applicable | W33: Not applicable
A34: PRINCIPLE 6: ENVIRONMENTAL PERFORMANCE | B34: Pursue continual improvement in environmenal performance issues, such as water stewardship, energy use and climate change. | C34: 6.4 | D34: Apply the mitigation hierarchy to prevent pollution, manage releases and waste, and address potential impacts on human health and the environment. | E34: Corporate and Asset Level | F34: Effective environmental stewardship is essential to the long-term viability of our business, including maintaining the necessary support from our host communities and governments. Through responsible environmental stewardship, strong management systems and continuous improvement, we plan and conduct our operations in a manner that seeks to minimize adverse environmental impacts. We are committed to protecting the natural environment with a particular focus on climate resiliency, responsible water use, biodiversity conservation, tailings management and non-mineral waste management. Our active mining and mineral processing operations and technology centers maintain environmental management systems (EMS) that are certified to the ISO 14001:2015 standard by independent auditors. As part of our EMS, our workforce is trained on site-specific subject areas and annually on environmental issues and is supported by environmental professionals working in the field. Site management teams identify, manage and mitigate environmental risks through our risk register process and the use of environmental critical control systems designed to prevent environmental incidents at our operations. Critical controls are focused on the elimination of unplanned releases and prevention or minimization of impacts to water and other natural resources. At the corporate level, subject matter experts train, develop and support our site teams, routinely conduct site visits, and in some cases, directly manage a group of site-based experts. Collectively, they are responsible for building technical expertise, ensuring consistency in our environmental programs and sharing best practices. To support this effort, we provide annual training for our employees on critical environmental compliance topics, including air, water, waste and biodiversity. Our Environmental Policy states our commitment to contribute to the conservation of nature and biodiversity, to apply the mitigation hierarchy for all new projects, and to not to explore or mine in any UNESCO World Heritage Site. By applying the mitigation hierarchy, we aim to manage risks and potential impacts with the long-term ambition of No Net Loss for new mines and major expansion projects at existing mines, in line with ICMM’s Nature Commitment. We have integrated the hierarchy into our existing development process for new projects and trained our environmental teams to routinely apply it to all projects (regardless of size) at operating sites that may disturb natural habitats. In 2024, we completed the mitigation hierarchy process to achieve No Net Loss of biodiversity resources for the 3,000-acre Sycamore tailings project at Bagdad – our first major expansion project since implementing the mitigation hierarchy in 2021. • Environmental Policy • Information can be found in our 2024 Annual Report on Sustainability: Thriving Environments > Biodiversity, Nature | G34: Meets | H34: Meets | I34: Meets | J34: Meets | K34: Meets | L34: Meets | M34: Meets | N34: Meets | O34: Meets | P34: Meets | Q34: Meets | R34: Meets | S34: Meets | T34: Meets | U34: Meets | V34: Meets | W34: Meets
A35: PRINCIPLE 6: ENVIRONMENTAL PERFORMANCE | B35: Pursue continual improvement in environmenal performance issues, such as water stewardship, energy use and climate change. | C35: 6.5 | D35: Implement measures to improve energy efficiency and contribute to a low-carbon future, and report the outcomes based on internationally recognised protocols for measuring CO2 equivalent (GHG) emissions. | E35: Corporate and Asset Level | F35: As one of the world’s largest copper producers, we understand our role in the energy transition. We are dedicated to supplying the global economy with responsibly produced copper, which includes operating in a manner that manages and mitigates our greenhouse gas (GHG) emissions and other climate-related risks and impacts. FCX is committed to implementing the requirements outlined in the ICMM Climate Change Position Statement and Performance Expectations for energy and climate change. In addition, our commitment to the Copper Mark requires that we develop and achieve targets over time and report our progress at a site level. Operational-level data is available in our Annual Report on Sustainability. Multiple GHG emissions reduction initiatives are either already in process or are under evaluation across our global business. Collectively, we believe these initiatives are the foundation that will help us develop and further define our decarbonization roadmap to achieve our current 2030 GHG emissions reduction targets and eventually achieve our 2050 net zero aspiration. These initiatives fall into four primary levers: decarbonizing electricity supply, equipment electrification, energy and asset efficiency, and process innovation. • Information can be found in our 2024 Annual Report on Sustainability: Climate; ESG Performance Data | G35: Meets | H35: Meets | I35: Meets | J35: Meets | K35: Meets | L35: Meets | M35: Meets | N35: Meets | O35: Meets | P35: Meets | Q35: Meets | R35: Meets | S35: Meets | T35: Meets | U35: Meets | V35: Meets | W35: Meets
A36: PRINCIPLE 7: CONSERVATION OF BIODIVERSITY | B36: Contribute to the conservation of biodiversity and integrated approaches to land-use planning. | C36: 7.1 | D36: Neither explore nor develop new mines in World Heritage sites, respect legally designated protected areas, and design and operate any new operations or changes to existing operations to be compatible with the value for which such areas were designated. | E36: Corporate and Asset Level | F36: FCX is committed to operating in a manner that respects legally designated protected areas, including a commitment to no mining or exploring in UNESCO World Heritage sites, which is included in our Environmental Policy. Our proven and probable reserves located near endangered species habitats do not affect those habitats. The endangered species habitats near Morenci, Chino, and Climax reserves are located on federal lands managed by the U.S. Forest Service; we do not conduct activities within the habitat. Cerro Verde’s reserves qualify due to an endangered bat species that is known to occur and forage in the general region of the operations and we actively seek to protect the species. Grasberg’s reserves qualify due to the district’s proximity to Lorentz National Park, however, we have not and will not conduct any mining or exploration activities in Lorentz National Park, which is a UNESCO World Heritage Site. We maintain significant programs at Grasberg’s operations to protect biodiversity in the area. •Environmental Policy • Biodiversity Management at FCX • Information can be found in our 2024 Annual Report on Sustainability: Thriving Environments > Biodiversity, Nature; 2024 SASB Standards | G36: Meets | H36: Meets | I36: Meets | J36: Meets | K36: Meets | L36: Meets | M36: Meets | N36: Meets | O36: Meets | P36: Meets | Q36: Meets | R36: Meets | S36: Not applicable | T36: Not applicable | U36: Not applicable | V36: Not applicable | W36: Not applicable
A37: PRINCIPLE 7: CONSERVATION OF BIODIVERSITY | B37: Contribute to the conservation of biodiversity and integrated approaches to land-use planning. | C37: 7.2 | D37: Assess and address risks and impacts to biodiversity and ecosystem services by implementing the mitigation hierarchy, with the ambition of achieving no-net-loss of biodiversity. | E37: Corporate and Asset Level | F37: We are committed to programs to allow us to proactively identify and manage the potential impacts of our operations on biodiversity, land and surrounding ecosystems and, where adverse impacts cannot be avoided, mitigating them. By applying the mitigation hierarchy, we aim to manage risks and potential impacts with the long-term ambition of No Net Loss for new mines and major expansion projects at existing mines, in line with ICMM's Nature Commitment. We have integrated the hierarchy into our existing development process for new projects and trained our environmental teams to routinely apply it to all projects (regardless of size) at operating sites that may disturb natural habitats. In 2024, we completed the mitigation hierarchy process to achieve No Net Loss of biodiversity resources for the 3,000-acre Sycamore tailings project at Bagdad – our first major expansion project since implementing the mitigation hierarchy in 2021. While most of the impacts will be addressed through reclamation at closure, it was determined that the project would result in approximately 20 acres of residual impacts to riparian scrub habitat that could not be restored. Accordingly, we developed a biodiversity offset that we plan to initiate in 2025 to protect and enhance 50 acres of riparian habitat along the Big Sandy River to compensate the residual impacts. • Environmental Policy • Biodiversity Management at FCX • Information can be found in our 2024 Annual Report on Sustainability: Thriving Environments > Biodiversity | G37: Meets | H37: Meets | I37: Meets | J37: Meets | K37: Meets | L37: Meets | M37: Meets | N37: Meets | O37: Meets | P37: Meets | Q37: Meets | R37: Meets | S37: Meets | T37: Meets | U37: Meets | V37: Meets | W37: Meets
A38: PRINCIPLE 8: RESPONSIBLE PRODUCTION | B38: Facilitate and support the knowledge-base and systems for responsible design, use, re-use, recycling and disposal of products containing metals and minerals. | C38: 8.1 | D38: In project design, operation and de-commissioning, implement cost-effective measures for the recovery, re-use or recycling of energy, natural resources, and materials. | E38: Corporate and Asset Level | F38: FCX produces substantially more mining and mineral processing wastes, such as tailings, waste rock, overburden and slag, than non-mineral waste. Responsible waste management is key to complying with environmental regulations, maintaining community and environmental health, and advancing social acceptance of mining operations. FCX is committed to reducing our environmental impact, which includes the effective management of our non-mineral waste (such as recycled material and landfilled waste). The volume of mining and mineral processing waste we generate varies depending on site-specific mine plans. We continuously evaluate opportunities to reduce the quantity of non-mineral waste generated at our operations. We seek to apply the standard protocol of reduce, reuse or recycle wherever possible and implement robust practices to identify, categorize, store and manage non-mineral wastes. Through our asset recovery programs, we divert certain materials from landfills, and we strive to increase recycling and reuse of those materials in our operations, taking a circular economy approach wherever possible. We also evaluate our hazardous waste streams and, when possible, substitute materials with lower toxicity into our processes. For wastes that require disposal, we work with third-party handlers to confirm that the treatment, storage and disposal facilities manage the non-mineral waste in line with contractual or legislative obligations. • Information can be found in our 2024 Annual Report on Sustainability: Thriving Environments > Non-Mineral Waste Management; Our Approach > Our Strategy in Action: Responsible Production | G38: Meets | H38: Meets | I38: Meets | J38: Meets | K38: Meets | L38: Meets | M38: Meets | N38: Meets | O38: Meets | P38: Meets | Q38: Meets | R38: Meets | S38: Meets | T38: Meets | U38: Meets | V38: Meets | W38: Meets
A39: PRINCIPLE 8: RESPONSIBLE PRODUCTION | B39: Facilitate and support the knowledge-base and systems for responsible design, use, re-use, recycling and disposal of products containing metals and minerals. | C39: 8.2 | D39: Assess the hazards of the products of mining according to UN Globally Harmonised System of Hazard Classification and Labelling or equivalent relevant regulatory systems and communicate through safety data sheets and labelling as appropriate. | E39: Corporate and Asset Level | F39: Our Occupational Health and Safety Management System provides the framework for managing risks and compliance obligations and is certified company-wide in accordance with the ISO 45001 Health and Safety Management System, which covers handling and use of hazardous materials on site, including maintenance of safety data sheets. • Safety and Health Policy • Information can be found in our 2024 Annual Report on Sustainability: Empowered People and Resilient Communities > Health, Safety and Well-being | G39: Meets | H39: Meets | I39: Meets | J39: Meets | K39: Meets | L39: Meets | M39: Meets | N39: Meets | O39: Meets | P39: Meets | Q39: Meets | R39: Meets | S39: Meets | T39: Meets | U39: Meets | V39: Meets | W39: Meets
A40: PRINCIPLE 9: SOCIAL PERFORMANCE | B40: Pursue continual improvement in social performance and contribute to the social, economic and institutional development of host countries and communities. | C40: 9.1 | D40: Implement inclusive approaches with local communities to identify their development priorities and support activities that contribute to their lasting social and economic wellbeing, in partnership with government, civil society and development agencies, as appropriate. | E40: Corporate and Asset Level | F40: FCX strives to work in partnership with our host communities and Indigenous Peoples to earn and maintain their trust and deliver shared value. While we tailor our programs to the dynamics of each operation and host community, our overarching objectives in partnership with local stakeholders remain consistent: (1) work to build enduring trust, (2) avoid, minimize or mitigate adverse impacts from our operations with input from affected people, (3) maximize the positive benefits, and (4) support host communities in building the resilience necessary to adapt and thrive during and beyond the life of our mines. We do this through proactive, ongoing engagements and constructive dialogue, which are foundational to our approach and inform our decisions. As part of our ongoing effort to build trust, we aim to help build resilience and well-being in the host communities where we operate, in part by contributing time and financial resources. To maximize the value of these contributions, we have initiated work to quantify the impact of our social investments, which will help inform our ongoing social investment strategy and our dialogue with stakeholders about value created. • Social Performance Policy • Information can be found in our 2024 Annual Report on Sustainability: Our Approach > Stakeholder Engagement and Materiality; Empowered People and Resilient Communities > Communities and Indigenous Peoples; Economic Contributions | G40: Meets | H40: Meets | I40: Meets | J40: Meets | K40: Meets | L40: Meets | M40: Meets | N40: Meets | O40: Meets | P40: Meets | Q40: Meets | R40: Meets | S40: Meets | T40: Meets | U40: Meets | V40: Meets | W40: Meets
A41: PRINCIPLE 9: SOCIAL PERFORMANCE | B41: Pursue continual improvement in social performance and contribute to the social, economic and institutional development of host countries and communities. | C41: 9.2 | D41: Enable access by local enterprises to procurement and contracting opportunities across the project life-cycle, both directly and by encouraging larger contractors and suppliers, and also by supporting initiatives to enhance economic opportunities for local communities. | E41: Corporate and Asset Level | F41: Purchasing goods and services from local suppliers provides a significant direct and indirect benefit to our local communities. Our investment in local communities helps to support the economic vitality of small and medium size enterprises and local entrepreneurship. When we purchase locally, we provide the stimulus for community development and the potential for capacity building. We continue to prioritize greater transparency in our local procurement spending, with a focus on expanding opportunities for local suppliers, where feasible. We have implemented standard operating procedures and/or plans emphasizing local procurement across our operations and include this information in our ongoing training with our site procurement teams. FCX continues to support qualifying small- and medium-sized local businesses by providing opportunities such as reduced payment terms in support of local procurement. In line with the Mining Local Procurement Reporting Mechanism (LPRM), we continue to disclose local procurement spending by site and additional information for existing and potential suppliers on the Suppliers page of fcx.com. • Information can be found in our 2024 Annual Report on Sustainability: Robust Governance > Responsible Value Chains; Empowered People and Resilient Communities > Economic Contributions; ESG Performance Data • LPRM disclosure on the Suppliers page of fcx.com | G41: Meets | H41: Meets | I41: Meets | J41: Meets | K41: Meets | L41: Meets | M41: Meets | N41: Meets | O41: Meets | P41: Meets | Q41: Meets | R41: Meets | S41: Meets | T41: Meets | U41: Meets | V41: Meets | W41: Meets
A42: PRINCIPLE 9: SOCIAL PERFORMANCE | B42: Pursue continual improvement in social performance and contribute to the social, economic and institutional development of host countries and communities. | C42: 9.3 | D42: Conduct stakeholder engagement based upon an analysis of the local context and provide local stakeholders with access to effective mechanisms for seeking resolution of grievances related to the company and its activities. | E42: Corporate and Asset Level | F42: Our approach to stakeholder engagement is characterized by transparency, collaboration and meaningful dialogue, with the primary goal of fostering mutual understanding, trust and cooperation. We recognize the interests and concerns of our various stakeholders can change over time, which underscores the need for proactive and ongoing engagement to learn about their changing needs and perspectives. We believe effective stakeholder engagement can help reduce our sustainability-related risks by identifying the risks early and enabling us to work in partnership with stakeholders to address them, ultimately supporting our endeavors to make positive contributions to society. For these reasons, we seek to maintain stakeholder engagement programs at both the corporate and site levels throughout the year. We have a broad range of stakeholders with whom we engage, including shareholders, employees, host communities and Indigenous Peoples, customers and suppliers, industry associations, regulators and policymakers, local and national host governments, local community associations and nongovernmental organizations (NGOs). Many individuals and teams across FCX are responsible for engaging with different stakeholder groups. Collectively, our stakeholder engagements inform management’s decision making and the board's oversight, particularly in relation to our policies, practices, programs and initiatives. To support constructive engagement and resolution of potential issues and adverse impacts, we maintain a site-level grievance mechanism aligned with the UNGP "effectiveness criteria" where community members, including Indigenous Peoples, can register their complaints. Our community grievance mechanism serves as an early warning system by tracking trends and patterns in grievance types so they can be addressed in their earliest stages, ideally prior to escalation. We also maintain grievance mechanisms for employees, members of our supply chain and others. • Social Performance Policy • Human Rights Policy • Information can be found in our 2024 Annual Report on Sustainability: Our Approach > Stakeholder Engagement and Materiality; Robust Governance > Human Rights; Empowered People and Resilient Communities > Communities and Indigenous Peoples, Economic Contributions | G42: Meets | H42: Meets | I42: Meets | J42: Meets | K42: Meets | L42: Meets | M42: Meets | N42: Meets | O42: Meets | P42: Meets | Q42: Meets | R42: Meets | S42: Meets | T42: Meets | U42: Meets | V42: Meets | W42: Meets
A43: PRINCIPLE 9: SOCIAL PERFORMANCE | B43: Pursue continual improvement in social performance and contribute to the social, economic and institutional development of host countries and communities. | C43: 9.4 | D43: Collaborate with government, where appropriate, to support improvements in environmental and social practices of local Artisanal and Small-scale Mining (ASM). | E43: Corporate and Asset Level | F43: The only site where we encounter artisanal miners is at PTFI’s Grasberg operations in Central Papua, Indonesia. At Grasberg, illegal artisanal miners (illegal miners) seek economic opportunity by panning for unrecovered gold from milling operations in the controlled riverine tailings system. PTFI utilizes a cross-functional management plan to help mitigate the potential social, security, safety, environmental and operational risks associated with illegal mining. The aim of the plan is to reduce the number of illegal miners within the Grasberg operating area and related disruptions to operations. Continued efforts include educational campaigns, monitoring the environment for mercury use, strengthening check points, increasing unmanned aerial systems patrols and focusing on joint patrols with third-party security personnel. Joint patrols, which include representatives from PTFI’s workforce, local police and private security personnel, monitor the area occupied by panners and when issues are identified, such as social, environmental, safety or security issues, the patrols inform the cross-functional team. The cross-functional team reviews drone surveillance filmed by PTFI’s aviation group and coordinates with the joint patrols, which play a key role in socialization of educational campaigns and problem solving within the illegally occupied area. To integrate illegal mining issues into PTFI’s planning and decision making, the cross-functional team meets regularly to update leadership. PTFI cannot address illegal mining on its own. A multi-faceted approach including government involvement, security risk management, stakeholder engagement and socioeconomic development for alternative livelihoods is essential. To that end, PTFI’s illegal mining management plan includes regional and national objectives to help build strategic partnerships for a multi-stakeholder illegal mining strategy. For example, in September 2024, a multi-stakeholder forum was facilitated by the local government, in collaboration with PTFI, to discuss challenges associated with illegal mining activity, including risks to women and children. The forum involved representatives from police, military, Indigenous councils and notables, civil society organizations, churches and PTFI. The forum resulted in the development of an action plan with short-, medium- and long-term goals and initiatives to reduce the number of women and children living in illegal mining camps. Initiatives include education and health programs, and vocational and entrepreneurship training. PTFI has organized regular follow-up meetings with the local government and law enforcement agencies to help ensure that the agreed upon goals are being put into action. • Information can be found in our 2024 Annual Report on Sustainability: Robust Governance > Human Rights > Illegal Artisanal Mining | G43: Meets | H43: Meets | I43: Meets | J43: Meets | K43: Meets | L43: Meets | M43: Meets | N43: Meets | O43: Meets | P43: Meets | Q43: Meets | R43: Meets | S43: Not applicable | T43: Not applicable | U43: Not applicable | V43: Not applicable | W43: Not applicable
A44: PRINCIPLE 10: STAKEHOLDER ENGAGEMENT | B44: Proactively engage key stakeholders on sustainable development challenges and opportunities in an open and transparent manner. Effectively report and independently verify progress and performance. | C44: 10.1 | D44: Identify and engage with key corporate-level external stakeholders on sustainable development issues in an open and transparent manner | E44: Corporate Level | F44: We regularly seek feedback and input on a range of topics from our host communities and other stakeholders with real or perceived impacts by our operations or projects through our various engagement channels. As the interests and concerns of our stakeholders can change over time, ongoing and proactive engagement is necessary to understand and address evolving needs and expectations. All of our active mining sites have long-standing local community engagement and development programs, which emphasize collaborative, proactive and transparent communication that fosters meaningful dialogue. Engagement includes local leaders and citizens representing a broad range of stakeholder groups within each community. We engage with stakeholders through community partnership panels in the U.S. and in Gresik, Indonesia, annually renewed Implementation Agreements with Indigenous Councils in Papua, Indonesia, community engagement dialogue in South America, and community liaison officers in Papua, Indonesia. Additionally, our operations frequently engage with stakeholders through situation- or topic-specific meetings, presentations, community office hours, and other community outreach and engagement efforts. PTFI's Grasberg operations regularly engage with the Amungme and Kamoro people and annually renew Implementation Agreements with their Indigenous Councils. • Information can be found in our 2024 Annual Report on Sustainability: Empowered People and Resilient Communities > Stakeholder Identification and Engagement | G44: Meets | H44: Meets | I44: Meets | J44: Meets | K44: Meets | L44: Meets | M44: Meets | N44: Meets | O44: Meets | P44: Meets | Q44: Meets | R44: Meets | S44: Meets | T44: Meets | U44: Meets | V44: Meets | W44: Meets
A45: PRINCIPLE 10: STAKEHOLDER ENGAGEMENT | B45: Proactively engage key stakeholders on sustainable development challenges and opportunities in an open and transparent manner. Effectively report and independently verify progress and performance. | C45: 10.2 | D45: Publicly support the implementation of the Extractive Industries Transparency Initiative (EITI) and compile information on all material payments, at the appropriate levels of government, by country and by project. | E45: Corporate and Asset Level | F45: We have endorsed and have been committed to supporting the EITI since 2008. We maintain significant mining operations in Indonesia and Peru, both of which have implemented EITI, and we actively support and participate in associated in-country processes as part of EITI. We also aim to support governments’ ambitions to achieve contract transparency. In addition to our country-level EITI commitments and regulatory reporting obligations, our practice is to provide transparency by voluntarily reporting cash payments to governments in all significant jurisdictions where we conduct business. • Information can be found in our 2024 Annual Report on Sustainability: Empowered People and Resilient Communities > Economic Contributions; ESG Performance Data | G45: Meets | H45: Meets | I45: Meets | J45: Meets | K45: Meets | L45: Meets | M45: Meets | N45: Meets | O45: Meets | P45: Meets | Q45: Meets | R45: Meets | S45: Meets | T45: Meets | U45: Meets | V45: Meets | W45: Meets
A46: PRINCIPLE 10: STAKEHOLDER ENGAGEMENT | B46: Proactively engage key stakeholders on sustainable development challenges and opportunities in an open and transparent manner. Effectively report and independently verify progress and performance. | C46: 10.3 | D46: Report annually on economic, social and environmental performance at the corporate level using the GRI Sustainability Reporting Standards. | E46: Corporate Level | F46: Our 2024 Annual Report on Sustainability has been prepared in reference to the GRI Sustainability Reporting Standards (2021) and the GRI 14: Mining Sector 2024. We have reported under GRI guidelines and standards since 2005. • Information can be found in the 2024 Annual Report on Sustainability > ESG Performance Data | G46: Meets | H46: Meets | I46: Meets | J46: Meets | K46: Meets | L46: Meets | M46: Meets | N46: Meets | O46: Meets | P46: Meets | Q46: Meets | R46: Meets | S46: Meets | T46: Meets | U46: Meets | V46: Meets | W46: Meets
A47: PRINCIPLE 10: STAKEHOLDER ENGAGEMENT | B47: Proactively engage key stakeholders on sustainable development challenges and opportunities in an open and transparent manner. Effectively report and independently verify progress and performance. | C47: 10.4 | D47: Each year, conduct independent assurance of sustainability performance following the ICMM guidance on assuring and verifying membership requirements. | E47: Corporate Level | F47: Our annual reports on sustainability have been independently verified since 2005. Ernst & Young LLP has provided the following assurance in relation to our 2024 Annual Report on Sustainability: (1) limited assurance over certain disclosures included in the 2024 Annual Report on Sustainability; (2) limited assurance over Scope 3 GHG emissions; and (3) reasonable assurance over Scope 1 and Scope 2 GHG emissions. External reasonable-level assurance reviews occur at each of our active mining and metals processing operations every three years for purposes of maintaining the Copper Mark and Molybdenum Mark and confirming each site is upholding ICMM performance expectations. Certain of our larger mining operations also undergo limited-level assurance more frequently to support our disclosures and overall responsible production performance. • Information can be found in our 2024 Annual Report on Sustainability and on the External Assurance webpage of fcx.com | G47: Meets | H47: Meets | I47: Meets | J47: Meets | K47: Meets | L47: Meets | M47: Meets | N47: Meets | O47: Meets | P47: Meets | Q47: Meets | R47: Meets | S47: Meets | T47: Meets | U47: Meets | V47: Meets | W47: Meets

Sheet ICMM S&E
A1: INTERNATIONAL COUNCIL OF MINING AND METALS (ICMM) SOCIAL AND ECONOMIC REPORTING FRAMEWORK
A3: FCX's 2024 Annual Report on Sustainability includes disclosures related to ICMM’s Social and Economic Reporting Framework and Guidance, with information as of the year-ended December 31, 2024.
A4: Note: Websites and links can be found in the references tab.
A5: Focus Area | B5: Core Indicator | C5: Overview | D5: FCX RESPONSE
A6: Tax | B6: 1. Country-by-country reporting of business activities, revenues, profit and tax | C6: Financial, economic, and tax-related information for each jurisdiction in which a member operates | D6: FCX’s global tax strategy seeks to balance the economic considerations of our host governments and stakeholders with our business objectives. In jurisdictions where we conduct business, we advocate for the development and implementation of fair and predictable tax laws on issues that are important to our business and the industry. • FCX 2024 Form 10-K, Items 7 and 7A. Consolidated Results, Income Taxes • Cash Payments to Governments tab (this workbook) • Information can be found in our 2024 Annual Report on Sustainability: People > Economic Contributions
A7: Employment | B7: 2. Workforce composition | C7: Information on workforce split across different regions, equality areas and permanent/contractor | D7: FCX believes our people are the foundation of our success and a competitive advantage. A key to our success is the ability to recruit, retain, develop and advance talented employees with diverse perspectives. • Employee Demographics table on the Workforce tab (this workbook) • Information can be found in our 2024 Annual Report on Sustainability: People > Workforce
A8: PRINCIPLE 3: HUMAN RIGHTS | B8: 3. Pay Equality | C8: Ratio of the basic salary and remuneration by employee categories/regions by equality areas | D8: We are committed to respecting the rights of our workforce, including paying fair and equal wages. Our approach to compensation and benefits is market-based, competitive and informed by annual benchmarking and analysis. • Employee Pay Equity Analysis table on the Remuneration tab (this workbook) • Information can be found in our 2024 Annual Report on Sustainability: People > Workforce > Fair and Equal Remuneration Practices
A9: PRINCIPLE 3: HUMAN RIGHTS | B9: 4. Wage Level | C9: Ratios of entry level wages vs local living wage and CEO compensation to median employee compensation | D9: For several years, we have conducted a living wage assessment for both full-time and part-time employees using living wage benchmark rates provided by BSR, a global sustainability nonprofit. We paused this analysis in 2024 as BSR transitions their living wage program to WageMap, a consortium of living wage data and service providers working together to drive alignment across living wage methodologies and frameworks. • Information can be found in our 2024 Annual Report on Sustainability: People > Workforce > Fair and Equal Remuneration Practices • 2025 Proxy Statement: CEO Pay Ratio
A10: Workforce Development | B10: 5. Training Provided | C10: Overview of training provided including average hours of training per employee (disaggregated per gender and ethnicity), average spend on training and percentage of employees receiving training provided per category | D10: To support the advancement of our employees, we offer training and development programs. We leverage both formal and informal programs to identify, foster and retain top talent at both the corporate and operations levels. • Information can be found in our 2024 Annual Report on Sustainability: People > Workforce > Employee Training and Development
A11: Procurement | B11: 6. Local Procurement | C11: Percentage of the procurement spend that is spent on suppliers local to operations (disaggregated per gender and ethnicity) | D11: Globally, we seek to train and encourage buyers and contract administrators to provide opportunities to local suppliers when possible and in alignment with our business needs. • Procurement - by site tab (this workbook) • Information can be found in our 2024 Annual Report on Sustainability: People > Workforce > Local and Diversified Procurement • Information can be found in our Mining Local Procurement Reporting Mechanism disclosure: fcx.com > Suppliers > External Standards/Initiatives
A12: Education & Skills | B12: 7. Education and Skills Support | C12: Overview of the range of education and skills programs deployed outside of workforce, spanning number and types of programs, spend and beneficiaries (disaggregated per gender and ethnicity) | D12: One of our primary goals is to work with local communities and Indigenous Peoples in the areas where we operate to contribute to their well-being and build resilience over time to enable communities to thrive during the life of our mines and beyond. Partnering with communities to increase resilience means supporting their ability to better anticipate, navigate and successfully adapt to disruptive events or conditions, such as impacts from climate change, changes in employment types and opportunities, or eventual post-mining transitions. This includes creating opportunities, activities and skills that increase community-level capacity to maximize the economic opportunities created by mining. • Community Investments tab (this workbook) • Information can be found in our 2024 Annual Report on Sustainability: People > Communities and Indigenous Peoples
A13: Capacity and Institutions | B13: 8. Capacity and Institution support | C13: Overview of the range of capacity and institution programs deployed, spanning number and types of programs, spend and beneficiaries (disaggregated per gender and ethnicity)

Sheet SASB Standards
A1: 2024 SASB STANDARDS
A3: FCX discloses in alignment with the SASB Metals & Mining Sustainability Accounting Standard (EM-MM; version 2023-12). Information referenced below is for the year ended December 31, 2024, unless otherwise noted. For further information on the topics disclosed, please see FCX’s 2024 Annual Report on Sustainability, 2024 Form 10-K and the other related documents on our website referenced in this table.
A4: Note: Websites and links can be found in the references tab. Reported amounts are approximate.
A5: TOPIC | B5: ACCOUNTING METRIC | C5: CATEGORY | D5: UNIT OF MEASURE | E5: CODE | F5: FCX RESPONSE | G5: REFERENCES
A6: Greenhouse Gas Emissions | B6: (1) Gross global Scope 1 emissions (2) Percentage covered under emissions-limiting regulations | C6: Quantitative | D6: Metric tons (t) CO2-e, Percentage (%) | E6: EM-MM-110a.1 | F6: (1) 5,407 thousand metric tons of carbon dioxide equivalent (2) 1.3% | G6: (1) ESG Performance Data: GHG Emissions
B7: Discussion of long-term and short-term strategy or plan to manage Scope 1 emissions, emissions reduction targets, and an analysis of performance against those targets | C7: Discussion and Analysis | D7: N/A | E7: EM-MM-110a.2 | F7: We are dedicated to supplying the world with responsibly produced copper, which includes operating in a manner that manages and mitigates our GHG emissions and other climate-related risks and impacts. Multiple GHG emissions reduction initiatives are either already in process or are under evaluation across our global business. Collectively, we believe these initiatives are the foundation that will help us develop and further define our decarbonization roadmap to achieve our current 2030 GHG emissions reduction targets and eventually achieve our 2050 net zero aspiration. These initiatives fall into four primary levers: decarbonizing electricity supply, equipment electrification, energy and asset efficiency, and process innovation. We have four 2030 GHG emissions reduction targets, covering nearly 100% of our Scope 1 and 2 GHG emissions, which help us to manage relevant, climate-related risks and support the decarbonization of our business globally. Two of our targets seek to reduce the GHG emissions intensity of our Americas copper operations by 15% and PTFI’s Grasberg operations by 30% from our 2018 baselines. The other two targets are on an absolute basis and seek to reduce the GHG emissions of the Atlantic Copper smelter and refinery by 50% and of our primary molybdenum sites⁵ by 35% from our 2018 baselines. We are committed to aligning our disclosures with the recommendations of the Task Force on Climate-related Financial Disclosures (TCFD), and we continue to collaborate with the Copper Mark, RMI and several industry peers along with semi fabricators on the development of a science-based sectoral decarbonization approach (SDA) for the copper sector. Upon successful completion of the science-based SDA, we plan to use it as the basis for validating and/or updating our targets across Scopes 1, 2 and 3 in alignment with our ICMM and Copper Mark commitments. For more information on our commitments and progress, please see our reference documents. | G7: (1) 2024 Annual Report on Sustainability: Climate
A8: Air Quality | B8: Air emissions of the following pollutants: (1) CO, (2) NOx (excluding N2O), (3) SOx, (4) particulate matter (PM10), (5) mercury (Hg), (6) lead (Pb), and (7) volatile organic compounds (VOCs) | C8: Quantitative | D8: Metric tons (t) | E8: EM-MM-120a.1 | F8: (1) 41.2 thousand metric tons (2) 42.4 thousand metric tons (3) 7.1 thousand metric tons (4) 18.2 thousand metric tons (5) Less than one metric ton (6) 13.3 metric tons (7) 4.5 thousand metric tons | G8: (1) ESG Performance Trend Data: Air Emissions
A9: Energy Management | B9: (1) Total energy consumed, (2) percentage grid electricity, (3) percentage renewable FCX METRIC: (1) Total energy consumed, (2) percentage grid electricity, (3) percentage renewable (including all biomass sources) | C9: Quantitative | D9: Terajoules (TJ), Percentage (%) | E9: EM-MM-130a.1 | F9: (1) Total energy consumed: 104,630 terajoules (2) Percentage grid electricity: 34.9% (3) Percentage renewable: 17% | G9: (1) ESG Performance Trend Data: Energy Consumption by Type and Indirect Energy
A10: Water Management | B10: (1) Total water withdrawn, (2) Total water consumed, + percentage of each in regions with High or Extremely High Baseline Water Stress | C10: Quantitative | D10: Thousand cubic meters (m³), Percentage (%) | E10: EM-MM-140a.1 | F10: (1) Total water withdrawn: 320,974 thousand cubic meters; 23% with High or Extremely High Baseline Water Stress (2) Total water consumed: 203,023 thousand cubic meters; 36% with High or Extremely High Baseline Water Stress For more comprehensive information on our water performance and the water stress classifications, please see reference documents. | G10: (1) ESG Performance Trend Data: Water (FCX Global) and Water (stressed areas)
B11: Number of incidents of non-compliance associated with water quality permits, standards, and regulations | C11: Quantitative | D11: Number | E11: EM-MM-140a.2 | F11: No incidents of non-compliance associated with water quality permits, standards, and regulations resulted in a formal enforcement action in 2024.
A12: Waste & Hazardous Materials Management | B12: Total weight of non-mineral waste generated | C12: Quantitative | D12: Metric tons (t) | E12: EM-MM-150a.4 | F12: 314.3 thousand metric tons | G12: (1) 2024 Form 10-K, Item 1A. Risk Factors: Operational Risks (2) ESG Performance Data: Mining, Mineral Processing Waste (3) 2024 Annual Report on Sustainability: Tailings Management (4) 2024 Annual Report on Sustainability: Non-mineral Waste Management
B13: Total weight of tailings produced | C13: Quantitative | D13: Metric tons (t) | E13: EM-MM-150a.5 | F13: 346 million metric tons
B14: Total weight of waste rock generated | C14: Quantitative | D14: Metric tons (t) | E14: EM-MM-150a.6 | F14: 453 million metric tons
B15: Total weight of hazardous waste generated | C15: Quantitative | D15: Metric tons (t) | E15: EM-MM-150a.7 | F15: 28.9 thousand metric tons
B16: Total weight of hazardous waste recycled | C16: Quantitative | D16: Metric tons (t) | E16: EM-MM-150a.8 | F16: 7.2 thousand metric tons
B17: Number of significant incidents associated with hazardous materials and waste management | C17: Quantitative | D17: Metric tons (t) | E17: EM-MM-150a.9 | F17: No significant (defined as a consequence rating of 3 or higher on our risk matrix) incidents associated with hazardous materials or waste management occurred in 2024. | G17: (1) 2024 Annual Report on Sustainability: Environmental Compliance (2) 2024 Annual Report on Sustainability: Our Approach
B18: Description of waste and hazardous materials management policies and procedures for active and inactive operations | C18: Discussion and Analysis | D18: n/a | E18: EM-MM-150a.10 | F18: We are committed to reducing our environmental impact, which includes the effective management of our mining and non-mining wastes alike. Mining and mineral processing wastes are typically managed in designated, engineered stockpiles or impoundments. In addition to responsibly managing our mining and mineral processing waste, we continuously evaluate opportunities to reduce the quantity of non-mining waste generated. We seek to apply the standard protocol of reduce, reuse, recycle wherever possible and implement robust practices to identify, categorize, store and manage non-mining wastes. Through our asset recovery programs, we divert certain materials from the landfill, and we strive to increase recycling and reuse of those materials in our operations whenever possible. We also evaluate our hazardous waste streams and, when possible, substitute materials with lower toxicity into our processes. | G18: (1) 2024 Annual Report on Sustainability: Non-Mineral Waste Management
A19: Biodiversity Impacts | B19: Description of environmental management policies and practices for active sites | C19: Discussion and Analysis | D19: N/A | E19: EM-MM-160a.1 | F19: We are committed to sound environmental practices at all of our operations. Our Environmental Policy serves as the framework for the protection of natural resources in the regions where we live and work. In addition to maintaining compliance with laws and regulations, we utilize risk management strategies based on valid data and sound science throughout the mining life cycle, and we plan and conduct our operations in a manner that optimizes the economic use of resources while minimizing the adverse environmental effects. All our mining and mineral processing operations and technology centers maintain environmental management systems (EMS) certified to ISO 14001:2015. Our practices and policies apply to all active sites across the portfolio and address critical environmental aspects including biodiversity, water stewardship, waste and hazardous chemicals, air emissions, and natural resource conservation and recycling. The environmental management programs implemented at our sites are based upon corporate policies, regulatory compliance, and voluntary commitments to good international industrial practices and standards and are verified through independent third-party assurance reviews. These programs are enabled through implementation of our risk register and project development sustainability review processes as well as project specific environmental and social impact assessments (ESIA). | G19: (1) 2024 Annual Report on Sustainability: Thriving Environments
B20: Percentage of mine sites where acid rock drainage is: (1) predicted to occur, (2) actively mitigated, and (3) under treatment or remediation | C20: Quantitative | D20: Percentage (%) | E20: EM-MM-160a.2 | F20: We do not report the percentage of mine sites where acid rock drainage (ARD) occurs or is predicted to occur. However, we implement robust programs to identify, mitigate and manage ARD from waste rock and tailings. ARD is a geochemical process that releases sulfate, acid and/or metals into the environment when certain rock materials are exposed to water and oxygen. ARD forms either naturally or following human caused activities when metal sulfide minerals present in host rock are exposed to air and natural precipitation. The resulting acid that forms can dissolve metals from the surrounding rock and be a source of pollution to surface water or groundwater resources if not properly managed. The formation of ARD can be exacerbated by large earth moving activities, like mining or construction, particularly when these activities expose sulfide bearing minerals to additional air and water, which can accelerate the oxidation process. However, through implementation of targeted management practices, environmental impacts from ARD can be prevented or minimized. Our environmental policy requires that we review and account for environmental effects of each activity, throughout the mine life cycle. Based on material classifications and geochemical characterizations of our ore bodies, ARD is predicted to occur to some degree at nearly all of our operations and is actively mitigated in those locations throughout the mine life cycle utilizing best available control technologies. When potentially acid generating materials are identified in the planning phase, we implement strategies for prevention of ARD formation or management of ARD if it occurs. These strategies include, but are not limited to, designing storage facilities to prevent or minimize ARD formation, blending acid generating materials with materials with sufficient buffering capacity to eliminate the net acid generating potential during operations, installing engineering controls to manage stormwater that infiltrates or runs-off from these facilities, and monitoring controls systems over the mine life cycle including the closure and post-closure phases. Additionally, we consider site specific factors such as rock type, climate, and other geographic considerations in order to minimize operations risk and reduce post mining closure and reclamation liability. Finally, if the formation of ARD cannot be eliminated, we implement mitigation measures such as water management, water treatment or reclamation and, at our PTFI operations, studies that include risk assessments to determine additional monitoring and mitigation efforts that may be effective. The objective of these controls is to limit or eliminate the exposure of sulfide minerals to the atmosphere, minimize the amount of water contacting mine materials, including waste rock or tailings, and ensure effective monitoring and maintenance systems are in place to minimize the potential ARD generation. Mitigation strategies at our mining operations are also subject to regulatory review, approval and oversight to ensure the effectiveness of the selected control measures.
